Workbook

Sheet Bantam
A1: =YTD!L15 -> Bantam
B2: Team | C2: Fish | D2: Member | E2: Show | F2: Non | G2: Number | H2: Number | I2: Number | J2: Lunker | K2: Species | L2: Gross | M2: Total | N2: Net | O2: Points | P2: Non Boater | Q2: # Non-
B3: Number | C3: Alone? | D3: Name | E3: Up? | F3: Boater? | G3: of LMB | H3: of SMB | I3: Dead | J3: Weight | K3: LMB/SMB | L3: Weight | M3: Caught | N3: Weight | O3: Awarded | P3: Weight | Q3: Boaters
A4: 1 | B4: 2 | C4: N | D4: =YTD!P15 -> Armand | E4: Y | F4: N | G4: 1 | H4: 1 | I4: 0 | L4: 4.44 | M4: =G4+H4 -> 2 | N4: =L4-(I4*0.2) -> 4.44 | O4: =IF($E4="N",35,IF($M4=0,30,RANK($N4,$N$4:$N$29,0))) -> 6 | P4: =IF(F4="Y",N4,0) -> 0 | Q4: =IF(E4="N",0,(IF(F4="N",0,1))) -> 0
A5: 2 | B5: 1 | C5: N | D5: =YTD!P16 -> Bill | E5: Y | F5: Y | G5: 0 | H5: 3 | I5: 0 | L5: 7.77 | M5: 3 | N5: 7.77 | O5: =IF($E5="N",35,IF($M5=0,30,RANK($N5,$N$4:$N$29,0))) -> 4 | P5: 7.77 | Q5: =IF(E5="N",0,(IF(F5="N",0,1))) -> 1
A6: 3 | B6: 11 | C6: N | D6: =YTD!P17 -> Dean | E6: Y | F6: N | G6: 2 | H6: 0 | I6: 0 | L6: 4.38 | M6: =G6+H6 -> 2 | N6: =L6-(I6*0.2) -> 4.38 | O6: 7 | P6: =IF(F6="Y",N6,0) -> 0 | Q6: 0
A7: 4 | B7: 7 | C7: N | D7: =YTD!P18 -> Jack | E7: Y | F7: Y | G7: 1 | H7: 0 | I7: 0 | L7: 1.74 | M7: 1 | N7: 1.74 | O7: 15 | P7: 1.74 | Q7: 1
A8: 5 | B8: 10 | C8: N | D8: =YTD!P19 -> Jason | E8: Y | F8: N | G8: 3 | H8: 0 | I8: 0 | J8: 4.2 | K8: LMB | L8: 9.61 | M8: =G8+H8 -> 3 | N8: =L8-(I8*0.2) -> 9.61 | O8: 1 | P8: =IF(F8="Y",N8,0) -> 0 | Q8: 0
A9: 6 | B9: 8 | C9: Y | D9: =YTD!P20 -> Jeff | E9: Y | F9: N | G9: 0 | H9: 4 | I9: 0 | L9: 8.56 | M9: 4 | N9: 8.56 | O9: 2 | P9: 0 | Q9: 0
A10: 7 | B10: 5 | C10: N | D10: =YTD!P21 -> Jim B | E10: Y | F10: Y | G10: 1 | H10: 1 | I10: 0 | L10: 3.08 | M10: 2 | N10: 3.08 | O10: 14 | P10: 3.08 | Q10: 1
A11: 8 | B11: 4 | C11: N | D11: =YTD!P22 -> Joe | E11: Y | F11: Y | G11: 0 | H11: 0 | I11: 0 | L11: 0 | M11: =G11+H11 -> 0 | N11: =L11-(I11*0.2) -> 0 | O11: 30 | P11: =IF(F11="Y",N11,0) -> 0 | Q11: 1
A12: 9 | B12: 2 | C12: N | D12: =YTD!P23 -> Kam | E12: Y | F12: Y | G12: 0 | H12: 0 | I12: 0 | L12: 0 | M12: 0 | N12: 0 | O12: 30 | P12: 0 | Q12: 1
A13: 10 | B13: 7 | C13: N | D13: =YTD!P24 -> Kevin | E13: Y | F13: N | G13: 0 | H13: 0 | I13: 0 | L13: 0 | M13: 0 | N13: 0 | O13: 30 | P13: 0 | Q13: 0
A14: 11 | B14: 10 | C14: N | D14: =YTD!P25 -> Mike M | E14: Y | F14: Y | G14: 0 | H14: 0 | I14: 0 | L14: 0 | M14: 0 | N14: 0 | O14: 30 | P14: 0 | Q14: 1
A15: 12 | B15: 3 | C15: N | D15: =YTD!P26 -> Mike G | E15: Y | F15: Y | G15: 0 | H15: 1 | I15: 0 | L15: 1.28 | M15: 1 | N15: 1.28 | O15: 16 | P15: 1.28 | Q15: 1
A16: 13 | B16: 5 | C16: N | D16: =YTD!P27 -> Morrie | E16: Y | F16: N | G16: 0 | H16: 2 | I16: 0 | L16: 3.1 | M16: 2 | N16: 3.1 | O16: 13 | P16: 0 | Q16: 0
A17: 14 | B17: 11 | C17: N | D17: =YTD!P28 -> Pete | E17: Y | F17: Y | G17: 1 | H17: 1 | I17: 0 | L17: 4.23 | M17: 2 | N17: 4.23 | O17: 10 | P17: 4.23 | Q17: 1
A18: 15 | B18: 9 | C18: N | D18: =YTD!P29 -> Rich B | E18: Y | F18: N | G18: 2 | H18: 0 | I18: 0 | L18: 3.55 | M18: =G18+H18 -> 2 | N18: =L18-(I18*0.2) -> 3.55 | O18: 12 | P18: 0 | Q18: 0
A19: 16 | B19: 9 | C19: N | D19: =YTD!P30 -> Rich T | E19: Y | F19: Y | G19: 3 | H19: 0 | I19: 0 | L19: 5.66 | M19: 3 | N19: 5.66 | O19: 5 | P19: 5.66 | Q19: 1
A20: 17 | B20: 1 | C20: N | D20: =YTD!P31 -> Ron | E20: Y | F20: N | G20: 0 | H20: 0 | I20: 0 | L20: 0 | M20: =G20+H20 -> 0 | N20: =L20-(I20*0.2) -> 0 | O20: 30 | P20: =IF(F20="Y",N20,0) -> 0 | Q20: 0
A21: 18 | B21: 4 | C21: N | D21: =YTD!P32 -> Scott | E21: Y | F21: N | G21: 2 | H21: 0 | I21: 0 | L21: 4.24 | M21: 2 | N21: 4.24 | O21: 9 | P21: 0 | Q21: 0
A22: 19 | B22: 3 | C22: N | D22: =YTD!P33 -> Steve D | E22: Y | F22: N | G22: 3 | H22: 2 | I22: 0 | L22: 8.24 | M22: 5 | N22: 8.24 | O22: 3 | P22: 0 | Q22: 0
A23: 20 | B23: 6 | C23: N | D23: =YTD!P34 -> Steve S | E23: Y | F23: Y | G23: 0 | H23: 2 | I23: 0 | L23: 4.31 | M23: =G23+H23 -> 2 | N23: =L23-(I23*0.2) -> 4.31 | O23: 8 | P23: 4.31 | Q23: 1
A24: 21 | B24: 6 | C24: N | D24: =YTD!P35 -> Tom | E24: Y | F24: N | G24: 2 | H24: 0 | I24: 0 | L24: 4.18 | M24: 2 | N24: 4.18 | O24: 11 | P24: 0 | Q24: 0
A25: 22 | C25: N | D25: =YTD!P36 -> X | E25: N | F25: N | M25: 0 | N25: 0 | O25: 35 | P25: 0 | Q25: 0
A26: 23 | C26: N | D26: =YTD!P37 -> X | E26: N | F26: N | M26: 0 | N26: 0 | O26: 35 | P26: 0 | Q26: 0
A27: 24 | C27: N | D27: =YTD!P38 -> X | E27: N | F27: N | M27: 0 | N27: 0 | O27: 35 | P27: 0 | Q27: 0
A28: 25 | C28: N | D28: =YTD!P39 -> X | E28: N | F28: N | M28: =G28+H28 -> 0 | N28: =L28-(I28*0.2) -> 0 | O28: 35 | P28: =IF(F28="Y",N28,0) -> 0 | Q28: =IF(E28="N",0,(IF(F28="N",0,1))) -> 0
A29: 26 | C29: N | D29: =YTD!P40 -> X | E29: N | F29: N | M29: =G29+H29 -> 0 | N29: =L29-(I29*0.2) -> 0 | O29: 35 | P29: =IF(F29="Y",N29,0) -> 0 | Q29: =IF(E29="N",0,(IF(F29="N",0,1))) -> 0
D30: Totals | E30: =COUNTIF(E4:E29,"Y") -> 21 | G30: =SUM(G4:G29) -> 21 | H30: =SUM(H4:H29) -> 17 | I30: =SUM(I4:I29) -> 0 | J30: =MAX(J4:J29) -> 4.2 | L30: =SUM(L4:L29) -> 78.37 | M30: =SUM(M4:M29) -> 38 | N30: =SUM(N4:N29) -> 78.37 | P30: =SUM(P4:P29) -> 28.07 | Q30: =SUM(Q4:Q29) -> 10
B31: Place | C31: Team # | D31: Partners | G31: Total Weight | I31: Place | J31: Team # | K31: Partners | N31: Total Weight | P31: NB Avg | Q31: =IF(Q30=0,"No Data",P30/Q30) -> 2.807
B32: 1st | C32: =Teams!N4 -> 8 | D32: =VLOOKUP($C32,$B$4:$D$29,3,0) -> Jeff | E32: & | F32: =IF($B$4:$B$29=20,"#N/A",IF(COUNTIF($B$4:$B$29,$C32)=1,"Alone",LOOKUP(2,1/($B$4:$B$29=$C32),$D$4:$D$29))) -> Alone | G32: =Teams!O4 -> 11.367 | I32: 4th | J32: =Teams!N7 -> 9 | K32: =VLOOKUP($J32,$B$4:$D$29,3,0) -> Rich B | L32: & | M32: =IF($B$4:$B$29=20,"#N/A",IF(COUNTIF($B$4:$B$29,$J32)=1,"Alone",LOOKUP(2,1/($B$4:$B$29=$J32),$D$4:$D$29))) -> Rich T | N32: =Teams!O7 -> 9.21
B33: 2nd | C33: =Teams!N5 -> 10 | D33: =VLOOKUP($C33,$B$4:$D$29,3,0) -> Jason | E33: & | F33: =IF($B$4:$B$29=20,"#N/A",IF(COUNTIF($B$4:$B$29,$C33)=1,"Alone",LOOKUP(2,1/($B$4:$B$29=$C33),$D$4:$D$29))) -> Mike M | G33: =Teams!O5 -> 9.61 | I33: 5th | J33: =Teams!N8 -> 11 | K33: =VLOOKUP($J33,$B$4:$D$29,3,0) -> Dean | L33: & | M33: =IF($B$4:$B$29=20,"#N/A",IF(COUNTIF($B$4:$B$29,$J33)=1,"Alone",LOOKUP(2,1/($B$4:$B$29=$J33),$D$4:$D$29))) -> Pete | N33: =Teams!O8 -> 8.61
B34: 3rd | C34: =Teams!N6 -> 3 | D34: =VLOOKUP($C34,$B$4:$D$29,3,0) -> Mike G | E34: & | F34: =IF($B$4:$B$29=20,"#N/A",IF(COUNTIF($B$4:$B$29,$C34)=1,"Alone",LOOKUP(2,1/($B$4:$B$29=$C34),$D$4:$D$29))) -> Steve D | G34: =Teams!O6 -> 9.52 | I34: 6th | J34: =Teams!N9 -> 6 | K34: =VLOOKUP($J34,$B$4:$D$29,3,0) -> Steve S | L34: & | M34: =IF($B$4:$B$29=20,"#N/A",IF(COUNTIF($B$4:$B$29,$J34)=1,"Alone",LOOKUP(2,1/($B$4:$B$29=$J34),$D$4:$D$29))) -> Tom | N34: =Teams!O9 -> 8.49

Sheet Mashapaug
A1: =YTD!L16 -> Mashapaug
B2: Team | C2: Fish | D2: Member | E2: Show | F2: Non | G2: Number | H2: Number | I2: Number | J2: Lunker | K2: Species | L2: Gross | M2: Total | N2: Net | O2: Points | P2: Non Boater | Q2: # Non-
B3: Number | C3: Alone? | D3: Name | E3: Up? | F3: Boater? | G3: of LMB | H3: of SMB | I3: Dead | J3: Weight | K3: LMB/SMB | L3: Weight | M3: Caught | N3: Weight | O3: Awarded | P3: Weight | Q3: Boaters
A4: 1 | B4: 3 | C4: Y | D4: =YTD!P15 -> Armand | E4: Y | F4: N | G4: 2 | H4: 3 | I4: 0 | L4: 11.39 | M4: =G4+H4 -> 5 | N4: =L4-(I4*0.2) -> 11.39 | O4: =IF($E4="N",35,IF($M4=0,30,RANK($N4,$N$4:$N$29,0))) -> 1 | P4: =IF(F4="Y",N4,0) -> 0 | Q4: =IF(E4="N",0,(IF(F4="N",0,1))) -> 0
A5: 2 | B5: 8 | C5: N | D5: =YTD!P16 -> Bill | E5: Y | F5: Y | G5: 3 | H5: 1 | I5: 0 | L5: 5.38 | M5: 4 | N5: 5.38 | O5: =IF($E5="N",35,IF($M5=0,30,RANK($N5,$N$4:$N$29,0))) -> 13 | P5: 5.38 | Q5: =IF(E5="N",0,(IF(F5="N",0,1))) -> 1
A6: 3 | B6: 7 | C6: N | D6: =YTD!P17 -> Dean | E6: Y | F6: N | G6: 5 | H6: 0 | I6: 0 | L6: 9.49 | M6: =G6+H6 -> 5 | N6: =L6-(I6*0.2) -> 9.49 | O6: 4 | P6: =IF(F6="Y",N6,0) -> 0 | Q6: 0
A7: 4 | B7: 10 | C7: N | D7: =YTD!P18 -> Jack | E7: Y | F7: Y | G7: 1 | H7: 2 | I7: 0 | L7: 5.29 | M7: 3 | N7: 5.29 | O7: 14 | P7: 5.29 | Q7: 1
A8: 5 | B8: 8 | C8: N | D8: =YTD!P19 -> Jason | E8: Y | F8: N | G8: 5 | H8: 0 | I8: 0 | J8: 4.39 | K8: LMB | L8: 11.17 | M8: =G8+H8 -> 5 | N8: =L8-(I8*0.2) -> 11.17 | O8: 2 | P8: =IF(F8="Y",N8,0) -> 0 | Q8: 0
A9: 6 | B9: 5 | C9: N | D9: =YTD!P20 -> Jeff | E9: Y | F9: N | G9: 3 | H9: 2 | I9: 0 | L9: 9.19 | M9: 5 | N9: 9.19 | O9: 6 | P9: 0 | Q9: 0
A10: 7 | B10: 9 | C10: N | D10: =YTD!P21 -> Jim B | E10: Y | F10: Y | G10: 5 | H10: 0 | I10: 0 | L10: 7.55 | M10: 5 | N10: 7.55 | O10: 10 | P10: 7.55 | Q10: 1
A11: 8 | B11: 1 | C11: N | D11: =YTD!P22 -> Joe | E11: Y | F11: Y | G11: 1 | H11: 1 | I11: 0 | L11: 3.7 | M11: =G11+H11 -> 2 | N11: =L11-(I11*0.2) -> 3.7 | O11: 17 | P11: =IF(F11="Y",N11,0) -> 3.7 | Q11: 1
A12: 9 | C12: N | D12: =YTD!P23 -> Kam | E12: N | F12: Y | M12: 0 | N12: 0 | O12: 35 | P12: 0 | Q12: 0
A13: 10 | B13: 2 | C13: N | D13: =YTD!P24 -> Kevin | E13: Y | F13: N | G13: 4 | H13: 1 | I13: 0 | L13: 7.11 | M13: 5 | N13: 7.11 | O13: 11 | P13: 0 | Q13: 0
A14: 11 | B14: 5 | C14: N | D14: =YTD!P25 -> Mike M | E14: Y | F14: Y | G14: 2 | H14: 0 | I14: 0 | L14: 1.9 | M14: 2 | N14: 1.9 | O14: 19 | P14: 1.9 | Q14: 1
A15: 12 | B15: 2 | C15: N | D15: =YTD!P26 -> Mike G | E15: Y | F15: Y | G15: 4 | H15: 0 | I15: 0 | L15: 5.05 | M15: 4 | N15: 5.05 | O15: 15 | P15: 5.05 | Q15: 1
A16: 13 | C16: N | D16: =YTD!P27 -> Morrie | E16: N | F16: N | M16: 0 | N16: 0 | O16: 35 | P16: 0 | Q16: 0
A17: 14 | B17: 6 | C17: N | D17: =YTD!P28 -> Pete | E17: Y | F17: Y | G17: 4 | H17: 1 | I17: 0 | L17: 8.32 | M17: 5 | N17: 8.32 | O17: 7 | P17: 8.32 | Q17: 1
A18: 15 | B18: 6 | C18: N | D18: =YTD!P29 -> Rich B | E18: Y | F18: N | G18: 4 | H18: 1 | I18: 0 | L18: 10.58 | M18: =G18+H18 -> 5 | N18: =L18-(I18*0.2) -> 10.58 | O18: 3 | P18: 0 | Q18: 0
A19: 16 | B19: 4 | C19: N | D19: =YTD!P30 -> Rich T | E19: Y | F19: Y | G19: 3 | H19: 2 | I19: 0 | L19: 6.04 | M19: 5 | N19: 6.04 | O19: 12 | P19: 6.04 | Q19: 1
A20: 17 | B20: 10 | C20: N | D20: =YTD!P31 -> Ron | E20: Y | F20: N | G20: 1 | H20: 1 | I20: 0 | L20: 2.94 | M20: =G20+H20 -> 2 | N20: =L20-(I20*0.2) -> 2.94 | O20: 18 | P20: =IF(F20="Y",N20,0) -> 0 | Q20: 0
A21: 18 | B21: 4 | C21: N | D21: =YTD!P32 -> Scott | E21: Y | F21: N | G21: 4 | H21: 1 | I21: 0 | L21: 5.03 | M21: 5 | N21: 5.03 | O21: 16 | P21: 0 | Q21: 0
A22: 19 | B22: 9 | C22: N | D22: =YTD!P33 -> Steve D | E22: Y | F22: N | G22: 5 | H22: 0 | I22: 0 | L22: 9.48 | M22: 5 | N22: 9.48 | O22: 5 | P22: 0 | Q22: 0
A23: 20 | B23: 7 | C23: N | D23: =YTD!P34 -> Steve S | E23: Y | F23: Y | G23: 5 | H23: 0 | I23: 0 | L23: 8.28 | M23: =G23+H23 -> 5 | N23: =L23-(I23*0.2) -> 8.28 | O23: 8 | P23: 8.28 | Q23: 1
A24: 21 | B24: 1 | C24: N | D24: =YTD!P35 -> Tom | E24: Y | F24: N | G24: 5 | H24: 0 | I24: 0 | L24: 7.83 | M24: 5 | N24: 7.83 | O24: 9 | P24: 0 | Q24: 0
A25: 22 | C25: N | D25: =YTD!P36 -> X | E25: N | F25: N | M25: 0 | N25: 0 | O25: 35 | P25: 0 | Q25: 0
A26: 23 | C26: N | D26: =YTD!P37 -> X | E26: N | F26: N | M26: 0 | N26: 0 | O26: 35 | P26: 0 | Q26: 0
A27: 24 | C27: N | D27: =YTD!P38 -> X | E27: N | F27: N | M27: 0 | N27: 0 | O27: 35 | P27: 0 | Q27: 0
A28: 25 | C28: N | D28: =YTD!P39 -> X | E28: N | F28: N | M28: =G28+H28 -> 0 | N28: =L28-(I28*0.2) -> 0 | O28: 35 | P28: =IF(F28="Y",N28,0) -> 0 | Q28: =IF(E28="N",0,(IF(F28="N",0,1))) -> 0
A29: 26 | C29: N | D29: =YTD!P40 -> X | E29: N | F29: N | M29: =G29+H29 -> 0 | N29: =L29-(I29*0.2) -> 0 | O29: 35 | P29: =IF(F29="Y",N29,0) -> 0 | Q29: =IF(E29="N",0,(IF(F29="N",0,1))) -> 0
D30: Totals | E30: =COUNTIF(E4:E29,"Y") -> 19 | G30: =SUM(G4:G29) -> 66 | H30: =SUM(H4:H29) -> 16 | I30: =SUM(I4:I29) -> 0 | J30: =MAX(J4:J29) -> 4.39 | K30: LMB | L30: =SUM(L4:L29) -> 135.72 | M30: =SUM(M4:M29) -> 82 | N30: =SUM(N4:N29) -> 135.72 | P30: =SUM(P4:P29) -> 51.51 | Q30: =SUM(Q4:Q29) -> 9
B31: Place | C31: Team # | D31: Partners | G31: Total Weight | I31: Place | J31: Team # | K31: Partners | N31: Total Weight | P31: NB Avg | Q31: =IF(Q30=0,"No Data",P30/Q30) -> 5.723333333
B32: 1st | C32: =Teams!N34 -> 6 | D32: =VLOOKUP($C32,$B$4:$D$29,3,0) -> Pete | E32: & | F32: =IF($B$4:$B$29=20,"#N/A",IF(COUNTIF($B$4:$B$29,$C32)=1,"Alone",LOOKUP(2,1/($B$4:$B$29=$C32),$D$4:$D$29))) -> Rich B | G32: =Teams!O34 -> 18.9 | I32: 4th | J32: =Teams!N37 -> 9 | K32: =VLOOKUP($J32,$B$4:$D$29,3,0) -> Jim B | L32: & | M32: =IF($B$4:$B$29=20,"#N/A",IF(COUNTIF($B$4:$B$29,$J32)=1,"Alone",LOOKUP(2,1/($B$4:$B$29=$J32),$D$4:$D$29))) -> Steve D | N32: =Teams!O37 -> 17.03
B33: 2nd | C33: =Teams!N35 -> 7 | D33: =VLOOKUP($C33,$B$4:$D$29,3,0) -> Dean | E33: & | F33: =IF($B$4:$B$29=20,"#N/A",IF(COUNTIF($B$4:$B$29,$C33)=1,"Alone",LOOKUP(2,1/($B$4:$B$29=$C33),$D$4:$D$29))) -> Steve S | G33: =Teams!O35 -> 17.77 | I33: 5th | J33: =Teams!N38 -> 8 | K33: =VLOOKUP($J33,$B$4:$D$29,3,0) -> Bill | L33: & | M33: =IF($B$4:$B$29=20,"#N/A",IF(COUNTIF($B$4:$B$29,$J33)=1,"Alone",LOOKUP(2,1/($B$4:$B$29=$J33),$D$4:$D$29))) -> Jason | N33: =Teams!O38 -> 16.55
B34: 3rd | C34: =Teams!N36 -> 3 | D34: =VLOOKUP($C34,$B$4:$D$29,3,0) -> Armand | E34: & | F34: =IF($B$4:$B$29=20,"#N/A",IF(COUNTIF($B$4:$B$29,$C34)=1,"Alone",LOOKUP(2,1/($B$4:$B$29=$C34),$D$4:$D$29))) -> Alone | G34: =Teams!O36 -> 17.11333333 | I34: 6th | J34: =Teams!N39 -> 2 | K34: =VLOOKUP($J34,$B$4:$D$29,3,0) -> Kevin | L34: & | M34: =IF($B$4:$B$29=20,"#N/A",IF(COUNTIF($B$4:$B$29,$J34)=1,"Alone",LOOKUP(2,1/($B$4:$B$29=$J34),$D$4:$D$29))) -> Mike G | N34: =Teams!O39 -> 12.16

Sheet Coventry
A1: =YTD!L17 -> Coventry
B2: Team | C2: Fish | D2: Member | E2: Show | F2: Non | G2: Number | H2: Number | I2: Number | J2: Lunker | K2: Species | L2: Gross | M2: Total | N2: Net | O2: Points | P2: Non Boater | Q2: # Non-
B3: Number | C3: Alone? | D3: Name | E3: Up? | F3: Boater? | G3: of LMB | H3: of SMB | I3: Dead | J3: Weight | K3: LMB/SMB | L3: Weight | M3: Caught | N3: Weight | O3: Awarded | P3: Weight | Q3: Boaters
A4: 1 | B4: 5 | C4: Y | D4: =YTD!P15 -> Armand | E4: Y | F4: N | G4: 2 | H4: 0 | I4: 0 | L4: 2.29 | M4: =G4+H4 -> 2 | N4: =L4-(I4*0.2) -> 2.29 | O4: =IF($E4="N",35,IF($M4=0,30,RANK($N4,$N$4:$N$29,0))) -> 9 | P4: =IF(F4="Y",N4,0) -> 0 | Q4: =IF(E4="N",0,(IF(F4="N",0,1))) -> 0
A5: 2 | B5: 3 | C5: N | D5: =YTD!P16 -> Bill | E5: Y | F5: Y | G5: 2 | H5: 0 | I5: 2 | L5: 1.65 | M5: 2 | N5: 1.25 | O5: =IF($E5="N",35,IF($M5=0,30,RANK($N5,$N$4:$N$29,0))) -> 11 | P5: 1.25 | Q5: =IF(E5="N",0,(IF(F5="N",0,1))) -> 1
A6: 3 | B6: 6 | C6: Y | D6: =YTD!P17 -> Dean | E6: Y | F6: N | G6: 1 | H6: 0 | I6: 0 | L6: 0.89 | M6: =G6+H6 -> 1 | N6: =L6-(I6*0.2) -> 0.89 | O6: 12 | P6: =IF(F6="Y",N6,0) -> 0 | Q6: 0
A7: 4 | B7: 9 | C7: N | D7: =YTD!P18 -> Jack | E7: Y | F7: Y | G7: 3 | H7: 0 | I7: 0 | L7: 3.55 | M7: 3 | N7: 3.55 | O7: 5 | P7: 3.55 | Q7: 1
A8: 5 | B8: 9 | C8: N | D8: =YTD!P19 -> Jason | E8: Y | F8: N | G8: 4 | H8: 0 | I8: 0 | L8: 5.07 | M8: =G8+H8 -> 4 | N8: =L8-(I8*0.2) -> 5.07 | O8: 3 | P8: =IF(F8="Y",N8,0) -> 0 | Q8: 0
A9: 6 | B9: 3 | C9: N | D9: =YTD!P20 -> Jeff | E9: Y | F9: N | G9: 3 | H9: 0 | I9: 0 | L9: 3.07 | M9: 3 | N9: 3.07 | O9: 7 | P9: 0 | Q9: 0
A10: 7 | C10: N | D10: =YTD!P21 -> Jim B | E10: N | F10: Y | I10: 0 | M10: 0 | N10: 0 | O10: 35 | P10: 0 | Q10: 0
A11: 8 | B11: 8 | C11: N | D11: =YTD!P22 -> Joe | E11: Y | F11: Y | G11: 0 | H11: 1 | I11: 0 | L11: 0.8 | M11: =G11+H11 -> 1 | N11: =L11-(I11*0.2) -> 0.8 | O11: 13 | P11: =IF(F11="Y",N11,0) -> 0.8 | Q11: 1
A12: 9 | C12: N | D12: =YTD!P23 -> Kam | E12: N | F12: Y | I12: 0 | M12: 0 | N12: 0 | O12: 35 | P12: 0 | Q12: 0
A13: 10 | B13: 1 | C13: Y | D13: =YTD!P24 -> Kevin | E13: Y | F13: N | G13: 2 | H13: 0 | I13: 0 | L13: 4.72 | M13: 2 | N13: 4.72 | O13: 4 | P13: 0 | Q13: 0
A14: 11 | C14: N | D14: =YTD!P25 -> Mike M | E14: N | F14: Y | I14: 0 | M14: 0 | N14: 0 | O14: 35 | P14: 0 | Q14: 0
A15: 12 | C15: N | D15: =YTD!P26 -> Mike G | E15: N | F15: Y | I15: 0 | M15: 0 | N15: 0 | O15: 35 | P15: 0 | Q15: 0
A16: 13 | B16: 8 | C16: N | D16: =YTD!P27 -> Morrie | E16: Y | F16: N | G16: 4 | H16: 1 | I16: 0 | L16: 5.36 | M16: 5 | N16: 5.36 | O16: 2 | P16: 0 | Q16: 0
A17: 14 | B17: 7 | C17: N | D17: =YTD!P28 -> Pete | E17: Y | F17: Y | G17: 0 | H17: 0 | I17: 0 | L17: 0 | M17: 0 | N17: 0 | O17: 30 | P17: 0 | Q17: 1
A18: 15 | B18: 2 | C18: Y | D18: =YTD!P29 -> Rich B | E18: Y | F18: N | G18: 4 | H18: 0 | I18: 0 | L18: 3.48 | M18: =G18+H18 -> 4 | N18: =L18-(I18*0.2) -> 3.48 | O18: 6 | P18: 0 | Q18: 0
A19: 16 | B19: 4 | C19: N | D19: =YTD!P30 -> Rich T | E19: Y | F19: Y | G19: 1 | H19: 0 | I19: 0 | L19: 1.78 | M19: 1 | N19: 1.78 | O19: 10 | P19: 1.78 | Q19: 1
A20: 17 | C20: N | D20: =YTD!P31 -> Ron | E20: N | F20: N | I20: 0 | M20: =G20+H20 -> 0 | N20: =L20-(I20*0.2) -> 0 | O20: 35 | P20: =IF(F20="Y",N20,0) -> 0 | Q20: 0
A21: 18 | B21: 7 | C21: N | D21: =YTD!P32 -> Scott | E21: Y | F21: N | G21: 0 | H21: 0 | I21: 0 | L21: 0 | M21: 0 | N21: 0 | O21: 30 | P21: 0 | Q21: 0
A22: 19 | B22: 10 | C22: N | D22: =YTD!P33 -> Steve D | E22: Y | F22: N | G22: 2 | H22: 3 | I22: 0 | J22: 6.39 | K22: LMB | L22: 13.24 | M22: 5 | N22: 13.24 | O22: 1 | P22: 0 | Q22: 0
A23: 20 | B23: 10 | C23: N | D23: =YTD!P34 -> Steve S | E23: Y | F23: Y | G23: 1 | H23: 1 | I23: 0 | L23: 2.67 | M23: =G23+H23 -> 2 | N23: =L23-(I23*0.2) -> 2.67 | O23: 8 | P23: 2.67 | Q23: 1
A24: 21 | B24: 4 | C24: N | D24: =YTD!P35 -> Tom | E24: Y | F24: N | I24: 0 | M24: 0 | N24: 0 | O24: 30 | P24: 0 | Q24: 0
A25: 22 | C25: N | D25: =YTD!P36 -> X | E25: N | F25: N | M25: 0 | N25: 0 | O25: 35 | P25: 0 | Q25: 0
A26: 23 | C26: N | D26: =YTD!P37 -> X | E26: N | F26: N | M26: 0 | N26: 0 | O26: 35 | P26: 0 | Q26: 0
A27: 24 | C27: N | D27: =YTD!P38 -> X | E27: N | F27: N | M27: 0 | N27: 0 | O27: 35 | P27: 0 | Q27: 0
A28: 25 | C28: N | D28: =YTD!P39 -> X | E28: N | F28: N | M28: =G28+H28 -> 0 | N28: =L28-(I28*0.2) -> 0 | O28: 35 | P28: =IF(F28="Y",N28,0) -> 0 | Q28: =IF(E28="N",0,(IF(F28="N",0,1))) -> 0
A29: 26 | C29: N | D29: =YTD!P40 -> X | E29: N | F29: N | M29: =G29+H29 -> 0 | N29: =L29-(I29*0.2) -> 0 | O29: 35 | P29: =IF(F29="Y",N29,0) -> 0 | Q29: =IF(E29="N",0,(IF(F29="N",0,1))) -> 0
D30: Totals | E30: =COUNTIF(E4:E29,"Y") -> 16 | G30: =SUM(G4:G29) -> 29 | H30: =SUM(H4:H29) -> 6 | I30: =SUM(I4:I29) -> 2 | J30: =MAX(J4:J29) -> 6.39 | L30: =SUM(L4:L29) -> 48.57 | M30: =SUM(M4:M29) -> 35 | N30: =SUM(N4:N29) -> 48.17 | P30: =SUM(P4:P29) -> 10.05 | Q30: =SUM(Q4:Q29) -> 6
B31: Place | C31: Team # | D31: Partners | G31: Total Weight | I31: Place | J31: Team # | K31: Partners | N31: Total Weight | P31: NB Avg | Q31: =IF(Q30=0,"No Data",P30/Q30) -> 1.675
B32: 1st | C32: =Teams!N64 -> 10 | D32: =VLOOKUP($C32,$B$4:$D$29,3,0) -> Steve D | E32: & | F32: =IF($B$4:$B$29=20,"#N/A",IF(COUNTIF($B$4:$B$29,$C32)=1,"Alone",LOOKUP(2,1/($B$4:$B$29=$C32),$D$4:$D$29))) -> Steve S | G32: =Teams!O64 -> 15.91 | I32: 4th | J32: =Teams!N67 -> 8 | K32: =VLOOKUP($J32,$B$4:$D$29,3,0) -> Joe | L32: & | M32: =IF($B$4:$B$29=20,"#N/A",IF(COUNTIF($B$4:$B$29,$J32)=1,"Alone",LOOKUP(2,1/($B$4:$B$29=$J32),$D$4:$D$29))) -> Morrie | N32: =Teams!O67 -> 6.16
B33: 2nd | C33: =Teams!N65 -> 9 | D33: =VLOOKUP($C33,$B$4:$D$29,3,0) -> Jack | E33: & | F33: =IF($B$4:$B$29=20,"#N/A",IF(COUNTIF($B$4:$B$29,$C33)=1,"Alone",LOOKUP(2,1/($B$4:$B$29=$C33),$D$4:$D$29))) -> Jason | G33: =Teams!O65 -> 8.62 | I33: 5th | J33: =Teams!N68 -> 2 | K33: =VLOOKUP($J33,$B$4:$D$29,3,0) -> Rich B | L33: & | M33: =IF($B$4:$B$29=20,"#N/A",IF(COUNTIF($B$4:$B$29,$J33)=1,"Alone",LOOKUP(2,1/($B$4:$B$29=$J33),$D$4:$D$29))) -> Alone | N33: =Teams!O68 -> 5.155
B34: 3rd | C34: =Teams!N66 -> 1 | D34: =VLOOKUP($C34,$B$4:$D$29,3,0) -> Kevin | E34: & | F34: =IF($B$4:$B$29=20,"#N/A",IF(COUNTIF($B$4:$B$29,$C34)=1,"Alone",LOOKUP(2,1/($B$4:$B$29=$C34),$D$4:$D$29))) -> Alone | G34: =Teams!O66 -> 6.395 | I34: 6th | J34: =Teams!N69 -> 3 | K34: =VLOOKUP($J34,$B$4:$D$29,3,0) -> Bill | L34: & | M34: =IF($B$4:$B$29=20,"#N/A",IF(COUNTIF($B$4:$B$29,$J34)=1,"Alone",LOOKUP(2,1/($B$4:$B$29=$J34),$D$4:$D$29))) -> Jeff | N34: =Teams!O69 -> 4.32

Sheet Beach
A1: =YTD!L18 -> Beach
B2: Team | C2: Fish | D2: Member | E2: Show | F2: Non | G2: Number | H2: Number | I2: Number | J2: Lunker | K2: Species | L2: Gross | M2: Total | N2: Net | O2: Points | P2: Non Boater | Q2: # Non-
B3: Number | C3: Alone? | D3: Name | E3: Up? | F3: Boater? | G3: of LMB | H3: of SMB | I3: Dead | J3: Weight | K3: LMB/SMB | L3: Weight | M3: Caught | N3: Weight | O3: Awarded | P3: Weight | Q3: Boaters
A4: 1 | B4: 2 | C4: N | D4: =YTD!P15 -> Armand | E4: Y | F4: N | G4: 1 | L4: 0.67 | M4: =G4+H4 -> 1 | N4: =L4-(I4*0.2) -> 0.67 | O4: =IF($E4="N",35,IF($M4=0,30,RANK($N4,$N$4:$N$29,0))) -> 18 | P4: =IF(F4="Y",N4,0) -> 0 | Q4: =IF(E4="N",0,(IF(F4="N",0,1))) -> 0
A5: 2 | B5: 2 | C5: N | D5: =YTD!P16 -> Bill | E5: Y | F5: Y | G5: 3 | I5: 2 | L5: 5.38 | M5: 3 | N5: 4.98 | O5: =IF($E5="N",35,IF($M5=0,30,RANK($N5,$N$4:$N$29,0))) -> 5 | P5: 4.98 | Q5: =IF(E5="N",0,(IF(F5="N",0,1))) -> 1
A6: 3 | B6: 3 | C6: N | D6: =YTD!P17 -> Dean | E6: Y | F6: N | G6: 2 | L6: 1.33 | M6: =G6+H6 -> 2 | N6: =L6-(I6*0.2) -> 1.33 | O6: 14 | P6: =IF(F6="Y",N6,0) -> 0 | Q6: 0
A7: 4 | B7: 7 | C7: N | D7: =YTD!P18 -> Jack | E7: Y | F7: Y | G7: 1 | L7: 1.03 | M7: 1 | N7: 1.03 | O7: 16 | P7: 1.03 | Q7: 1
A8: 5 | B8: 9 | C8: N | D8: =YTD!P19 -> Jason | E8: Y | F8: N | G8: 1 | L8: 1.21 | M8: =G8+H8 -> 1 | N8: =L8-(I8*0.2) -> 1.21 | O8: 15 | P8: =IF(F8="Y",N8,0) -> 0 | Q8: 0
A9: 6 | B9: 7 | C9: N | D9: =YTD!P20 -> Jeff | E9: Y | F9: N | G9: 5 | J9: 5.96 | K9: LMB | L9: 9.31 | M9: 5 | N9: 9.31 | O9: 1 | P9: 0 | Q9: 0
A10: 7 | C10: N | D10: =YTD!P21 -> Jim B | E10: N | F10: Y | M10: 0 | N10: 0 | O10: 35 | P10: 0 | Q10: 0
A11: 8 | B11: 6 | C11: N | D11: =YTD!P22 -> Joe | E11: Y | F11: Y | G11: 1 | L11: 0.73 | M11: =G11+H11 -> 1 | N11: =L11-(I11*0.2) -> 0.73 | O11: 17 | P11: =IF(F11="Y",N11,0) -> 0.73 | Q11: 1
A12: 9 | B12: 5 | C12: N | D12: =YTD!P23 -> Kam | E12: Y | F12: Y | G12: 2 | L12: 1.93 | M12: 2 | N12: 1.93 | O12: 13 | P12: 1.93 | Q12: 1
A13: 10 | B13: 4 | C13: N | D13: =YTD!P24 -> Kevin | E13: Y | F13: N | G13: 3 | L13: 2.5 | M13: 3 | N13: 2.5 | O13: 9 | P13: 0 | Q13: 0
A14: 11 | B14: 3 | C14: N | D14: =YTD!P25 -> Mike M | E14: Y | F14: Y | G14: 4 | L14: 5.87 | M14: 4 | N14: 5.87 | O14: 3 | P14: 5.87 | Q14: 1
A15: 12 | B15: 9 | C15: N | D15: =YTD!P26 -> Mike G | E15: Y | F15: Y | G15: 4 | L15: 4.78 | M15: 4 | N15: 4.78 | O15: 6 | P15: 4.78 | Q15: 1
A16: 13 | B16: 10 | C16: N | D16: =YTD!P27 -> Morrie | E16: Y | F16: N | G16: 3 | L16: 3.5 | M16: 3 | N16: 3.5 | O16: 8 | P16: 0 | Q16: 0
A17: 14 | B17: 8 | C17: N | D17: =YTD!P28 -> Pete | E17: Y | F17: Y | G17: 2 | L17: 2.05 | M17: 2 | N17: 2.05 | O17: 10 | P17: 2.05 | Q17: 1
A18: 15 | B18: 1 | C18: Y | D18: =YTD!P29 -> Rich B | E18: Y | F18: N | G18: 2 | L18: 1.96 | M18: =G18+H18 -> 2 | N18: =L18-(I18*0.2) -> 1.96 | O18: 12 | P18: 0 | Q18: 0
A19: 16 | B19: 10 | C19: N | D19: =YTD!P30 -> Rich T | E19: Y | F19: Y | G19: 2 | L19: 2.04 | M19: 2 | N19: 2.04 | O19: 11 | P19: 2.04 | Q19: 1
A20: 17 | C20: N | D20: =YTD!P31 -> Ron | E20: N | F20: N | M20: =G20+H20 -> 0 | N20: =L20-(I20*0.2) -> 0 | O20: 35 | P20: =IF(F20="Y",N20,0) -> 0 | Q20: 0
A21: 18 | B21: 5 | C21: N | D21: =YTD!P32 -> Scott | E21: Y | F21: N | G21: 5 | I21: 1 | L21: 6.18 | M21: 5 | N21: 5.98 | O21: 2 | P21: 0 | Q21: 0
A22: 19 | B22: 6 | C22: N | D22: =YTD!P33 -> Steve D | E22: Y | F22: N | G22: 5 | L22: 5.03 | M22: 5 | N22: 5.03 | O22: 4 | P22: 0 | Q22: 0
A23: 20 | B23: 4 | C23: N | D23: =YTD!P34 -> Steve S | E23: Y | F23: Y | G23: 0 | L23: 0 | M23: =G23+H23 -> 0 | N23: =L23-(I23*0.2) -> 0 | O23: 30 | P23: 0 | Q23: 1
A24: 21 | B24: 8 | C24: N | D24: =YTD!P35 -> Tom | E24: Y | F24: N | G24: 4 | L24: 4.43 | M24: 4 | N24: 4.43 | O24: 7 | P24: 0 | Q24: 0
A25: 22 | C25: N | D25: =YTD!P36 -> X | E25: N | F25: N | M25: 0 | N25: 0 | O25: 35 | P25: 0 | Q25: 0
A26: 23 | C26: N | D26: =YTD!P37 -> X | E26: N | F26: N | M26: 0 | N26: 0 | O26: 35 | P26: 0 | Q26: 0
A27: 24 | C27: N | D27: =YTD!P38 -> X | E27: N | F27: N | M27: 0 | N27: 0 | O27: 35 | P27: 0 | Q27: 0
A28: 25 | C28: N | D28: =YTD!P39 -> X | E28: N | F28: N | M28: =G28+H28 -> 0 | N28: =L28-(I28*0.2) -> 0 | O28: 35 | P28: =IF(F28="Y",N28,0) -> 0 | Q28: =IF(E28="N",0,(IF(F28="N",0,1))) -> 0
A29: 26 | C29: N | D29: =YTD!P40 -> X | E29: N | F29: N | M29: =G29+H29 -> 0 | N29: =L29-(I29*0.2) -> 0 | O29: 35 | P29: =IF(F29="Y",N29,0) -> 0 | Q29: =IF(E29="N",0,(IF(F29="N",0,1))) -> 0
D30: Totals | E30: =COUNTIF(E4:E29,"Y") -> 19 | G30: =SUM(G4:G29) -> 50 | H30: =SUM(H4:H29) -> 0 | I30: =SUM(I4:I29) -> 3 | J30: =MAX(J4:J29) -> 5.96 | L30: =SUM(L4:L29) -> 59.93 | M30: =SUM(M4:M29) -> 50 | N30: =SUM(N4:N29) -> 59.33 | P30: =SUM(P4:P29) -> 23.41 | Q30: =SUM(Q4:Q29) -> 9
B31: Place | C31: Team # | D31: Partners | G31: Total Weight | I31: Place | J31: Team # | K31: Partners | N31: Total Weight | P31: NB Avg | Q31: =IF(Q30=0,"No Data",P30/Q30) -> 2.601111111
B32: 1st | C32: =Teams!$N94 -> 7 | D32: =VLOOKUP($C32,$B$4:$D$29,3,0) -> Jack | E32: & | F32: =IF($B$4:$B$29=20,"#N/A",IF(COUNTIF($B$4:$B$29,$C32)=1,"Alone",LOOKUP(2,1/($B$4:$B$29=$C32),$D$4:$D$29))) -> Jeff | G32: =Teams!O94 -> 10.34 | I32: 4th | J32: =Teams!$N97 -> 8 | K32: =VLOOKUP($J32,$B$4:$D$29,3,0) -> Pete | L32: & | M32: =IF($B$4:$B$29=20,"#N/A",IF(COUNTIF($B$4:$B$29,$J32)=1,"Alone",LOOKUP(2,1/($B$4:$B$29=$J32),$D$4:$D$29))) -> Tom | N32: =Teams!O97 -> 6.48
B33: 2nd | C33: =Teams!$N95 -> 5 | D33: =VLOOKUP($C33,$B$4:$D$29,3,0) -> Kam | E33: & | F33: =IF($B$4:$B$29=20,"#N/A",IF(COUNTIF($B$4:$B$29,$C33)=1,"Alone",LOOKUP(2,1/($B$4:$B$29=$C33),$D$4:$D$29))) -> Scott | G33: =Teams!O95 -> 7.91 | I33: 5th | J33: =Teams!$N98 -> 9 | K33: =VLOOKUP($J33,$B$4:$D$29,3,0) -> Jason | L33: & | M33: =IF($B$4:$B$29=20,"#N/A",IF(COUNTIF($B$4:$B$29,$J33)=1,"Alone",LOOKUP(2,1/($B$4:$B$29=$J33),$D$4:$D$29))) -> Mike G | N33: =Teams!O98 -> 5.99
B34: 3rd | C34: =Teams!$N96 -> 3 | D34: =VLOOKUP($C34,$B$4:$D$29,3,0) -> Dean | E34: & | F34: =IF($B$4:$B$29=20,"#N/A",IF(COUNTIF($B$4:$B$29,$C34)=1,"Alone",LOOKUP(2,1/($B$4:$B$29=$C34),$D$4:$D$29))) -> Mike M | G34: =Teams!O96 -> 7.2 | I34: 6th | J34: =Teams!$N99 -> 6 | K34: =VLOOKUP($J34,$B$4:$D$29,3,0) -> Joe | L34: & | M34: =IF($B$4:$B$29=20,"#N/A",IF(COUNTIF($B$4:$B$29,$J34)=1,"Alone",LOOKUP(2,1/($B$4:$B$29=$J34),$D$4:$D$29))) -> Steve D | N34: =Teams!O99 -> 5.76

Sheet Candlewood
A1: =YTD!L19 -> Candlewood
B2: Team | C2: Fish | D2: Member | E2: Show | F2: Non | G2: Number | H2: Number | I2: Number | J2: Lunker | K2: Species | L2: Gross | M2: Total | N2: Net | O2: Points | P2: Non Boater | Q2: # Non-
B3: Number | C3: Alone? | D3: Name | E3: Up? | F3: Boater? | G3: of LMB | H3: of SMB | I3: Dead | J3: Weight | K3: LMB/SMB | L3: Weight | M3: Caught | N3: Weight | O3: Awarded | P3: Weight | Q3: Boaters
A4: 1 | C4: N | D4: =YTD!P15 -> Armand | E4: N | F4: N | M4: =G4+H4 -> 0 | N4: =L4-(I4*0.2) -> 0 | O4: =IF($E4="N",35,IF($M4=0,30,RANK($N4,$N$4:$N$29,0))) -> 35 | P4: =IF(F4="Y",N4,0) -> 0 | Q4: =IF(E4="N",0,(IF(F4="N",0,1))) -> 0
A5: 2 | B5: 6 | C5: N | D5: =YTD!P16 -> Bill | E5: Y | F5: Y | G5: 0 | H5: 0 | M5: 0 | N5: 0 | O5: =IF($E5="N",35,IF($M5=0,30,RANK($N5,$N$4:$N$29,0))) -> 30 | P5: 0 | Q5: =IF(E5="N",0,(IF(F5="N",0,1))) -> 1
A6: 3 | B6: 6 | C6: N | D6: =YTD!P17 -> Dean | E6: Y | F6: N | H6: 1 | L6: 2.67 | M6: =G6+H6 -> 1 | N6: =L6-(I6*0.2) -> 2.67 | O6: 7 | P6: =IF(F6="Y",N6,0) -> 0 | Q6: 0
A7: 4 | B7: 9 | C7: N | D7: =YTD!P18 -> Jack | E7: Y | F7: Y | G7: 0 | H7: 0 | M7: 0 | N7: 0 | O7: 30 | P7: 0 | Q7: 1
A8: 5 | B8: 3 | C8: N | D8: =YTD!P19 -> Jason | E8: Y | F8: N | G8: 0 | H8: 0 | M8: =G8+H8 -> 0 | N8: =L8-(I8*0.2) -> 0 | O8: 30 | P8: =IF(F8="Y",N8,0) -> 0 | Q8: 0
A9: 6 | B9: 9 | C9: N | D9: =YTD!P20 -> Jeff | E9: Y | F9: N | G9: 1 | H9: 1 | L9: 4.13 | M9: 2 | N9: 4.13 | O9: 4 | P9: 0 | Q9: 0
A10: 7 | C10: N | D10: =YTD!P21 -> Jim B | E10: N | F10: Y | M10: 0 | N10: 0 | O10: 35 | P10: 0 | Q10: 0
A11: 8 | B11: 7 | C11: N | D11: =YTD!P22 -> Joe | E11: Y | F11: Y | H11: 1 | L11: 2.13 | M11: =G11+H11 -> 1 | N11: =L11-(I11*0.2) -> 2.13 | O11: 12 | P11: =IF(F11="Y",N11,0) -> 2.13 | Q11: 1
A12: 9 | B12: 3 | C12: N | D12: =YTD!P23 -> Kam | E12: Y | F12: Y | H12: 1 | L12: 2.42 | M12: 1 | N12: 2.42 | O12: 9 | P12: 2.42 | Q12: 1
A13: 10 | B13: 7 | C13: N | D13: =YTD!P24 -> Kevin | E13: Y | F13: N | H13: 1 | L13: 1.9 | M13: 1 | N13: 1.9 | O13: 13 | P13: 0 | Q13: 0
A14: 11 | B14: 5 | C14: N | D14: =YTD!P25 -> Mike M | E14: Y | F14: Y | H14: 1 | L14: 1.72 | M14: 1 | N14: 1.72 | O14: 14 | P14: 1.72 | Q14: 1
A15: 12 | C15: N | D15: =YTD!P26 -> Mike G | E15: N | F15: Y | M15: 0 | N15: 0 | O15: 35 | P15: 0 | Q15: 0
A16: 13 | B16: 8 | C16: N | D16: =YTD!P27 -> Morrie | E16: Y | F16: N | G16: 1 | H16: 2 | J16: 3.47 | K16: SMB | L16: 6.02 | M16: 3 | N16: 6.02 | O16: 2 | P16: 0 | Q16: 0
A17: 14 | B17: 8 | C17: N | D17: =YTD!P28 -> Pete | E17: Y | F17: Y | G17: 1 | H17: 4 | I17: 2 | L17: 8.35 | M17: 5 | N17: 7.95 | O17: 1 | P17: 7.95 | Q17: 1
A18: 15 | B18: 5 | C18: N | D18: =YTD!P29 -> Rich B | E18: Y | F18: N | G18: 1 | H18: 1 | L18: 2.88 | M18: =G18+H18 -> 2 | N18: =L18-(I18*0.2) -> 2.88 | O18: 6 | P18: 0 | Q18: 0
A19: 16 | B19: 2 | C19: N | D19: =YTD!P30 -> Rich T | E19: Y | F19: Y | G19: 1 | L19: 2.35 | M19: 1 | N19: 2.35 | O19: 11 | P19: 2.35 | Q19: 1
A20: 17 | B20: 1 | C20: N | D20: =YTD!P31 -> Ron | E20: Y | F20: N | H20: 1 | I20: 0 | L20: 2.41 | M20: =G20+H20 -> 1 | N20: =L20-(I20*0.2) -> 2.41 | O20: 10 | P20: =IF(F20="Y",N20,0) -> 0 | Q20: 0
A21: 18 | B21: 4 | C21: Y | D21: =YTD!P32 -> Scott | E21: Y | F21: N | H21: 1 | L21: 3.42 | M21: 1 | N21: 3.42 | O21: 5 | P21: 0 | Q21: 0
A22: 19 | B22: 2 | C22: N | D22: =YTD!P33 -> Steve D | E22: Y | F22: N | H22: 1 | L22: 2.56 | M22: 1 | N22: 2.56 | O22: 8 | P22: 0 | Q22: 0
A23: 20 | B23: 1 | C23: N | D23: =YTD!P34 -> Steve S | E23: Y | F23: Y | G23: 1 | H23: 1 | I23: 1 | L23: 4.84 | M23: =G23+H23 -> 2 | N23: =L23-(I23*0.2) -> 4.64 | O23: 3 | P23: 4.64 | Q23: 1
A24: 21 | C24: N | D24: =YTD!P35 -> Tom | E24: N | F24: N | M24: 0 | N24: 0 | O24: 35 | P24: 0 | Q24: 0
A25: 22 | C25: N | D25: =YTD!P36 -> X | E25: N | F25: N | M25: 0 | N25: 0 | O25: 35 | P25: 0 | Q25: 0
A26: 23 | C26: N | D26: =YTD!P37 -> X | E26: N | F26: N | M26: 0 | N26: 0 | O26: 35 | P26: 0 | Q26: 0
A27: 24 | C27: N | D27: =YTD!P38 -> X | E27: N | F27: N | M27: 0 | N27: 0 | O27: 35 | P27: 0 | Q27: 0
A28: 25 | C28: N | D28: =YTD!P39 -> X | E28: N | F28: N | M28: =G28+H28 -> 0 | N28: =L28-(I28*0.2) -> 0 | O28: 35 | P28: =IF(F28="Y",N28,0) -> 0 | Q28: =IF(E28="N",0,(IF(F28="N",0,1))) -> 0
A29: 26 | C29: N | D29: =YTD!P40 -> X | E29: N | F29: N | M29: =G29+H29 -> 0 | N29: =L29-(I29*0.2) -> 0 | O29: 35 | P29: =IF(F29="Y",N29,0) -> 0 | Q29: =IF(E29="N",0,(IF(F29="N",0,1))) -> 0
D30: Totals | E30: =COUNTIF(E4:E29,"Y") -> 17 | G30: =SUM(G4:G29) -> 6 | H30: =SUM(H4:H29) -> 17 | I30: =SUM(I4:I29) -> 3 | J30: =MAX(J4:J29) -> 3.47 | L30: =SUM(L4:L29) -> 47.8 | M30: =SUM(M4:M29) -> 23 | N30: =SUM(N4:N29) -> 47.2 | P30: =SUM(P4:P29) -> 21.21 | Q30: =SUM(Q4:Q29) -> 8
B31: Place | C31: Team # | D31: Partners | G31: Total Weight | I31: Place | J31: Team # | K31: Partners | N31: Total Weight | P31: NB Avg | Q31: =IF(Q30=0,"No Data",P30/Q30) -> 2.65125
B32: 1st | C32: =Teams!$AD4 -> 8 | D32: =VLOOKUP($C32,$B$4:$D$29,3,0) -> Morrie | E32: & | F32: =IF($B$4:$B$29=20,"#N/A",IF(COUNTIF($B$4:$B$29,$C32)=1,"Alone",LOOKUP(2,1/($B$4:$B$29=$C32),$D$4:$D$29))) -> Pete | G32: =Teams!AE4 -> 13.97 | I32: 4th | J32: =Teams!$AD7 -> 2 | K32: =VLOOKUP($J32,$B$4:$D$29,3,0) -> Rich T | L32: & | M32: =IF($B$4:$B$29=20,"#N/A",IF(COUNTIF($B$4:$B$29,$J32)=1,"Alone",LOOKUP(2,1/($B$4:$B$29=$J32),$D$4:$D$29))) -> Steve D | N32: =Teams!AE7 -> 4.91
B33: 2nd | C33: =Teams!$AD5 -> 1 | D33: =VLOOKUP($C33,$B$4:$D$29,3,0) -> Ron | E33: & | F33: =IF($B$4:$B$29=20,"#N/A",IF(COUNTIF($B$4:$B$29,$C33)=1,"Alone",LOOKUP(2,1/($B$4:$B$29=$C33),$D$4:$D$29))) -> Steve S | G33: =Teams!AE5 -> 7.05 | I33: 5th | J33: =Teams!$AD8 -> 5 | K33: =VLOOKUP($J33,$B$4:$D$29,3,0) -> Mike M | L33: & | M33: =IF($B$4:$B$29=20,"#N/A",IF(COUNTIF($B$4:$B$29,$J33)=1,"Alone",LOOKUP(2,1/($B$4:$B$29=$J33),$D$4:$D$29))) -> Rich B | N33: =Teams!AE8 -> 4.6
B34: 3rd | C34: =Teams!$AD6 -> 4 | D34: =VLOOKUP($C34,$B$4:$D$29,3,0) -> Scott | E34: & | F34: =IF($B$4:$B$29=20,"#N/A",IF(COUNTIF($B$4:$B$29,$C34)=1,"Alone",LOOKUP(2,1/($B$4:$B$29=$C34),$D$4:$D$29))) -> Alone | G34: =Teams!AE6 -> 6.07125 | I34: 6th | J34: =Teams!$AD9 -> 9 | K34: =VLOOKUP($J34,$B$4:$D$29,3,0) -> Jack | L34: & | M34: =IF($B$4:$B$29=20,"#N/A",IF(COUNTIF($B$4:$B$29,$J34)=1,"Alone",LOOKUP(2,1/($B$4:$B$29=$J34),$D$4:$D$29))) -> Jeff | N34: =Teams!AE9 -> 4.13

Sheet Winchester
A1: =YTD!L20 -> Winchester
B2: Team | C2: Fish | D2: Member | E2: Show | F2: Non | G2: Number | H2: Number | I2: Number | J2: Lunker | K2: Species | L2: Gross | M2: Total | N2: Net | O2: Points | P2: Non Boater | Q2: # Non-
B3: Number | C3: Alone? | D3: Name | E3: Up? | F3: Boater? | G3: of LMB | H3: of SMB | I3: Dead | J3: Weight | K3: LMB/SMB | L3: Weight | M3: Caught | N3: Weight | O3: Awarded | P3: Weight | Q3: Boaters
A4: 1 | B4: 8 | C4: N | D4: =YTD!P15 -> Armand | E4: Y | F4: N | G4: 1 | L4: 1.59 | M4: =G4+H4 -> 1 | N4: =L4-(I4*0.2) -> 1.59 | O4: =IF($E4="N",35,IF($M4=0,30,RANK($N4,$N$4:$N$29,0))) -> 11 | P4: =IF(F4="Y",N4,0) -> 0 | Q4: =IF(E4="N",0,(IF(F4="N",0,1))) -> 0
A5: 2 | B5: 3 | C5: N | D5: =YTD!P16 -> Bill | E5: Y | F5: Y | G5: 2 | L5: 1.58 | M5: 2 | N5: 1.58 | O5: =IF($E5="N",35,IF($M5=0,30,RANK($N5,$N$4:$N$29,0))) -> 12 | P5: 1.58 | Q5: =IF(E5="N",0,(IF(F5="N",0,1))) -> 1
A6: 3 | B6: 10 | C6: N | D6: =YTD!P17 -> Dean | E6: Y | F6: N | G6: 5 | L6: 4.85 | M6: =G6+H6 -> 5 | N6: =L6-(I6*0.2) -> 4.85 | O6: 6 | P6: =IF(F6="Y",N6,0) -> 0 | Q6: 0
A7: 4 | B7: 10 | C7: N | D7: =YTD!P18 -> Jack | E7: Y | F7: Y | G7: 1 | L7: 1.05 | M7: 1 | N7: 1.05 | O7: 14 | P7: 1.05 | Q7: 1
A8: 5 | B8: 6 | C8: N | D8: =YTD!P19 -> Jason | E8: Y | F8: N | G8: 3 | L8: 3.58 | M8: =G8+H8 -> 3 | N8: =L8-(I8*0.2) -> 3.58 | O8: 9 | P8: =IF(F8="Y",N8,0) -> 0 | Q8: 0
A9: 6 | B9: 2 | C9: N | D9: =YTD!P20 -> Jeff | E9: Y | F9: N | G9: 3 | L9: 4.64 | M9: 3 | N9: 4.64 | O9: 7 | P9: 0 | Q9: 0
A10: 7 | C10: N | D10: =YTD!P21 -> Jim B | E10: N | F10: Y | M10: 0 | N10: 0 | O10: 35 | P10: 0 | Q10: 0
A11: 8 | B11: 5 | C11: N | D11: =YTD!P22 -> Joe | E11: Y | F11: Y | G11: 0 | M11: =G11+H11 -> 0 | N11: =L11-(I11*0.2) -> 0 | O11: 30 | P11: =IF(F11="Y",N11,0) -> 0 | Q11: 1
A12: 9 | B12: 9 | C12: N | D12: =YTD!P23 -> Kam | E12: Y | F12: Y | G12: 0 | M12: 0 | N12: 0 | O12: 30 | P12: 0 | Q12: 1
A13: 10 | C13: N | D13: =YTD!P24 -> Kevin | E13: N | F13: N | M13: 0 | N13: 0 | O13: 35 | P13: 0 | Q13: 0
A14: 11 | B14: 2 | C14: N | D14: =YTD!P25 -> Mike M | E14: Y | F14: Y | G14: 0 | M14: 0 | N14: 0 | O14: 30 | P14: 0 | Q14: 1
A15: 12 | B15: 8 | C15: N | D15: =YTD!P26 -> Mike G | E15: Y | F15: Y | G15: 3 | J15: 3.83 | K15: LMB | L15: 5.76 | M15: 3 | N15: 5.76 | O15: 3 | P15: 5.76 | Q15: 1
A16: 13 | B16: 9 | C16: N | D16: =YTD!P27 -> Morrie | E16: Y | F16: N | G16: 2 | L16: 1.64 | M16: 2 | N16: 1.64 | O16: 10 | P16: 0 | Q16: 0
A17: 14 | B17: 1 | C17: N | D17: =YTD!P28 -> Pete | E17: Y | F17: Y | G17: 4 | L17: 5.03 | M17: 4 | N17: 5.03 | O17: 5 | P17: 5.03 | Q17: 1
A18: 15 | B18: 3 | C18: N | D18: =YTD!P29 -> Rich B | E18: Y | F18: N | G18: 1 | L18: 1.19 | M18: =G18+H18 -> 1 | N18: =L18-(I18*0.2) -> 1.19 | O18: 13 | P18: 0 | Q18: 0
A19: 16 | B19: 7 | C19: N | D19: =YTD!P30 -> Rich T | E19: Y | F19: N | G19: 4 | I19: 1 | L19: 4.1 | M19: 4 | N19: 3.9 | O19: 8 | P19: 0 | Q19: 0
A20: 17 | B20: 5 | C20: N | D20: =YTD!P31 -> Ron | E20: Y | F20: N | G20: 0 | M20: =G20+H20 -> 0 | N20: =L20-(I20*0.2) -> 0 | O20: 30 | P20: =IF(F20="Y",N20,0) -> 0 | Q20: 0
A21: 18 | B21: 7 | C21: N | D21: =YTD!P32 -> Scott | E21: Y | F21: Y | G21: 5 | I21: 1 | L21: 6.69 | M21: 5 | N21: 6.49 | O21: 1 | P21: 6.49 | Q21: 1
A22: 19 | B22: 1 | C22: N | D22: =YTD!P33 -> Steve D | E22: Y | F22: N | G22: 5 | L22: 5.87 | M22: 5 | N22: 5.87 | O22: 2 | P22: 0 | Q22: 0
A23: 20 | B23: 6 | C23: N | D23: =YTD!P34 -> Steve S | E23: Y | F23: Y | G23: 2 | L23: 5.05 | M23: =G23+H23 -> 2 | N23: =L23-(I23*0.2) -> 5.05 | O23: 4 | P23: 5.05 | Q23: 1
A24: 21 | B24: 4 | C24: Y | D24: =YTD!P35 -> Tom | E24: Y | F24: N | G24: 1 | L24: 0.74 | M24: 1 | N24: 0.74 | O24: 15 | P24: 0 | Q24: 0
A25: 22 | C25: N | D25: =YTD!P36 -> X | E25: N | F25: N | M25: 0 | N25: 0 | O25: 35 | P25: 0 | Q25: 0
A26: 23 | C26: N | D26: =YTD!P37 -> X | E26: N | F26: N | M26: 0 | N26: 0 | O26: 35 | P26: 0 | Q26: 0
A27: 24 | C27: N | D27: =YTD!P38 -> X | E27: N | F27: N | M27: 0 | N27: 0 | O27: 35 | P27: 0 | Q27: 0
A28: 25 | C28: N | D28: =YTD!P39 -> X | E28: N | F28: N | M28: =G28+H28 -> 0 | N28: =L28-(I28*0.2) -> 0 | O28: 35 | P28: =IF(F28="Y",N28,0) -> 0 | Q28: =IF(E28="N",0,(IF(F28="N",0,1))) -> 0
A29: 26 | C29: N | D29: =YTD!P40 -> X | E29: N | F29: N | M29: =G29+H29 -> 0 | N29: =L29-(I29*0.2) -> 0 | O29: 35 | P29: =IF(F29="Y",N29,0) -> 0 | Q29: =IF(E29="N",0,(IF(F29="N",0,1))) -> 0
D30: Totals | E30: =COUNTIF(E4:E29,"Y") -> 19 | G30: =SUM(G4:G29) -> 42 | H30: =SUM(H4:H29) -> 0 | I30: =SUM(I4:I29) -> 2 | J30: =MAX(J4:J29) -> 3.83 | L30: =SUM(L4:L29) -> 53.36 | M30: =SUM(M4:M29) -> 42 | N30: =SUM(N4:N29) -> 52.96 | P30: =SUM(P4:P29) -> 24.96 | Q30: =SUM(Q4:Q29) -> 9
B31: Place | C31: Team # | D31: Partners | G31: Total Weight | I31: Place | J31: Team # | K31: Partners | N31: Total Weight | P31: NB Avg | Q31: =IF(Q30=0,"No Data",P30/Q30) -> 2.773333333
B32: 1st | C32: =Teams!$AD34 -> 1 | D32: =VLOOKUP($C32,$B$4:$D$29,3,0) -> Pete | E32: & | F32: =IF($B$4:$B$29=20,"#N/A",IF(COUNTIF($B$4:$B$29,$C32)=1,"Alone",LOOKUP(2,1/($B$4:$B$29=$C32),$D$4:$D$29))) -> Steve D | G32: =Teams!AE34 -> 10.9 | I32: 4th | J32: =Teams!$AD37 -> 8 | K32: =VLOOKUP($J32,$B$4:$D$29,3,0) -> Armand | L32: & | M32: =IF($B$4:$B$29=20,"#N/A",IF(COUNTIF($B$4:$B$29,$J32)=1,"Alone",LOOKUP(2,1/($B$4:$B$29=$J32),$D$4:$D$29))) -> Mike G | N32: =Teams!AE37 -> 7.35
B33: 2nd | C33: =Teams!$AD35 -> 7 | D33: =VLOOKUP($C33,$B$4:$D$29,3,0) -> Rich T | E33: & | F33: =IF($B$4:$B$29=20,"#N/A",IF(COUNTIF($B$4:$B$29,$C33)=1,"Alone",LOOKUP(2,1/($B$4:$B$29=$C33),$D$4:$D$29))) -> Scott | G33: =Teams!AE35 -> 10.39 | I33: 5th | J33: =Teams!$AD38 -> 10 | K33: =VLOOKUP($J33,$B$4:$D$29,3,0) -> Dean | L33: & | M33: =IF($B$4:$B$29=20,"#N/A",IF(COUNTIF($B$4:$B$29,$J33)=1,"Alone",LOOKUP(2,1/($B$4:$B$29=$J33),$D$4:$D$29))) -> Jack | N33: =Teams!AE38 -> 5.9
B34: 3rd | C34: =Teams!$AD36 -> 6 | D34: =VLOOKUP($C34,$B$4:$D$29,3,0) -> Jason | E34: & | F34: =IF($B$4:$B$29=20,"#N/A",IF(COUNTIF($B$4:$B$29,$C34)=1,"Alone",LOOKUP(2,1/($B$4:$B$29=$C34),$D$4:$D$29))) -> Steve S | G34: =Teams!AE36 -> 8.63 | I34: 6th | J34: =Teams!$AD39 -> 2 | K34: =VLOOKUP($J34,$B$4:$D$29,3,0) -> Jeff | L34: & | M34: =IF($B$4:$B$29=20,"#N/A",IF(COUNTIF($B$4:$B$29,$J34)=1,"Alone",LOOKUP(2,1/($B$4:$B$29=$J34),$D$4:$D$29))) -> Mike M | N34: =Teams!AE39 -> 4.64

Sheet Mansfield
A1: =YTD!L21 -> Mansfield
B2: Team | C2: Fish | D2: Member | E2: Show | F2: Non | G2: Number | H2: Number | I2: Number | J2: Lunker | K2: Species | L2: Gross | M2: Total | N2: Net | O2: Points | P2: Non Boater | Q2: # Non-
B3: Number | C3: Alone? | D3: Name | E3: Up? | F3: Boater? | G3: of LMB | H3: of SMB | I3: Dead | J3: Weight | K3: LMB/SMB | L3: Weight | M3: Caught | N3: Weight | O3: Awarded | P3: Weight | Q3: Boaters
A4: 1 | B4: 9 | C4: N | D4: =YTD!P15 -> Armand | E4: Y | F4: N | G4: 2 | L4: 1.93 | M4: =G4+H4 -> 2 | N4: =L4-(I4*0.2) -> 1.93 | O4: =IF($E4="N",35,IF($M4=0,30,RANK($N4,$N$4:$N$29,0))) -> 15 | P4: =IF(F4="Y",N4,0) -> 0 | Q4: =IF(E4="N",0,(IF(F4="N",0,1))) -> 0
A5: 2 | B5: 3 | C5: N | D5: =YTD!P16 -> Bill | E5: Y | F5: Y | G5: 2 | L5: 3.81 | M5: 2 | N5: 3.81 | O5: =IF($E5="N",35,IF($M5=0,30,RANK($N5,$N$4:$N$29,0))) -> 10 | P5: 3.81 | Q5: =IF(E5="N",0,(IF(F5="N",0,1))) -> 1
A6: 3 | B6: 2 | C6: N | D6: =YTD!P17 -> Dean | E6: Y | F6: N | G6: 3 | L6: 5.49 | M6: =G6+H6 -> 3 | N6: =L6-(I6*0.2) -> 5.49 | O6: 8 | P6: =IF(F6="Y",N6,0) -> 0 | Q6: 0
A7: 4 | B7: 11 | C7: N | D7: =YTD!P18 -> Jack | E7: Y | F7: Y | G7: 0 | L7: 0 | M7: 0 | N7: 0 | O7: 30 | P7: 0 | Q7: 1
A8: 5 | B8: 4 | C8: N | D8: =YTD!P19 -> Jason | E8: Y | F8: N | G8: 4 | L8: 5.57 | M8: =G8+H8 -> 4 | N8: =L8-(I8*0.2) -> 5.57 | O8: 6 | P8: =IF(F8="Y",N8,0) -> 0 | Q8: 0
A9: 6 | B9: 8 | C9: N | D9: =YTD!P20 -> Jeff | E9: Y | F9: N | G9: 3 | L9: 5.53 | M9: 3 | N9: 5.53 | O9: 7 | P9: 0 | Q9: 0
A10: 7 | B10: 9 | C10: N | D10: =YTD!P21 -> Jim B | E10: Y | F10: Y | G10: 1 | L10: 2.21 | M10: 1 | N10: 2.21 | O10: 13 | P10: 2.21 | Q10: 1
A11: 8 | B11: 4 | C11: N | D11: =YTD!P22 -> Joe | E11: Y | F11: Y | G11: 0 | L11: 0 | M11: =G11+H11 -> 0 | N11: =L11-(I11*0.2) -> 0 | O11: 30 | P11: =IF(F11="Y",N11,0) -> 0 | Q11: 1
A12: 9 | B12: 7 | C12: N | D12: =YTD!P23 -> Kam | E12: Y | F12: Y | G12: 0 | L12: 0 | M12: 0 | N12: 0 | O12: 30 | P12: 0 | Q12: 1
A13: 10 | B13: 1 | C13: N | D13: =YTD!P24 -> Kevin | E13: Y | F13: N | G13: 1 | H13: 1 | L13: 2.01 | M13: 2 | N13: 2.01 | O13: 14 | P13: 0 | Q13: 0
A14: 11 | B14: 5 | C14: N | D14: =YTD!P25 -> Mike M | E14: Y | F14: Y | G14: 5 | I14: 1 | L14: 9.18 | M14: 5 | N14: 8.98 | O14: 1 | P14: 8.98 | Q14: 1
A15: 12 | B15: 2 | C15: N | D15: =YTD!P26 -> Mike G | E15: Y | F15: Y | G15: 0 | L15: 0 | M15: 0 | N15: 0 | O15: 30 | P15: 0 | Q15: 1
A16: 13 | B16: 10 | C16: Y | D16: =YTD!P27 -> Morrie | E16: Y | F16: N | G16: 0 | L16: 0 | M16: 0 | N16: 0 | O16: 30 | P16: 0 | Q16: 0
A17: 14 | B17: 1 | C17: N | D17: =YTD!P28 -> Pete | E17: Y | F17: Y | G17: 4 | L17: 4.58 | M17: 4 | N17: 4.58 | O17: 9 | P17: 4.58 | Q17: 1
A18: 15 | B18: 11 | C18: N | D18: =YTD!P29 -> Rich B | E18: Y | F18: N | G18: 4 | L18: 7.36 | M18: =G18+H18 -> 4 | N18: =L18-(I18*0.2) -> 7.36 | O18: 2 | P18: 0 | Q18: 0
A19: 16 | B19: 3 | C19: N | D19: =YTD!P30 -> Rich T | E19: Y | F19: N | G19: 5 | L19: 6.17 | M19: 5 | N19: 6.17 | O19: 4 | P19: 0 | Q19: 0
A20: 17 | B20: 6 | C20: N | D20: =YTD!P31 -> Ron | E20: Y | F20: N | G20: 3 | J20: 2.91 | K20: LMB | L20: 6.6 | M20: =G20+H20 -> 3 | N20: =L20-(I20*0.2) -> 6.6 | O20: 3 | P20: =IF(F20="Y",N20,0) -> 0 | Q20: 0
A21: 18 | B21: 6 | C21: N | D21: =YTD!P32 -> Scott | E21: Y | F21: Y | G21: 1 | H21: 1 | L21: 2.55 | M21: 2 | N21: 2.55 | O21: 11 | P21: 2.55 | Q21: 1
A22: 19 | B22: 7 | C22: N | D22: =YTD!P33 -> Steve D | E22: Y | F22: N | G22: 2 | L22: 2.48 | M22: 2 | N22: 2.48 | O22: 12 | P22: 0 | Q22: 0
A23: 20 | B23: 8 | C23: N | D23: =YTD!P34 -> Steve S | E23: Y | F23: Y | G23: 0 | L23: 0 | M23: =G23+H23 -> 0 | N23: =L23-(I23*0.2) -> 0 | O23: 30 | P23: 0 | Q23: 1
A24: 21 | B24: 5 | C24: N | D24: =YTD!P35 -> Tom | E24: Y | F24: N | G24: 5 | L24: 6.1 | M24: 5 | N24: 6.1 | O24: 5 | P24: 0 | Q24: 0
A25: 22 | C25: N | D25: =YTD!P36 -> X | E25: N | F25: N | M25: 0 | N25: 0 | O25: 35 | P25: 0 | Q25: 0
A26: 23 | C26: N | D26: =YTD!P37 -> X | E26: N | F26: N | M26: 0 | N26: 0 | O26: 35 | P26: 0 | Q26: 0
A27: 24 | C27: N | D27: =YTD!P38 -> X | E27: N | F27: N | M27: 0 | N27: 0 | O27: 35 | P27: 0 | Q27: 0
A28: 25 | C28: N | D28: =YTD!P39 -> X | E28: N | F28: N | M28: =G28+H28 -> 0 | N28: =L28-(I28*0.2) -> 0 | O28: 35 | P28: =IF(F28="Y",N28,0) -> 0 | Q28: =IF(E28="N",0,(IF(F28="N",0,1))) -> 0
A29: 26 | C29: N | D29: =YTD!P40 -> X | E29: N | F29: N | M29: =G29+H29 -> 0 | N29: =L29-(I29*0.2) -> 0 | O29: 35 | P29: =IF(F29="Y",N29,0) -> 0 | Q29: =IF(E29="N",0,(IF(F29="N",0,1))) -> 0
D30: Totals | E30: =COUNTIF(E4:E29,"Y") -> 21 | G30: =SUM(G4:G29) -> 45 | H30: =SUM(H4:H29) -> 2 | I30: =SUM(I4:I29) -> 1 | J30: =MAX(J4:J29) -> 2.91 | L30: =SUM(L4:L29) -> 71.57 | M30: =SUM(M4:M29) -> 47 | N30: =SUM(N4:N29) -> 71.37 | P30: =SUM(P4:P29) -> 22.13 | Q30: =SUM(Q4:Q29) -> 10
B31: Place | C31: Team # | D31: Partners | G31: Total Weight | I31: Place | J31: Team # | K31: Partners | N31: Total Weight | P31: NB Avg | Q31: =IF(Q30=0,"No Data",P30/Q30) -> 2.213
B32: 1st | C32: =Teams!$AD64 -> 5 | D32: =VLOOKUP($C32,$B$4:$D$29,3,0) -> Mike M | E32: & | F32: =IF($B$4:$B$29=20,"#N/A",IF(COUNTIF($B$4:$B$29,$C32)=1,"Alone",LOOKUP(2,1/($B$4:$B$29=$C32),$D$4:$D$29))) -> Tom | G32: =Teams!AE64 -> 15.08 | I32: 4th | J32: =Teams!$AD67 -> 11 | K32: =VLOOKUP($J32,$B$4:$D$29,3,0) -> Jack | L32: & | M32: =IF($B$4:$B$29=20,"#N/A",IF(COUNTIF($B$4:$B$29,$J32)=1,"Alone",LOOKUP(2,1/($B$4:$B$29=$J32),$D$4:$D$29))) -> Rich B | N32: =Teams!AE67 -> 7.36
B33: 2nd | C33: =Teams!$AD65 -> 3 | D33: =VLOOKUP($C33,$B$4:$D$29,3,0) -> Bill | E33: & | F33: =IF($B$4:$B$29=20,"#N/A",IF(COUNTIF($B$4:$B$29,$C33)=1,"Alone",LOOKUP(2,1/($B$4:$B$29=$C33),$D$4:$D$29))) -> Rich T | G33: =Teams!AE65 -> 9.98 | I33: 5th | J33: =Teams!$AD68 -> 1 | K33: =VLOOKUP($J33,$B$4:$D$29,3,0) -> Kevin | L33: & | M33: =IF($B$4:$B$29=20,"#N/A",IF(COUNTIF($B$4:$B$29,$J33)=1,"Alone",LOOKUP(2,1/($B$4:$B$29=$J33),$D$4:$D$29))) -> Pete | N33: =Teams!AE68 -> 6.59
B34: 3rd | C34: =Teams!$AD66 -> 6 | D34: =VLOOKUP($C34,$B$4:$D$29,3,0) -> Ron | E34: & | F34: =IF($B$4:$B$29=20,"#N/A",IF(COUNTIF($B$4:$B$29,$C34)=1,"Alone",LOOKUP(2,1/($B$4:$B$29=$C34),$D$4:$D$29))) -> Scott | G34: =Teams!AE66 -> 9.15 | I34: 6th | J34: =Teams!$AD69 -> 4 | K34: =VLOOKUP($J34,$B$4:$D$29,3,0) -> Jason | L34: & | M34: =IF($B$4:$B$29=20,"#N/A",IF(COUNTIF($B$4:$B$29,$J34)=1,"Alone",LOOKUP(2,1/($B$4:$B$29=$J34),$D$4:$D$29))) -> Joe | N34: =Teams!AE69 -> 5.57

Sheet Aspinook
A1: =YTD!L22 -> Aspinook
B2: Team | C2: Fish | D2: Member | E2: Show | F2: Non | G2: Number | H2: Number | I2: Number | J2: Lunker | K2: Species | L2: Gross | M2: Total | N2: Net | O2: Points | P2: Non Boater | Q2: # Non-
B3: Number | C3: Alone? | D3: Name | E3: Up? | F3: Boater? | G3: of LMB | H3: of SMB | I3: Dead | J3: Weight | K3: LMB/SMB | L3: Weight | M3: Caught | N3: Weight | O3: Awarded | P3: Weight | Q3: Boaters
A4: 1 | B4: 2 | C4: N | D4: =YTD!P15 -> Armand | E4: Y | F4: N | G4: 1 | H4: 1 | L4: 1.95 | M4: =G4+H4 -> 2 | N4: =L4-(I4*0.2) -> 1.95 | O4: =IF($E4="N",35,IF($M4=0,30,RANK($N4,$N$4:$N$29,0))) -> 7 | P4: =IF(F4="Y",N4,0) -> 0 | Q4: =IF(E4="N",0,(IF(F4="N",0,1))) -> 0
A5: 2 | C5: N | D5: =YTD!P16 -> Bill | E5: N | F5: Y | M5: 0 | N5: 0 | O5: =IF($E5="N",35,IF($M5=0,30,RANK($N5,$N$4:$N$29,0))) -> 35 | P5: 0 | Q5: =IF(E5="N",0,(IF(F5="N",0,1))) -> 0
A6: 3 | B6: 5 | C6: N | D6: =YTD!P17 -> Dean | E6: Y | F6: N | G6: 0 | M6: =G6+H6 -> 0 | N6: =L6-(I6*0.2) -> 0 | O6: 30 | P6: =IF(F6="Y",N6,0) -> 0 | Q6: 0
A7: 4 | C7: N | D7: =YTD!P18 -> Jack | E7: N | F7: Y | M7: 0 | N7: 0 | O7: 35 | P7: 0 | Q7: 0
A8: 5 | B8: 9 | C8: N | D8: =YTD!P19 -> Jason | E8: Y | F8: N | G8: 1 | H8: 1 | L8: 1.94 | M8: =G8+H8 -> 2 | N8: =L8-(I8*0.2) -> 1.94 | O8: 8 | P8: =IF(F8="Y",N8,0) -> 0 | Q8: 0
A9: 6 | B9: 3 | C9: N | D9: =YTD!P20 -> Jeff | E9: Y | F9: N | G9: 1 | L9: 2.65 | M9: 1 | N9: 2.65 | O9: 5 | P9: 0 | Q9: 0
A10: 7 | B10: 5 | C10: N | D10: =YTD!P21 -> Jim B | E10: Y | F10: Y | G10: 0 | M10: 0 | N10: 0 | O10: 30 | P10: 0 | Q10: 1
A11: 8 | B11: 3 | C11: N | D11: =YTD!P22 -> Joe | E11: Y | F11: Y | G11: 0 | M11: =G11+H11 -> 0 | N11: =L11-(I11*0.2) -> 0 | O11: 30 | P11: =IF(F11="Y",N11,0) -> 0 | Q11: 1
A12: 9 | B12: 1 | C12: N | D12: =YTD!P23 -> Kam | E12: Y | F12: Y | G12: 3 | H12: 1 | L12: 6.95 | M12: 4 | N12: 6.95 | O12: 2 | P12: 6.95 | Q12: 1
A13: 10 | B13: 1 | C13: N | D13: =YTD!P24 -> Kevin | E13: Y | F13: N | G13: 4 | H13: 1 | J13: 5.4 | K13: LMB | L13: 14.95 | M13: 5 | N13: 14.95 | O13: 1 | P13: 0 | Q13: 0
A14: 11 | B14: 7 | C14: N | D14: =YTD!P25 -> Mike M | E14: Y | F14: Y | H14: 1 | L14: 0.914 | M14: 1 | N14: 0.914 | O14: 9 | P14: 0.914 | Q14: 1
A15: 12 | C15: N | D15: =YTD!P26 -> Mike G | E15: N | F15: Y | M15: 0 | N15: 0 | O15: 35 | P15: 0 | Q15: 0
A16: 13 | B16: 7 | C16: N | D16: =YTD!P27 -> Morrie | E16: Y | F16: N | G16: 0 | M16: 0 | N16: 0 | O16: 30 | P16: 0 | Q16: 0
A17: 14 | B17: 8 | C17: N | D17: =YTD!P28 -> Pete | E17: Y | F17: Y | G17: 0 | M17: 0 | N17: 0 | O17: 30 | P17: 0 | Q17: 1
A18: 15 | B18: 6 | C18: N | D18: =YTD!P29 -> Rich B | E18: Y | F18: N | G18: 0 | M18: =G18+H18 -> 0 | N18: =L18-(I18*0.2) -> 0 | O18: 30 | P18: 0 | Q18: 0
A19: 16 | B19: 9 | C19: N | D19: =YTD!P30 -> Rich T | E19: Y | F19: Y | G19: 0 | M19: 0 | N19: 0 | O19: 30 | P19: 0 | Q19: 1
A20: 17 | B20: 8 | C20: N | D20: =YTD!P31 -> Ron | E20: Y | F20: N | G20: 3 | L20: 4.55 | M20: =G20+H20 -> 3 | N20: =L20-(I20*0.2) -> 4.55 | O20: 3 | P20: =IF(F20="Y",N20,0) -> 0 | Q20: 0
A21: 18 | B21: 6 | C21: N | D21: =YTD!P32 -> Scott | E21: Y | F21: Y | G21: 1 | L21: 2.27 | M21: 1 | N21: 2.27 | O21: 6 | P21: 2.27 | Q21: 1
A22: 19 | B22: 10 | C22: Y | D22: =YTD!P33 -> Steve D | E22: Y | F22: N | G22: 0 | M22: 0 | N22: 0 | O22: 30 | P22: 0 | Q22: 0
A23: 20 | B23: 2 | C23: N | D23: =YTD!P34 -> Steve S | E23: Y | F23: Y | G23: 0 | M23: =G23+H23 -> 0 | N23: =L23-(I23*0.2) -> 0 | O23: 30 | P23: 0 | Q23: 1
A24: 21 | B24: 4 | C24: Y | D24: =YTD!P35 -> Tom | E24: Y | F24: N | G24: 1 | H24: 1 | L24: 2.73 | M24: 2 | N24: 2.73 | O24: 4 | P24: 0 | Q24: 0
A25: 22 | C25: N | D25: =YTD!P36 -> X | E25: N | F25: N | M25: 0 | N25: 0 | O25: 35 | P25: 0 | Q25: 0
A26: 23 | C26: N | D26: =YTD!P37 -> X | E26: N | F26: N | M26: 0 | N26: 0 | O26: 35 | P26: 0 | Q26: 0
A27: 24 | C27: N | D27: =YTD!P38 -> X | E27: N | F27: N | M27: 0 | N27: 0 | O27: 35 | P27: 0 | Q27: 0
A28: 25 | C28: N | D28: =YTD!P39 -> X | E28: N | F28: N | M28: =G28+H28 -> 0 | N28: =L28-(I28*0.2) -> 0 | O28: 35 | P28: =IF(F28="Y",N28,0) -> 0 | Q28: =IF(E28="N",0,(IF(F28="N",0,1))) -> 0
A29: 26 | C29: N | D29: =YTD!P40 -> X | E29: N | F29: N | M29: =G29+H29 -> 0 | N29: =L29-(I29*0.2) -> 0 | O29: 35 | P29: =IF(F29="Y",N29,0) -> 0 | Q29: =IF(E29="N",0,(IF(F29="N",0,1))) -> 0
D30: Totals | E30: =COUNTIF(E4:E29,"Y") -> 18 | G30: =SUM(G4:G29) -> 15 | H30: =SUM(H4:H29) -> 6 | I30: =SUM(I4:I29) -> 0 | J30: =MAX(J4:J29) -> 5.4 | L30: =SUM(L4:L29) -> 38.904 | M30: =SUM(M4:M29) -> 21 | N30: =SUM(N4:N29) -> 38.904 | P30: =SUM(P4:P29) -> 10.134 | Q30: =SUM(Q4:Q29) -> 8
B31: Place | C31: Team # | D31: Partners | G31: Total Weight | I31: Place | J31: Team # | K31: Partners | N31: Total Weight | P31: NB Avg | Q31: =IF(Q30=0,"No Data",P30/Q30) -> 1.26675
B32: 1st | C32: =Teams!$AD94 -> 1 | D32: =VLOOKUP($C32,$B$4:$D$29,3,0) -> Kam | E32: & | F32: =IF($B$4:$B$29=20,"#N/A",IF(COUNTIF($B$4:$B$29,$C32)=1,"Alone",LOOKUP(2,1/($B$4:$B$29=$C32),$D$4:$D$29))) -> Kevin | G32: =Teams!AE94 -> 21.9 | I32: 4th | J32: =Teams!$AD97 -> 3 | K32: =VLOOKUP($J32,$B$4:$D$29,3,0) -> Jeff | L32: & | M32: =IF($B$4:$B$29=20,"#N/A",IF(COUNTIF($B$4:$B$29,$J32)=1,"Alone",LOOKUP(2,1/($B$4:$B$29=$J32),$D$4:$D$29))) -> Joe | N32: =Teams!AE97 -> 2.65
B33: 2nd | C33: =Teams!$AD95 -> 8 | D33: =VLOOKUP($C33,$B$4:$D$29,3,0) -> Pete | E33: & | F33: =IF($B$4:$B$29=20,"#N/A",IF(COUNTIF($B$4:$B$29,$C33)=1,"Alone",LOOKUP(2,1/($B$4:$B$29=$C33),$D$4:$D$29))) -> Ron | G33: =Teams!AE95 -> 4.55 | I33: 5th | J33: =Teams!$AD98 -> 6 | K33: =VLOOKUP($J33,$B$4:$D$29,3,0) -> Rich B | L33: & | M33: =IF($B$4:$B$29=20,"#N/A",IF(COUNTIF($B$4:$B$29,$J33)=1,"Alone",LOOKUP(2,1/($B$4:$B$29=$J33),$D$4:$D$29))) -> Scott | N33: =Teams!AE98 -> 2.27
B34: 3rd | C34: =Teams!$AD96 -> 4 | D34: =VLOOKUP($C34,$B$4:$D$29,3,0) -> Tom | E34: & | F34: =IF($B$4:$B$29=20,"#N/A",IF(COUNTIF($B$4:$B$29,$C34)=1,"Alone",LOOKUP(2,1/($B$4:$B$29=$C34),$D$4:$D$29))) -> Alone | G34: =Teams!AE96 -> 3.99675 | I34: 6th | J34: =Teams!$AD99 -> 2 | K34: =VLOOKUP($J34,$B$4:$D$29,3,0) -> Armand | L34: & | M34: =IF($B$4:$B$29=20,"#N/A",IF(COUNTIF($B$4:$B$29,$J34)=1,"Alone",LOOKUP(2,1/($B$4:$B$29=$J34),$D$4:$D$29))) -> Steve S | N34: =Teams!AE99 -> 1.95

Sheet Teams
A2: =YTD!L15 -> Bantam | M2: Sort | N2: Copy | O2: Sort | Q2: =YTD!L19 -> Candlewood | AC2: Sort | AD2: Copy | AE2: Sort
A3: Team # | B3: Alone? | C3: Name | D3: Net Wt | F3: Team # | G3: Alone? | H3: Name | I3: Net Wt | K3: Totals | L3: Rank | M3: Rank | N3: Team # | O3: Tot Wt | Q3: Team # | R3: Alone? | S3: Name | T3: Net Wt | V3: Team # | W3: Alone? | X3: Name | Y3: Net Wt | AA3: Totals | AB3: Rank | AC3: Rank | AD3: Team # | AE3: Tot Wt
A4: =Bantam!B4 -> 2 | B4: =Bantam!C4 -> N | C4: =Bantam!D4 -> Armand | D4: =Bantam!N4 -> 4.44 | F4: 0 | G4: N | H4: X | I4: 0 | K4: =IF(F4=20,0,IF(F4=F5,I4+I5,IF(G4="Y",I4+I$30,0))) -> 0 | L4: =IF(K4>0,RANK(K4,K$4:K$29,0),"") ->  | M4: 1 | N4: 8 | O4: 11.367 | Q4: =Candlewood!B4 -> 0 | R4: =Candlewood!C4 -> N | S4: =Candlewood!D4 -> Armand | T4: =Candlewood!N4 -> 0 | V4: 0 | W4: N | X4: Armand | Y4: 0 | AA4: =IF(V4=20,0,IF(V4=V5,Y4+Y5,IF(W4="Y",Y4+Y$30,0))) -> 0 | AB4: =IF(AA4>0,RANK(AA4,AA$4:AA$29,0),"") ->  | AC4: 1 | AD4: 8 | AE4: 13.97
A5: =Bantam!B5 -> 1 | B5: =Bantam!C5 -> N | C5: =Bantam!D5 -> Bill | D5: =Bantam!N5 -> 7.77 | F5: 0 | G5: N | H5: X | I5: 0 | K5: =IF(F5=20,0,IF(F5=F6,I5+I6,IF(G5="Y",I5+I$30,0))) -> 0 | L5: =IF(K5>0,RANK(K5,K$4:K$29,0),"") ->  | M5: 2 | N5: 10 | O5: 9.61 | Q5: =Candlewood!B5 -> 6 | R5: =Candlewood!C5 -> N | S5: =Candlewood!D5 -> Bill | T5: =Candlewood!N5 -> 0 | V5: 0 | W5: N | X5: Jim B | Y5: 0 | AA5: =IF(V5=20,0,IF(V5=V6,Y5+Y6,IF(W5="Y",Y5+Y$30,0))) -> 0 | AB5: =IF(AA5>0,RANK(AA5,AA$4:AA$29,0),"") ->  | AC5: 2 | AD5: 1 | AE5: 7.05
A6: =Bantam!B6 -> 11 | B6: =Bantam!C6 -> N | C6: =Bantam!D6 -> Dean | D6: =Bantam!N6 -> 4.38 | F6: 0 | G6: N | H6: X | I6: 0 | K6: 0 | M6: 3 | N6: 3 | O6: 9.52 | Q6: =Candlewood!B6 -> 6 | R6: =Candlewood!C6 -> N | S6: =Candlewood!D6 -> Dean | T6: =Candlewood!N6 -> 2.67 | V6: 0 | W6: N | X6: Mike G | Y6: 0 | AA6: 0 | AC6: 3 | AD6: 4 | AE6: 6.07125
A7: =Bantam!B7 -> 7 | B7: =Bantam!C7 -> N | C7: =Bantam!D7 -> Jack | D7: =Bantam!N7 -> 1.74 | F7: 0 | G7: N | H7: X | I7: 0 | K7: 0 | M7: 4 | N7: 9 | O7: 9.21 | Q7: =Candlewood!B7 -> 9 | R7: =Candlewood!C7 -> N | S7: =Candlewood!D7 -> Jack | T7: =Candlewood!N7 -> 0 | V7: 0 | W7: N | X7: Tom | Y7: 0 | AA7: 0 | AC7: 4 | AD7: 2 | AE7: 4.91
A8: =Bantam!B8 -> 10 | B8: =Bantam!C8 -> N | C8: =Bantam!D8 -> Jason | D8: =Bantam!N8 -> 9.61 | F8: 0 | G8: N | H8: X | I8: 0 | K8: 0 | M8: 5 | N8: 11 | O8: 8.61 | Q8: =Candlewood!B8 -> 3 | R8: =Candlewood!C8 -> N | S8: =Candlewood!D8 -> Jason | T8: =Candlewood!N8 -> 0 | V8: 0 | W8: N | X8: X | Y8: 0 | AA8: 0 | AC8: 5 | AD8: 5 | AE8: 4.6
A9: =Bantam!B9 -> 8 | B9: =Bantam!C9 -> Y | C9: =Bantam!D9 -> Jeff | D9: =Bantam!N9 -> 8.56 | F9: 1 | G9: N | H9: Bill | I9: 7.77 | K9: 7.77 | L9: 7 | M9: 6 | N9: 6 | O9: 8.49 | Q9: =Candlewood!B9 -> 9 | R9: =Candlewood!C9 -> N | S9: =Candlewood!D9 -> Jeff | T9: =Candlewood!N9 -> 4.13 | V9: 0 | W9: N | X9: X | Y9: 0 | AA9: 0 | AC9: 6 | AD9: 9 | AE9: 4.13
A10: =Bantam!B10 -> 5 | B10: =Bantam!C10 -> N | C10: =Bantam!D10 -> Jim B | D10: =Bantam!N10 -> 3.08 | F10: 1 | G10: N | H10: Ron | I10: 0 | K10: 0 | M10: 7 | N10: 1 | O10: 7.77 | Q10: =Candlewood!B10 -> 0 | R10: =Candlewood!C10 -> N | S10: =Candlewood!D10 -> Jim B | T10: =Candlewood!N10 -> 0 | V10: 0 | W10: N | X10: X | Y10: 0 | AA10: 0 | AC10: 7 | AD10: 7 | AE10: 4.03
A11: =Bantam!B11 -> 4 | B11: =Bantam!C11 -> N | C11: =Bantam!D11 -> Joe | D11: =Bantam!N11 -> 0 | F11: 2 | G11: N | H11: Armand | I11: 4.44 | K11: 4.44 | L11: 9 | M11: 8 | N11: 5 | O11: 6.18 | Q11: =Candlewood!B11 -> 7 | R11: =Candlewood!C11 -> N | S11: =Candlewood!D11 -> Joe | T11: =Candlewood!N11 -> 2.13 | V11: 0 | W11: N | X11: X | Y11: 0 | AA11: 0 | AC11: 8 | AD11: 6 | AE11: 2.67
A12: =Bantam!B12 -> 2 | B12: =Bantam!C12 -> N | C12: =Bantam!D12 -> Kam | D12: =Bantam!N12 -> 0 | F12: 2 | G12: N | H12: Kam | I12: 0 | K12: 0 | M12: 9 | N12: 2 | O12: 4.44 | Q12: =Candlewood!B12 -> 3 | R12: =Candlewood!C12 -> N | S12: =Candlewood!D12 -> Kam | T12: =Candlewood!N12 -> 2.42 | V12: 0 | W12: N | X12: X | Y12: 0 | AA12: 0 | AC12: 9 | AD12: 3 | AE12: 2.42
A13: =Bantam!B13 -> 7 | B13: =Bantam!C13 -> N | C13: =Bantam!D13 -> Kevin | D13: =Bantam!N13 -> 0 | F13: 3 | G13: N | H13: Mike G | I13: 1.28 | K13: 9.52 | L13: 3 | M13: 10 | N13: 4 | O13: 4.24 | Q13: =Candlewood!B13 -> 7 | R13: =Candlewood!C13 -> N | S13: =Candlewood!D13 -> Kevin | T13: =Candlewood!N13 -> 1.9 | V13: 1 | W13: N | X13: Ron | Y13: 2.41 | AA13: 7.05 | AB13: 2 | AD13: 0 | AE13: 0
A14: =Bantam!B14 -> 10 | B14: =Bantam!C14 -> N | C14: =Bantam!D14 -> Mike M | D14: =Bantam!N14 -> 0 | F14: 3 | G14: N | H14: Steve D | I14: 8.24 | K14: 0 | M14: 11 | N14: 7 | O14: 1.74 | Q14: =Candlewood!B14 -> 5 | R14: =Candlewood!C14 -> N | S14: =Candlewood!D14 -> Mike M | T14: =Candlewood!N14 -> 1.72 | V14: 1 | W14: N | X14: Steve S | Y14: 4.64 | AA14: 0 | AD14: 0 | AE14: 0
A15: =Bantam!B15 -> 3 | B15: =Bantam!C15 -> N | C15: =Bantam!D15 -> Mike G | D15: =Bantam!N15 -> 1.28 | F15: 4 | G15: N | H15: Joe | I15: 0 | K15: 4.24 | L15: 10 | N15: 0 | O15: 0 | Q15: =Candlewood!B15 -> 0 | R15: =Candlewood!C15 -> N | S15: =Candlewood!D15 -> Mike G | T15: =Candlewood!N15 -> 0 | V15: 2 | W15: N | X15: Rich T | Y15: 2.35 | AA15: 4.91 | AB15: 4 | AD15: 0 | AE15: 0
A16: =Bantam!B16 -> 5 | B16: =Bantam!C16 -> N | C16: =Bantam!D16 -> Morrie | D16: =Bantam!N16 -> 3.1 | F16: 4 | G16: N | H16: Scott | I16: 4.24 | K16: 0 | N16: 0 | O16: 0 | Q16: =Candlewood!B16 -> 8 | R16: =Candlewood!C16 -> N | S16: =Candlewood!D16 -> Morrie | T16: =Candlewood!N16 -> 6.02 | V16: 2 | W16: N | X16: Steve D | Y16: 2.56 | AA16: 0 | AD16: 0 | AE16: 0
A17: =Bantam!B17 -> 11 | B17: =Bantam!C17 -> N | C17: =Bantam!D17 -> Pete | D17: =Bantam!N17 -> 4.23 | F17: 5 | G17: N | H17: Jim B | I17: 3.08 | K17: 6.18 | L17: 8 | N17: 0 | O17: 0 | Q17: =Candlewood!B17 -> 8 | R17: =Candlewood!C17 -> N | S17: =Candlewood!D17 -> Pete | T17: =Candlewood!N17 -> 7.95 | V17: 3 | W17: N | X17: Jason | Y17: 0 | AA17: 2.42 | AB17: 9 | AD17: 0 | AE17: 0
A18: =Bantam!B18 -> 9 | B18: =Bantam!C18 -> N | C18: =Bantam!D18 -> Rich B | D18: =Bantam!N18 -> 3.55 | F18: 5 | G18: N | H18: Morrie | I18: 3.1 | K18: 0 | N18: 0 | O18: 0 | Q18: =Candlewood!B18 -> 5 | R18: =Candlewood!C18 -> N | S18: =Candlewood!D18 -> Rich B | T18: =Candlewood!N18 -> 2.88 | V18: 3 | W18: N | X18: Kam | Y18: 2.42 | AA18: 0 | AD18: 0 | AE18: 0
A19: =Bantam!B19 -> 9 | B19: =Bantam!C19 -> N | C19: =Bantam!D19 -> Rich T | D19: =Bantam!N19 -> 5.66 | F19: 6 | G19: N | H19: Steve S | I19: 4.31 | K19: 8.49 | L19: 6 | N19: 0 | O19: 0 | Q19: =Candlewood!B19 -> 2 | R19: =Candlewood!C19 -> N | S19: =Candlewood!D19 -> Rich T | T19: =Candlewood!N19 -> 2.35 | V19: 4 | W19: Y | X19: Scott | Y19: 3.42 | AA19: 6.07125 | AB19: 3 | AD19: 0 | AE19: 0
A20: =Bantam!B20 -> 1 | B20: =Bantam!C20 -> N | C20: =Bantam!D20 -> Ron | D20: =Bantam!N20 -> 0 | F20: 6 | G20: N | H20: Tom | I20: 4.18 | K20: 0 | N20: 1 | O20: 0 | Q20: =Candlewood!B20 -> 1 | R20: =Candlewood!C20 -> N | S20: =Candlewood!D20 -> Ron | T20: =Candlewood!N20 -> 2.41 | V20: 5 | W20: N | X20: Mike M | Y20: 1.72 | AA20: 4.6 | AB20: 5 | AD20: 0 | AE20: 0
A21: =Bantam!B21 -> 4 | B21: =Bantam!C21 -> N | C21: =Bantam!D21 -> Scott | D21: =Bantam!N21 -> 4.24 | F21: 7 | G21: N | H21: Jack | I21: 1.74 | K21: 1.74 | L21: 11 | N21: 2 | O21: 0 | Q21: =Candlewood!B21 -> 4 | R21: =Candlewood!C21 -> Y | S21: =Candlewood!D21 -> Scott | T21: =Candlewood!N21 -> 3.42 | V21: 5 | W21: N | X21: Rich B | Y21: 2.88 | AA21: 0 | AD21: 0 | AE21: 0
A22: =Bantam!B22 -> 3 | B22: =Bantam!C22 -> N | C22: =Bantam!D22 -> Steve D | D22: =Bantam!N22 -> 8.24 | F22: 7 | G22: N | H22: Kevin | I22: 0 | K22: 0 | N22: 3 | O22: 0 | Q22: =Candlewood!B22 -> 2 | R22: =Candlewood!C22 -> N | S22: =Candlewood!D22 -> Steve D | T22: =Candlewood!N22 -> 2.56 | V22: 6 | W22: N | X22: Bill | Y22: 0 | AA22: 2.67 | AB22: 8 | AD22: 1 | AE22: 0
A23: =Bantam!B23 -> 6 | B23: =Bantam!C23 -> N | C23: =Bantam!D23 -> Steve S | D23: =Bantam!N23 -> 4.31 | F23: 8 | G23: Y | H23: Jeff | I23: 8.56 | K23: 11.367 | L23: 1 | N23: 4 | O23: 0 | Q23: =Candlewood!B23 -> 1 | R23: =Candlewood!C23 -> N | S23: =Candlewood!D23 -> Steve S | T23: =Candlewood!N23 -> 4.64 | V23: 6 | W23: N | X23: Dean | Y23: 2.67 | AA23: 0 | AD23: 2 | AE23: 0
A24: =Bantam!B24 -> 6 | B24: =Bantam!C24 -> N | C24: =Bantam!D24 -> Tom | D24: =Bantam!N24 -> 4.18 | F24: 9 | G24: N | H24: Rich B | I24: 3.55 | K24: 9.21 | L24: 4 | N24: 5 | O24: 0 | Q24: =Candlewood!B24 -> 0 | R24: =Candlewood!C24 -> N | S24: =Candlewood!D24 -> Tom | T24: =Candlewood!N24 -> 0 | V24: 7 | W24: N | X24: Joe | Y24: 2.13 | AA24: 4.03 | AB24: 7 | AD24: 3 | AE24: 0
A25: =Bantam!B25 -> 0 | B25: =Bantam!C25 -> N | C25: =Bantam!D25 -> X | D25: =Bantam!N25 -> 0 | F25: 9 | G25: N | H25: Rich T | I25: 5.66 | K25: 0 | N25: 6 | O25: 0 | Q25: =Candlewood!B25 -> 0 | R25: =Candlewood!C25 -> N | S25: =Candlewood!D25 -> X | T25: =Candlewood!N25 -> 0 | V25: 7 | W25: N | X25: Kevin | Y25: 1.9 | AA25: 0 | AD25: 5 | AE25: 0
A26: =Bantam!B26 -> 0 | B26: =Bantam!C26 -> N | C26: =Bantam!D26 -> X | D26: =Bantam!N26 -> 0 | F26: 10 | G26: N | H26: Jason | I26: 9.61 | K26: 9.61 | L26: 2 | N26: 7 | O26: 0 | Q26: =Candlewood!B26 -> 0 | R26: =Candlewood!C26 -> N | S26: =Candlewood!D26 -> X | T26: =Candlewood!N26 -> 0 | V26: 8 | W26: N | X26: Morrie | Y26: 6.02 | AA26: 13.97 | AB26: 1 | AD26: 6 | AE26: 0
A27: =Bantam!B27 -> 0 | B27: =Bantam!C27 -> N | C27: =Bantam!D27 -> X | D27: =Bantam!N27 -> 0 | F27: 10 | G27: N | H27: Mike | I27: 0 | K27: 0 | N27: 9 | O27: 0 | Q27: =Candlewood!B27 -> 0 | R27: =Candlewood!C27 -> N | S27: =Candlewood!D27 -> X | T27: =Candlewood!N27 -> 0 | V27: 8 | W27: N | X27: Pete | Y27: 7.95 | AA27: 0 | AD27: 7 | AE27: 0
A28: =Bantam!B28 -> 0 | B28: =Bantam!C28 -> N | C28: =Bantam!D28 -> X | D28: =Bantam!N28 -> 0 | F28: 11 | G28: N | H28: Dean | I28: 4.38 | K28: 8.61 | L28: 5 | N28: 10 | O28: 0 | Q28: =Candlewood!B28 -> 0 | R28: =Candlewood!C28 -> N | S28: =Candlewood!D28 -> X | T28: =Candlewood!N28 -> 0 | V28: 9 | W28: N | X28: Jack | Y28: 0 | AA28: 4.13 | AB28: 6 | AD28: 8 | AE28: 0
A29: =Bantam!B29 -> 0 | B29: =Bantam!C29 -> N | C29: =Bantam!D29 -> X | D29: =Bantam!N29 -> 0 | F29: 11 | G29: N | H29: Pete | I29: 4.23 | K29: 0 | N29: 11 | O29: 0 | Q29: =Candlewood!B29 -> 0 | R29: =Candlewood!C29 -> N | S29: =Candlewood!D29 -> X | T29: =Candlewood!N29 -> 0 | V29: 9 | W29: N | X29: Jeff | Y29: 4.13 | AA29: 0 | AD29: 9 | AE29: 0
B30: Macro | C30: CTL+M | D30: Teams | E30: 1 | H30: NB Avg | I30: =Bantam!Q31 -> 2.807 | R30: Macro | S30: CTL+Y | T30: Teams | U30: 5 | X30: NB Avg | Y30: =Candlewood!Q31 -> 2.65125
A32: =YTD!L16 -> Mashapaug | M32: Sort | N32: Copy | O32: Sort | Q32: =YTD!L20 -> Winchester | AC32: Sort | AD32: Copy | AE32: Sort
A33: Team # | B33: Alone? | C33: Name | D33: Net Wt | F33: Team # | G33: Alone? | H33: Name | I33: Net Wt | K33: Totals | L33: Rank | M33: Rank | N33: Team # | O33: Tot Wt | Q33: Team # | R33: Alone? | S33: Name | T33: Net Wt | V33: Team # | W33: Alone? | X33: Name | Y33: Net Wt | AA33: Totals | AB33: Rank | AC33: Rank | AD33: Team # | AE33: Tot Wt
A34: =Mashapaug!B4 -> 3 | B34: =Mashapaug!C4 -> Y | C34: =Mashapaug!D4 -> Armand | D34: =Mashapaug!N4 -> 11.39 | F34: 0 | G34: N | H34: Kam | I34: 0 | K34: =IF(F34=20,0,IF(F34=F35,I34+I35,IF(G34="Y",I34+I$60,0))) -> 0 | L34: =IF(K34>0,RANK(K34,K$34:K$59,0),"") ->  | M34: 1 | N34: 6 | O34: 18.9 | Q34: =Winchester!B4 -> 8 | R34: =Winchester!C4 -> N | S34: =Winchester!D4 -> Armand | T34: =Winchester!N4 -> 1.59 | V34: 0 | W34: N | X34: Jim B | Y34: 0 | AA34: =IF(V34=20,0,IF(V34=V35,Y34+Y35,IF(W34="Y",Y34+Y$60,0))) -> 0 | AB34: =IF(AA34>0,RANK(AA34,AA$34:AA$59,0),"") ->  | AC34: 1 | AD34: 1 | AE34: 10.9
A35: =Mashapaug!B5 -> 8 | B35: =Mashapaug!C5 -> N | C35: =Mashapaug!D5 -> Bill | D35: =Mashapaug!N5 -> 5.38 | F35: 0 | G35: N | H35: Morrie | I35: 0 | K35: =IF(F35=20,0,IF(F35=F36,I35+I36,IF(G35="Y",I35+I$60,0))) -> 0 | L35: =IF(K35>0,RANK(K35,K$34:K$59,0),"") ->  | M35: 2 | N35: 7 | O35: 17.77 | Q35: =Winchester!B5 -> 3 | R35: =Winchester!C5 -> N | S35: =Winchester!D5 -> Bill | T35: =Winchester!N5 -> 1.58 | V35: 0 | W35: N | X35: Kevin | Y35: 0 | AA35: =IF(V35=20,0,IF(V35=V36,Y35+Y36,IF(W35="Y",Y35+$Y$60,0))) -> 0 | AB35: =IF(AA35>0,RANK(AA35,AA$34:AA$59,0),"") ->  | AC35: 2 | AD35: 7 | AE35: 10.39
A36: =Mashapaug!B6 -> 7 | B36: =Mashapaug!C6 -> N | C36: =Mashapaug!D6 -> Dean | D36: =Mashapaug!N6 -> 9.49 | F36: 0 | G36: N | H36: X | I36: 0 | K36: 0 | M36: 3 | N36: 3 | O36: 17.11333333 | Q36: =Winchester!B6 -> 10 | R36: =Winchester!C6 -> N | S36: =Winchester!D6 -> Dean | T36: =Winchester!N6 -> 4.85 | V36: 0 | W36: N | X36: X | Y36: 0 | AA36: 0 | AC36: 3 | AD36: 6 | AE36: 8.63
A37: =Mashapaug!B7 -> 10 | B37: =Mashapaug!C7 -> N | C37: =Mashapaug!D7 -> Jack | D37: =Mashapaug!N7 -> 5.29 | F37: 0 | G37: N | H37: X | I37: 0 | K37: 0 | M37: 4 | N37: 9 | O37: 17.03 | Q37: =Winchester!B7 -> 10 | R37: =Winchester!C7 -> N | S37: =Winchester!D7 -> Jack | T37: =Winchester!N7 -> 1.05 | V37: 0 | W37: N | X37: X | Y37: 0 | AA37: 0 | AC37: 4 | AD37: 8 | AE37: 7.35
A38: =Mashapaug!B8 -> 8 | B38: =Mashapaug!C8 -> N | C38: =Mashapaug!D8 -> Jason | D38: =Mashapaug!N8 -> 11.17 | F38: 0 | G38: N | H38: X | I38: 0 | K38: 0 | M38: 5 | N38: 8 | O38: 16.55 | Q38: =Winchester!B8 -> 6 | R38: =Winchester!C8 -> N | S38: =Winchester!D8 -> Jason | T38: =Winchester!N8 -> 3.58 | V38: 0 | W38: N | X38: X | Y38: 0 | AA38: 0 | AC38: 5 | AD38: 10 | AE38: 5.9
A39: =Mashapaug!B9 -> 5 | B39: =Mashapaug!C9 -> N | C39: =Mashapaug!D9 -> Jeff | D39: =Mashapaug!N9 -> 9.19 | F39: 0 | G39: N | H39: X | I39: 0 | K39: 0 | M39: 6 | N39: 2 | O39: 12.16 | Q39: =Winchester!B9 -> 2 | R39: =Winchester!C9 -> N | S39: =Winchester!D9 -> Jeff | T39: =Winchester!N9 -> 4.64 | V39: 0 | W39: N | X39: X | Y39: 0 | AA39: 0 | AC39: 6 | AD39: 2 | AE39: 4.64
A40: =Mashapaug!B10 -> 9 | B40: =Mashapaug!C10 -> N | C40: =Mashapaug!D10 -> Jim B | D40: =Mashapaug!N10 -> 7.55 | F40: 0 | G40: N | H40: X | I40: 0 | K40: 0 | M40: 7 | N40: 1 | O40: 11.53 | Q40: =Winchester!B10 -> 0 | R40: =Winchester!C10 -> N | S40: =Winchester!D10 -> Jim B | T40: =Winchester!N10 -> 0 | V40: 0 | W40: N | X40: X | Y40: 0 | AA40: 0 | AC40: 7 | AD40: 4 | AE40: 3.513333333
A41: =Mashapaug!B11 -> 1 | B41: =Mashapaug!C11 -> N | C41: =Mashapaug!D11 -> Joe | D41: =Mashapaug!N11 -> 3.7 | F41: 1 | G41: N | H41: Joe | I41: 3.7 | K41: 11.53 | L41: 7 | M41: 8 | N41: 5 | O41: 11.09 | Q41: =Winchester!B11 -> 5 | R41: =Winchester!C11 -> N | S41: =Winchester!D11 -> Joe | T41: =Winchester!N11 -> 0 | V41: 1 | W41: N | X41: Pete | Y41: 5.03 | AA41: 10.9 | AB41: 1 | AC41: 8 | AD41: 3 | AE41: 2.77
A42: =Mashapaug!B12 -> 0 | B42: =Mashapaug!C12 -> N | C42: =Mashapaug!D12 -> Kam | D42: =Mashapaug!N12 -> 0 | F42: 1 | G42: N | H42: Tom | I42: 7.83 | K42: 0 | M42: 9 | N42: 4 | O42: 11.07 | Q42: =Winchester!B12 -> 9 | R42: =Winchester!C12 -> N | S42: =Winchester!D12 -> Kam | T42: =Winchester!N12 -> 0 | V42: 1 | W42: N | X42: Steve D | Y42: 5.87 | AA42: 0 | AC42: 9 | AD42: 9 | AE42: 1.64
A43: =Mashapaug!B13 -> 2 | B43: =Mashapaug!C13 -> N | C43: =Mashapaug!D13 -> Kevin | D43: =Mashapaug!N13 -> 7.11 | F43: 2 | G43: N | H43: Kevin | I43: 7.11 | K43: 12.16 | L43: 6 | M43: 10 | N43: 10 | O43: 8.23 | Q43: =Winchester!B13 -> 0 | R43: =Winchester!C13 -> N | S43: =Winchester!D13 -> Kevin | T43: =Winchester!N13 -> 0 | V43: 2 | W43: N | X43: Jeff | Y43: 4.64 | AA43: 4.64 | AB43: 6 | AD43: 0 | AE43: 0
A44: =Mashapaug!B14 -> 5 | B44: =Mashapaug!C14 -> N | C44: =Mashapaug!D14 -> Mike M | D44: =Mashapaug!N14 -> 1.9 | F44: 2 | G44: N | H44: Mike G | I44: 5.05 | K44: 0 | N44: 0 | O44: 0 | Q44: =Winchester!B14 -> 2 | R44: =Winchester!C14 -> N | S44: =Winchester!D14 -> Mike M | T44: =Winchester!N14 -> 0 | V44: 2 | W44: N | X44: Mike M | Y44: 0 | AA44: 0 | AD44: 0 | AE44: 0
A45: =Mashapaug!B15 -> 2 | B45: =Mashapaug!C15 -> N | C45: =Mashapaug!D15 -> Mike G | D45: =Mashapaug!N15 -> 5.05 | F45: 3 | G45: Y | H45: Armand | I45: 11.39 | K45: 17.11333333 | L45: 3 | N45: 0 | O45: 0 | Q45: =Winchester!B15 -> 8 | R45: =Winchester!C15 -> N | S45: =Winchester!D15 -> Mike G | T45: =Winchester!N15 -> 5.76 | V45: 3 | W45: N | X45: Bill | Y45: 1.58 | AA45: 2.77 | AB45: 8 | AD45: 0 | AE45: 0
A46: =Mashapaug!B16 -> 0 | B46: =Mashapaug!C16 -> N | C46: =Mashapaug!D16 -> Morrie | D46: =Mashapaug!N16 -> 0 | F46: 4 | G46: N | H46: Rich T | I46: 6.04 | K46: 11.07 | L46: 9 | N46: 0 | O46: 0 | Q46: =Winchester!B16 -> 9 | R46: =Winchester!C16 -> N | S46: =Winchester!D16 -> Morrie | T46: =Winchester!N16 -> 1.64 | V46: 3 | W46: N | X46: Rich B | Y46: 1.19 | AA46: 0 | AD46: 0 | AE46: 0
A47: =Mashapaug!B17 -> 6 | B47: =Mashapaug!C17 -> N | C47: =Mashapaug!D17 -> Pete | D47: =Mashapaug!N17 -> 8.32 | F47: 4 | G47: N | H47: Scott | I47: 5.03 | K47: 0 | N47: 0 | O47: 0 | Q47: =Winchester!B17 -> 1 | R47: =Winchester!C17 -> N | S47: =Winchester!D17 -> Pete | T47: =Winchester!N17 -> 5.03 | V47: 4 | W47: Y | X47: Tom | Y47: 0.74 | AA47: 3.513333333 | AB47: 7 | AD47: 0 | AE47: 0
A48: =Mashapaug!B18 -> 6 | B48: =Mashapaug!C18 -> N | C48: =Mashapaug!D18 -> Rich B | D48: =Mashapaug!N18 -> 10.58 | F48: 5 | G48: N | H48: Jeff | I48: 9.19 | K48: 11.09 | L48: 8 | N48: 0 | O48: 0 | Q48: =Winchester!B18 -> 3 | R48: =Winchester!C18 -> N | S48: =Winchester!D18 -> Rich B | T48: =Winchester!N18 -> 1.19 | V48: 5 | W48: N | X48: Joe | Y48: 0 | AA48: 0 | AD48: 0 | AE48: 0
A49: =Mashapaug!B19 -> 4 | B49: =Mashapaug!C19 -> N | C49: =Mashapaug!D19 -> Rich T | D49: =Mashapaug!N19 -> 6.04 | F49: 5 | G49: N | H49: Mike M | I49: 1.9 | K49: 0 | N49: 0 | O49: 0 | Q49: =Winchester!B19 -> 7 | R49: =Winchester!C19 -> N | S49: =Winchester!D19 -> Rich T | T49: =Winchester!N19 -> 3.9 | V49: 5 | W49: N | X49: Ron | Y49: 0 | AA49: 0 | AD49: 0 | AE49: 0
A50: =Mashapaug!B20 -> 10 | B50: =Mashapaug!C20 -> N | C50: =Mashapaug!D20 -> Ron | D50: =Mashapaug!N20 -> 2.94 | F50: 6 | G50: N | H50: Pete | I50: 8.32 | K50: 18.9 | L50: 1 | N50: 0 | O50: 0 | Q50: =Winchester!B20 -> 5 | R50: =Winchester!C20 -> N | S50: =Winchester!D20 -> Ron | T50: =Winchester!N20 -> 0 | V50: 6 | W50: N | X50: Jason | Y50: 3.58 | AA50: 8.63 | AB50: 3 | AD50: 1 | AE50: 0
A51: =Mashapaug!B21 -> 4 | B51: =Mashapaug!C21 -> N | C51: =Mashapaug!D21 -> Scott | D51: =Mashapaug!N21 -> 5.03 | F51: 6 | G51: N | H51: Rich B | I51: 10.58 | K51: 0 | N51: 1 | O51: 0 | Q51: =Winchester!B21 -> 7 | R51: =Winchester!C21 -> N | S51: =Winchester!D21 -> Scott | T51: =Winchester!N21 -> 6.49 | V51: 6 | W51: N | X51: Steve S | Y51: 5.05 | AA51: 0 | AD51: 2 | AE51: 0
A52: =Mashapaug!B22 -> 9 | B52: =Mashapaug!C22 -> N | C52: =Mashapaug!D22 -> Steve D | D52: =Mashapaug!N22 -> 9.48 | F52: 7 | G52: N | H52: Dean | I52: 9.49 | K52: 17.77 | L52: 2 | N52: 2 | O52: 0 | Q52: =Winchester!B22 -> 1 | R52: =Winchester!C22 -> N | S52: =Winchester!D22 -> Steve D | T52: =Winchester!N22 -> 5.87 | V52: 7 | W52: N | X52: Rich T | Y52: 3.9 | AA52: 10.39 | AB52: 2 | AD52: 3 | AE52: 0
A53: =Mashapaug!B23 -> 7 | B53: =Mashapaug!C23 -> N | C53: =Mashapaug!D23 -> Steve S | D53: =Mashapaug!N23 -> 8.28 | F53: 7 | G53: N | H53: Steve S | I53: 8.28 | K53: 0 | N53: 4 | O53: 0 | Q53: =Winchester!B23 -> 6 | R53: =Winchester!C23 -> N | S53: =Winchester!D23 -> Steve S | T53: =Winchester!N23 -> 5.05 | V53: 7 | W53: N | X53: Scott | Y53: 6.49 | AA53: 0 | AD53: 5 | AE53: 0
A54: =Mashapaug!B24 -> 1 | B54: =Mashapaug!C24 -> N | C54: =Mashapaug!D24 -> Tom | D54: =Mashapaug!N24 -> 7.83 | F54: 8 | G54: N | H54: Bill | I54: 5.38 | K54: 16.55 | L54: 5 | N54: 5 | O54: 0 | Q54: =Winchester!B24 -> 4 | R54: =Winchester!C24 -> Y | S54: =Winchester!D24 -> Tom | T54: =Winchester!N24 -> 0.74 | V54: 8 | W54: N | X54: Armand | Y54: 1.59 | AA54: 7.35 | AB54: 4 | AD54: 5 | AE54: 0
A55: =Mashapaug!B25 -> 0 | B55: =Mashapaug!C25 -> N | C55: =Mashapaug!D25 -> X | D55: =Mashapaug!N25 -> 0 | F55: 8 | G55: N | H55: Jason | I55: 11.17 | K55: 0 | N55: 6 | O55: 0 | Q55: =Winchester!B25 -> 0 | R55: =Winchester!C25 -> N | S55: =Winchester!D25 -> X | T55: =Winchester!N25 -> 0 | V55: 8 | W55: N | X55: Mike G | Y55: 5.76 | AA55: 0 | AD55: 6 | AE55: 0
A56: =Mashapaug!B26 -> 0 | B56: =Mashapaug!C26 -> N | C56: =Mashapaug!D26 -> X | D56: =Mashapaug!N26 -> 0 | F56: 9 | G56: N | H56: Jim B | I56: 7.55 | K56: 17.03 | L56: 4 | N56: 7 | O56: 0 | Q56: =Winchester!B26 -> 0 | R56: =Winchester!C26 -> N | S56: =Winchester!D26 -> X | T56: =Winchester!N26 -> 0 | V56: 9 | W56: N | X56: Kam | Y56: 0 | AA56: 1.64 | AB56: 9 | AD56: 7 | AE56: 0
A57: =Mashapaug!B27 -> 0 | B57: =Mashapaug!C27 -> N | C57: =Mashapaug!D27 -> X | D57: =Mashapaug!N27 -> 0 | F57: 9 | G57: N | H57: Steve D | I57: 9.48 | K57: 0 | N57: 8 | O57: 0 | Q57: =Winchester!B27 -> 0 | R57: =Winchester!C27 -> N | S57: =Winchester!D27 -> X | T57: =Winchester!N27 -> 0 | V57: 9 | W57: N | X57: Morrie | Y57: 1.64 | AA57: 0 | AD57: 8 | AE57: 0
A58: =Mashapaug!B28 -> 0 | B58: =Mashapaug!C28 -> N | C58: =Mashapaug!D28 -> X | D58: =Mashapaug!N28 -> 0 | F58: 10 | G58: N | H58: Jack | I58: 5.29 | K58: 8.23 | L58: 10 | N58: 9 | O58: 0 | Q58: =Winchester!B28 -> 0 | R58: =Winchester!C28 -> N | S58: =Winchester!D28 -> X | T58: =Winchester!N28 -> 0 | V58: 10 | W58: N | X58: Dean | Y58: 4.85 | AA58: 5.9 | AB58: 5 | AD58: 9 | AE58: 0
A59: =Mashapaug!B29 -> 0 | B59: =Mashapaug!C29 -> N | C59: =Mashapaug!D29 -> X | D59: =Mashapaug!N29 -> 0 | F59: 10 | G59: N | H59: Ron | I59: 2.94 | K59: 0 | N59: 10 | O59: 0 | Q59: =Winchester!B29 -> 0 | R59: =Winchester!C29 -> N | S59: =Winchester!D29 -> X | T59: =Winchester!N29 -> 0 | V59: 10 | W59: N | X59: Jack | Y59: 1.05 | AA59: 0 | AD59: 10 | AE59: 0
B60: Macro | C60: CTL+D | D60: Teams | E60: 2 | H60: NB Avg | I60: =Mashapaug!Q31 -> 5.723333333 | R60: Macro | S60: CTL+T | T60: Teams | U60: 6 | X60: NB Avg | Y60: =Winchester!Q31 -> 2.773333333
A62: =YTD!L17 -> Coventry | M62: Sort | N62: Copy | O62: Sort | Q62: =YTD!L21 -> Mansfield | AC62: Sort | AD62: Copy | AE62: Sort
A63: Team # | B63: Alone? | C63: Name | D63: Net Wt | F63: Team # | G63: Alone? | H63: Name | I63: Net Wt | K63: Totals | L63: Rank | M63: Rank | N63: Team # | O63: Tot Wt | Q63: Team # | R63: Alone? | S63: Name | T63: Net Wt | V63: Team # | W63: Alone? | X63: Name | Y63: Net Wt | AA63: Totals | AB63: Rank | AC63: Rank | AD63: Team # | AE63: Tot Wt
A64: =Coventry!B4 -> 5 | B64: =Coventry!C4 -> Y | C64: =Coventry!D4 -> Armand | D64: =Coventry!N4 -> 2.29 | F64: 0 | G64: N | H64: Jim B | I64: 0 | K64: =IF(F64=20,0,IF(F64=F65,I64+I65,IF(G64="Y",I64+I$90,0))) -> 0 | L64: =IF(K64>0,RANK(K64,K$64:K$89,0),"") ->  | M64: 1 | N64: 10 | O64: 15.91 | Q64: =Mansfield!B4 -> 9 | R64: =Mansfield!C4 -> N | S64: =Mansfield!D4 -> Armand | T64: =Mansfield!N4 -> 1.93 | V64: 0 | W64: N | X64: X | Y64: 0 | AA64: =IF(V64=20,0,IF(V64=V65,Y64+Y65,IF(W64="Y",Y64+Y$90,0))) -> 0 | AB64: =IF(AA64>0,RANK(AA64,AA$64:AA$89,0),"") ->  | AC64: 1 | AD64: 5 | AE64: 15.08
A65: =Coventry!B5 -> 3 | B65: =Coventry!C5 -> N | C65: =Coventry!D5 -> Bill | D65: =Coventry!N5 -> 1.25 | F65: 0 | G65: N | H65: Kam | I65: 0 | K65: =IF(F65=20,0,IF(F65=F66,I65+I66,IF(G65="Y",I65+I$90,0))) -> 0 | L65: =IF(K65>0,RANK(K65,K$64:K$89,0),"") ->  | M65: 2 | N65: 9 | O65: 8.62 | Q65: =Mansfield!B5 -> 3 | R65: =Mansfield!C5 -> N | S65: =Mansfield!D5 -> Bill | T65: =Mansfield!N5 -> 3.81 | V65: 0 | W65: N | X65: X | Y65: 0 | AA65: =IF(V65=20,0,IF(V65=V66,Y65+Y66,IF(W65="Y",Y65+Y$90,0))) -> 0 | AB65: =IF(AA65>0,RANK(AA65,AA$64:AA$89,0),"") ->  | AC65: 2 | AD65: 3 | AE65: 9.98
A66: =Coventry!B6 -> 6 | B66: =Coventry!C6 -> Y | C66: =Coventry!D6 -> Dean | D66: =Coventry!N6 -> 0.89 | F66: 0 | G66: N | H66: Mike M | I66: 0 | K66: 0 | M66: 3 | N66: 1 | O66: 6.395 | Q66: =Mansfield!B6 -> 2 | R66: =Mansfield!C6 -> N | S66: =Mansfield!D6 -> Dean | T66: =Mansfield!N6 -> 5.49 | V66: 0 | W66: N | X66: X | Y66: 0 | AA66: 0 | AC66: 3 | AD66: 6 | AE66: 9.15
A67: =Coventry!B7 -> 9 | B67: =Coventry!C7 -> N | C67: =Coventry!D7 -> Jack | D67: =Coventry!N7 -> 3.55 | F67: 0 | G67: N | H67: Mike G | I67: 0 | K67: 0 | M67: 4 | N67: 8 | O67: 6.16 | Q67: =Mansfield!B7 -> 11 | R67: =Mansfield!C7 -> N | S67: =Mansfield!D7 -> Jack | T67: =Mansfield!N7 -> 0 | V67: 0 | W67: N | X67: X | Y67: 0 | AA67: 0 | AC67: 4 | AD67: 11 | AE67: 7.36
A68: =Coventry!B8 -> 9 | B68: =Coventry!C8 -> N | C68: =Coventry!D8 -> Jason | D68: =Coventry!N8 -> 5.07 | F68: 0 | G68: N | H68: Ron | I68: 0 | K68: 0 | M68: 5 | N68: 2 | O68: 5.155 | Q68: =Mansfield!B8 -> 4 | R68: =Mansfield!C8 -> N | S68: =Mansfield!D8 -> Jason | T68: =Mansfield!N8 -> 5.57 | V68: 0 | W68: N | X68: X | Y68: 0 | AA68: 0 | AC68: 5 | AD68: 1 | AE68: 6.59
A69: =Coventry!B9 -> 3 | B69: =Coventry!C9 -> N | C69: =Coventry!D9 -> Jeff | D69: =Coventry!N9 -> 3.07 | F69: 0 | G69: N | H69: X | I69: 0 | K69: 0 | M69: 6 | N69: 3 | O69: 4.32 | Q69: =Mansfield!B9 -> 8 | R69: =Mansfield!C9 -> N | S69: =Mansfield!D9 -> Jeff | T69: =Mansfield!N9 -> 5.53 | V69: 1 | W69: N | X69: Kevin | Y69: 2.01 | AA69: 6.59 | AB69: 5 | AC69: 6 | AD69: 4 | AE69: 5.57
A70: =Coventry!B10 -> 0 | B70: =Coventry!C10 -> N | C70: =Coventry!D10 -> Jim B | D70: =Coventry!N10 -> 0 | F70: 0 | G70: N | H70: X | I70: 0 | K70: 0 | M70: 7 | N70: 5 | O70: 3.965 | Q70: =Mansfield!B10 -> 9 | R70: =Mansfield!C10 -> N | S70: =Mansfield!D10 -> Jim B | T70: =Mansfield!N10 -> 2.21 | V70: 1 | W70: N | X70: Pete | Y70: 4.58 | AA70: 0 | AC70: 7 | AD70: 8 | AE70: 5.53
A71: =Coventry!B11 -> 8 | B71: =Coventry!C11 -> N | C71: =Coventry!D11 -> Joe | D71: =Coventry!N11 -> 0.8 | F71: 0 | G71: N | H71: X | I71: 0 | K71: 0 | M71: 8 | N71: 6 | O71: 2.565 | Q71: =Mansfield!B11 -> 4 | R71: =Mansfield!C11 -> N | S71: =Mansfield!D11 -> Joe | T71: =Mansfield!N11 -> 0 | V71: 2 | W71: N | X71: Dean | Y71: 5.49 | AA71: 5.49 | AB71: 8 | AC71: 8 | AD71: 2 | AE71: 5.49
A72: =Coventry!B12 -> 0 | B72: =Coventry!C12 -> N | C72: =Coventry!D12 -> Kam | D72: =Coventry!N12 -> 0 | F72: 0 | G72: N | H72: X | I72: 0 | K72: 0 | M72: 9 | N72: 4 | O72: 1.78 | Q72: =Mansfield!B12 -> 7 | R72: =Mansfield!C12 -> N | S72: =Mansfield!D12 -> Kam | T72: =Mansfield!N12 -> 0 | V72: 2 | W72: N | X72: Mike G | Y72: 0 | AA72: 0 | AC72: 9 | AD72: 9 | AE72: 4.14
A73: =Coventry!B13 -> 1 | B73: =Coventry!C13 -> Y | C73: =Coventry!D13 -> Kevin | D73: =Coventry!N13 -> 4.72 | F73: 0 | G73: N | H73: X | I73: 0 | K73: 0 | N73: 0 | O73: 0 | Q73: =Mansfield!B13 -> 1 | R73: =Mansfield!C13 -> N | S73: =Mansfield!D13 -> Kevin | T73: =Mansfield!N13 -> 2.01 | V73: 3 | W73: N | X73: Bill | Y73: 3.81 | AA73: 9.98 | AB73: 2 | AC73: 10 | AD73: 7 | AE73: 2.48
A74: =Coventry!B14 -> 0 | B74: =Coventry!C14 -> N | C74: =Coventry!D14 -> Mike M | D74: =Coventry!N14 -> 0 | F74: 1 | G74: Y | H74: Kevin | I74: 4.72 | K74: 6.395 | L74: 3 | N74: 0 | O74: 0 | Q74: =Mansfield!B14 -> 5 | R74: =Mansfield!C14 -> N | S74: =Mansfield!D14 -> Mike M | T74: =Mansfield!N14 -> 8.98 | V74: 3 | W74: N | X74: Rich T | Y74: 6.17 | AA74: 0 | AC74: 11 | AD74: 10 | AE74: 2.213
A75: =Coventry!B15 -> 0 | B75: =Coventry!C15 -> N | C75: =Coventry!D15 -> Mike G | D75: =Coventry!N15 -> 0 | F75: 2 | G75: Y | H75: Rich B | I75: 3.48 | K75: 5.155 | L75: 5 | N75: 0 | O75: 0 | Q75: =Mansfield!B15 -> 2 | R75: =Mansfield!C15 -> N | S75: =Mansfield!D15 -> Mike G | T75: =Mansfield!N15 -> 0 | V75: 4 | W75: N | X75: Jason | Y75: 5.57 | AA75: 5.57 | AB75: 6 | AD75: 0 | AE75: 0
A76: =Coventry!B16 -> 8 | B76: =Coventry!C16 -> N | C76: =Coventry!D16 -> Morrie | D76: =Coventry!N16 -> 5.36 | F76: 3 | G76: N | H76: Bill | I76: 1.25 | K76: 4.32 | L76: 6 | N76: 0 | O76: 0 | Q76: =Mansfield!B16 -> 10 | R76: =Mansfield!C16 -> Y | S76: =Mansfield!D16 -> Morrie | T76: =Mansfield!N16 -> 0 | V76: 4 | W76: N | X76: Joe | Y76: 0 | AA76: 0 | AD76: 0 | AE76: 0
A77: =Coventry!B17 -> 7 | B77: =Coventry!C17 -> N | C77: =Coventry!D17 -> Pete | D77: =Coventry!N17 -> 0 | F77: 3 | G77: N | H77: Jeff | I77: 3.07 | K77: 0 | N77: 0 | O77: 0 | Q77: =Mansfield!B17 -> 1 | R77: =Mansfield!C17 -> N | S77: =Mansfield!D17 -> Pete | T77: =Mansfield!N17 -> 4.58 | V77: 5 | W77: N | X77: Mike M | Y77: 8.98 | AA77: 15.08 | AB77: 1 | AD77: 0 | AE77: 0
A78: =Coventry!B18 -> 2 | B78: =Coventry!C18 -> Y | C78: =Coventry!D18 -> Rich B | D78: =Coventry!N18 -> 3.48 | F78: 4 | G78: N | H78: Rich T | I78: 1.78 | K78: 1.78 | L78: 9 | N78: 0 | O78: 0 | Q78: =Mansfield!B18 -> 11 | R78: =Mansfield!C18 -> N | S78: =Mansfield!D18 -> Rich B | T78: =Mansfield!N18 -> 7.36 | V78: 5 | W78: N | X78: Tom | Y78: 6.1 | AA78: 0 | AD78: 0 | AE78: 0
A79: =Coventry!B19 -> 4 | B79: =Coventry!C19 -> N | C79: =Coventry!D19 -> Rich T | D79: =Coventry!N19 -> 1.78 | F79: 4 | G79: N | H79: Tom | I79: 0 | K79: 0 | N79: 0 | O79: 0 | Q79: =Mansfield!B19 -> 3 | R79: =Mansfield!C19 -> N | S79: =Mansfield!D19 -> Rich T | T79: =Mansfield!N19 -> 6.17 | V79: 6 | W79: N | X79: Ron | Y79: 6.6 | AA79: 9.15 | AB79: 3 | AD79: 0 | AE79: 0
A80: =Coventry!B20 -> 0 | B80: =Coventry!C20 -> N | C80: =Coventry!D20 -> Ron | D80: =Coventry!N20 -> 0 | F80: 5 | G80: Y | H80: Armand | I80: 2.29 | K80: 3.965 | L80: 7 | N80: 0 | O80: 0 | Q80: =Mansfield!B20 -> 6 | R80: =Mansfield!C20 -> N | S80: =Mansfield!D20 -> Ron | T80: =Mansfield!N20 -> 6.6 | V80: 6 | W80: N | X80: Scott | Y80: 2.55 | AA80: 0 | AD80: 1 | AE80: 0
A81: =Coventry!B21 -> 7 | B81: =Coventry!C21 -> N | C81: =Coventry!D21 -> Scott | D81: =Coventry!N21 -> 0 | F81: 6 | G81: Y | H81: Dean | I81: 0.89 | K81: 2.565 | L81: 8 | N81: 0 | O81: 0 | Q81: =Mansfield!B21 -> 6 | R81: =Mansfield!C21 -> N | S81: =Mansfield!D21 -> Scott | T81: =Mansfield!N21 -> 2.55 | V81: 7 | W81: N | X81: Kam | Y81: 0 | AA81: 2.48 | AB81: 10 | AD81: 2 | AE81: 0
A82: =Coventry!B22 -> 10 | B82: =Coventry!C22 -> N | C82: =Coventry!D22 -> Steve D | D82: =Coventry!N22 -> 13.24 | F82: 7 | G82: N | H82: Pete | I82: 0 | K82: 0 | N82: 0 | O82: 0 | Q82: =Mansfield!B22 -> 7 | R82: =Mansfield!C22 -> N | S82: =Mansfield!D22 -> Steve D | T82: =Mansfield!N22 -> 2.48 | V82: 7 | W82: N | X82: Steve D | Y82: 2.48 | AA82: 0 | AD82: 3 | AE82: 0
A83: =Coventry!B23 -> 10 | B83: =Coventry!C23 -> N | C83: =Coventry!D23 -> Steve S | D83: =Coventry!N23 -> 2.67 | F83: 7 | G83: N | H83: Scott | I83: 0 | K83: 0 | N83: 3 | O83: 0 | Q83: =Mansfield!B23 -> 8 | R83: =Mansfield!C23 -> N | S83: =Mansfield!D23 -> Steve S | T83: =Mansfield!N23 -> 0 | V83: 8 | W83: N | X83: Jeff | Y83: 5.53 | AA83: 5.53 | AB83: 7 | AD83: 4 | AE83: 0
A84: =Coventry!B24 -> 4 | B84: =Coventry!C24 -> N | C84: =Coventry!D24 -> Tom | D84: =Coventry!N24 -> 0 | F84: 8 | G84: N | H84: Joe | I84: 0.8 | K84: 6.16 | L84: 4 | N84: 4 | O84: 0 | Q84: =Mansfield!B24 -> 5 | R84: =Mansfield!C24 -> N | S84: =Mansfield!D24 -> Tom | T84: =Mansfield!N24 -> 6.1 | V84: 8 | W84: N | X84: Steve S | Y84: 0 | AA84: 0 | AD84: 5 | AE84: 0
A85: =Coventry!B25 -> 0 | B85: =Coventry!C25 -> N | C85: =Coventry!D25 -> X | D85: =Coventry!N25 -> 0 | F85: 8 | G85: N | H85: Morrie | I85: 5.36 | K85: 0 | N85: 7 | O85: 0 | Q85: =Mansfield!B25 -> 0 | R85: =Mansfield!C25 -> N | S85: =Mansfield!D25 -> X | T85: =Mansfield!N25 -> 0 | V85: 9 | W85: N | X85: Armand | Y85: 1.93 | AA85: 4.14 | AB85: 9 | AD85: 6 | AE85: 0
A86: =Coventry!B26 -> 0 | B86: =Coventry!C26 -> N | C86: =Coventry!D26 -> X | D86: =Coventry!N26 -> 0 | F86: 9 | G86: N | H86: Jack | I86: 3.55 | K86: 8.62 | L86: 2 | N86: 7 | O86: 0 | Q86: =Mansfield!B26 -> 0 | R86: =Mansfield!C26 -> N | S86: =Mansfield!D26 -> X | T86: =Mansfield!N26 -> 0 | V86: 9 | W86: N | X86: Jim B | Y86: 2.21 | AA86: 0 | AD86: 7 | AE86: 0
A87: =Coventry!B27 -> 0 | B87: =Coventry!C27 -> N | C87: =Coventry!D27 -> X | D87: =Coventry!N27 -> 0 | F87: 9 | G87: N | H87: Jason | I87: 5.07 | K87: 0 | N87: 8 | O87: 0 | Q87: =Mansfield!B27 -> 0 | R87: =Mansfield!C27 -> N | S87: =Mansfield!D27 -> X | T87: =Mansfield!N27 -> 0 | V87: 10 | W87: Y | X87: Morrie | Y87: 0 | AA87: 2.213 | AB87: 11 | AD87: 8 | AE87: 0
A88: =Coventry!B28 -> 0 | B88: =Coventry!C28 -> N | C88: =Coventry!D28 -> X | D88: =Coventry!N28 -> 0 | F88: 10 | G88: N | H88: Steve D | I88: 13.24 | K88: 15.91 | L88: 1 | N88: 9 | O88: 0 | Q88: =Mansfield!B28 -> 0 | R88: =Mansfield!C28 -> N | S88: =Mansfield!D28 -> X | T88: =Mansfield!N28 -> 0 | V88: 11 | W88: N | X88: Jack | Y88: 0 | AA88: 7.36 | AB88: 4 | AD88: 9 | AE88: 0
A89: =Coventry!B29 -> 0 | B89: =Coventry!C29 -> N | C89: =Coventry!D29 -> X | D89: =Coventry!N29 -> 0 | F89: 10 | G89: N | H89: Steve S | I89: 2.67 | K89: 0 | N89: 10 | O89: 0 | Q89: =Mansfield!B29 -> 0 | R89: =Mansfield!C29 -> N | S89: =Mansfield!D29 -> X | T89: =Mansfield!N29 -> 0 | V89: 11 | W89: N | X89: Rich B | Y89: 7.36 | AA89: 0 | AD89: 11 | AE89: 0
B90: Macro | C90: CTL+H | D90: Teams | E90: 3 | H90: NB Avg | I90: =Coventry!Q31 -> 1.675 | R90: Macro | S90: CTL+E | T90: Teams | U90: 7 | X90: NB Avg | Y90: =Mansfield!Q31 -> 2.213
A92: =YTD!L18 -> Beach | M92: Sort | N92: Copy | O92: Sort | Q92: =YTD!L22 -> Aspinook | AC92: Sort | AD92: Copy | AE92: Sort
A93: Team # | B93: Alone? | C93: Name | D93: Net Wt | F93: Team # | G93: Alone? | H93: Name | I93: Net Wt | K93: Totals | L93: Rank | M93: Rank | N93: Team # | O93: Tot Wt | Q93: Team # | R93: Alone? | S93: Name | T93: Net Wt | V93: Team # | W93: Alone? | X93: Name | Y93: Net Wt | AA93: Totals | AB93: Rank | AC93: Rank | AD93: Team # | AE93: Tot Wt
A94: =Beach!B4 -> 2 | B94: =Beach!C4 -> N | C94: =Beach!D4 -> Armand | D94: =Beach!N4 -> 0.67 | F94: 0 | G94: N | H94: Jim B | I94: 0 | K94: =IF(F94=20,0,IF(F94=F95,I94+I95,IF(G94="Y",I94+I$120,0))) -> 0 | L94: =IF(K94>0,RANK(K94,K$94:K$119,0),"") ->  | M94: 1 | N94: 7 | O94: 10.34 | Q94: =Aspinook!B4 -> 2 | R94: =Aspinook!C4 -> N | S94: =Aspinook!D4 -> Armand | T94: =Aspinook!N4 -> 1.95 | V94: 0 | W94: N | X94: Bill | Y94: 0 | AA94: =IF(V94=20,0,IF(V94=V95,Y94+Y95,IF(W94="Y",Y94+Y$120,0))) -> 0 | AB94: =IF(AA94>0,RANK(AA94,AA$94:AA$119,0),"") ->  | AC94: 1 | AD94: 1 | AE94: 21.9
A95: =Beach!B5 -> 2 | B95: =Beach!C5 -> N | C95: =Beach!D5 -> Bill | D95: =Beach!N5 -> 4.98 | F95: 0 | G95: N | H95: Ron | I95: 0 | K95: =IF(F95=20,0,IF(F95=F96,I95+I96,IF(G95="Y",I95+I$120,0))) -> 0 | L95: =IF(K95>0,RANK(K95,K$94:K$119,0),"") ->  | M95: 2 | N95: 5 | O95: 7.91 | Q95: =Aspinook!B5 -> 0 | R95: =Aspinook!C5 -> N | S95: =Aspinook!D5 -> Bill | T95: =Aspinook!N5 -> 0 | V95: 0 | W95: N | X95: Jack | Y95: 0 | AA95: =IF(V95=20,0,IF(V95=V96,Y95+Y96,IF(W95="Y",Y95+Y$120,0))) -> 0 | AB95: =IF(AA95>0,RANK(AA95,AA$94:AA$119,0),"") ->  | AC95: 2 | AD95: 8 | AE95: 4.55
A96: =Beach!B6 -> 3 | B96: =Beach!C6 -> N | C96: =Beach!D6 -> Dean | D96: =Beach!N6 -> 1.33 | F96: 0 | G96: N | H96: X | I96: 0 | K96: 0 | M96: 3 | N96: 3 | O96: 7.2 | Q96: =Aspinook!B6 -> 5 | R96: =Aspinook!C6 -> N | S96: =Aspinook!D6 -> Dean | T96: =Aspinook!N6 -> 0 | V96: 0 | W96: N | X96: Mike G | Y96: 0 | AA96: 0 | AC96: 3 | AD96: 4 | AE96: 3.99675
A97: =Beach!B7 -> 7 | B97: =Beach!C7 -> N | C97: =Beach!D7 -> Jack | D97: =Beach!N7 -> 1.03 | F97: 0 | G97: N | H97: X | I97: 0 | K97: 0 | M97: 4 | N97: 8 | O97: 6.48 | Q97: =Aspinook!B7 -> 0 | R97: =Aspinook!C7 -> N | S97: =Aspinook!D7 -> Jack | T97: =Aspinook!N7 -> 0 | V97: 0 | W97: N | X97: X | Y97: 0 | AA97: 0 | AC97: 4 | AD97: 3 | AE97: 2.65
A98: =Beach!B8 -> 9 | B98: =Beach!C8 -> N | C98: =Beach!D8 -> Jason | D98: =Beach!N8 -> 1.21 | F98: 0 | G98: N | H98: X | I98: 0 | K98: 0 | M98: 5 | N98: 9 | O98: 5.99 | Q98: =Aspinook!B8 -> 9 | R98: =Aspinook!C8 -> N | S98: =Aspinook!D8 -> Jason | T98: =Aspinook!N8 -> 1.94 | V98: 0 | W98: N | X98: X | Y98: 0 | AA98: 0 | AC98: 5 | AD98: 6 | AE98: 2.27
A99: =Beach!B9 -> 7 | B99: =Beach!C9 -> N | C99: =Beach!D9 -> Jeff | D99: =Beach!N9 -> 9.31 | F99: 0 | G99: N | H99: X | I99: 0 | K99: 0 | M99: 6 | N99: 6 | O99: 5.76 | Q99: =Aspinook!B9 -> 3 | R99: =Aspinook!C9 -> N | S99: =Aspinook!D9 -> Jeff | T99: =Aspinook!N9 -> 2.65 | V99: 0 | W99: N | X99: X | Y99: 0 | AA99: 0 | AC99: 6 | AD99: 2 | AE99: 1.95
A100: =Beach!B10 -> 0 | B100: =Beach!C10 -> N | C100: =Beach!D10 -> Jim B | D100: =Beach!N10 -> 0 | F100: 0 | G100: N | H100: X | I100: 0 | K100: 0 | M100: 7 | N100: 2 | O100: 5.65 | Q100: =Aspinook!B10 -> 5 | R100: =Aspinook!C10 -> N | S100: =Aspinook!D10 -> Jim B | T100: =Aspinook!N10 -> 0 | V100: 0 | W100: N | X100: X | Y100: 0 | AA100: 0 | AC100: 7 | AD100: 9 | AE100: 1.94
A101: =Beach!B11 -> 6 | B101: =Beach!C11 -> N | C101: =Beach!D11 -> Joe | D101: =Beach!N11 -> 0.73 | F101: 1 | G101: Y | H101: Rich B | I101: 1.96 | K101: 4.561111111 | L101: 9 | M101: 8 | N101: 10 | O101: 5.54 | Q101: =Aspinook!B11 -> 3 | R101: =Aspinook!C11 -> N | S101: =Aspinook!D11 -> Joe | T101: =Aspinook!N11 -> 0 | V101: 0 | W101: N | X101: X | Y101: 0 | AA101: 0 | AC101: 8 | AD101: 10 | AE101: 1.26675
A102: =Beach!B12 -> 5 | B102: =Beach!C12 -> N | C102: =Beach!D12 -> Kam | D102: =Beach!N12 -> 1.93 | F102: 2 | G102: N | H102: Armand | I102: 0.67 | K102: 5.65 | L102: 7 | M102: 9 | N102: 1 | O102: 4.561111111 | Q102: =Aspinook!B12 -> 1 | R102: =Aspinook!C12 -> N | S102: =Aspinook!D12 -> Kam | T102: =Aspinook!N12 -> 6.95 | V102: 1 | W102: N | X102: Kam | Y102: 6.95 | AA102: 21.9 | AB102: 1 | AC102: 9 | AD102: 7 | AE102: 0.914
A103: =Beach!B13 -> 4 | B103: =Beach!C13 -> N | C103: =Beach!D13 -> Kevin | D103: =Beach!N13 -> 2.5 | F103: 2 | G103: N | H103: Bill | I103: 4.98 | K103: 0 | M103: 10 | N103: 4 | O103: 2.5 | Q103: =Aspinook!B13 -> 1 | R103: =Aspinook!C13 -> N | S103: =Aspinook!D13 -> Kevin | T103: =Aspinook!N13 -> 14.95 | V103: 1 | W103: N | X103: Kevin | Y103: 14.95 | AA103: 0 | AD103: 0 | AE103: 0
A104: =Beach!B14 -> 3 | B104: =Beach!C14 -> N | C104: =Beach!D14 -> Mike M | D104: =Beach!N14 -> 5.87 | F104: 3 | G104: N | H104: Dean | I104: 1.33 | K104: 7.2 | L104: 3 | N104: 0 | O104: 0 | Q104: =Aspinook!B14 -> 7 | R104: =Aspinook!C14 -> N | S104: =Aspinook!D14 -> Mike M | T104: =Aspinook!N14 -> 0.914 | V104: 2 | W104: N | X104: Armand | Y104: 1.95 | AA104: 1.95 | AB104: 6 | AD104: 0 | AE104: 0
A105: =Beach!B15 -> 9 | B105: =Beach!C15 -> N | C105: =Beach!D15 -> Mike G | D105: =Beach!N15 -> 4.78 | F105: 3 | G105: N | H105: Mike M | I105: 5.87 | K105: 0 | N105: 0 | O105: 0 | Q105: =Aspinook!B15 -> 0 | R105: =Aspinook!C15 -> N | S105: =Aspinook!D15 -> Mike G | T105: =Aspinook!N15 -> 0 | V105: 2 | W105: N | X105: Steve S | Y105: 0 | AA105: 0 | AD105: 0 | AE105: 0
A106: =Beach!B16 -> 10 | B106: =Beach!C16 -> N | C106: =Beach!D16 -> Morrie | D106: =Beach!N16 -> 3.5 | F106: 4 | G106: N | H106: Kevin | I106: 2.5 | K106: 2.5 | L106: 10 | N106: 0 | O106: 0 | Q106: =Aspinook!B16 -> 7 | R106: =Aspinook!C16 -> N | S106: =Aspinook!D16 -> Morrie | T106: =Aspinook!N16 -> 0 | V106: 3 | W106: N | X106: Jeff | Y106: 2.65 | AA106: 2.65 | AB106: 4 | AD106: 0 | AE106: 0
A107: =Beach!B17 -> 8 | B107: =Beach!C17 -> N | C107: =Beach!D17 -> Pete | D107: =Beach!N17 -> 2.05 | F107: 4 | G107: N | H107: Steve S | I107: 0 | K107: 0 | N107: 0 | O107: 0 | Q107: =Aspinook!B17 -> 8 | R107: =Aspinook!C17 -> N | S107: =Aspinook!D17 -> Pete | T107: =Aspinook!N17 -> 0 | V107: 3 | W107: N | X107: Joe | Y107: 0 | AA107: 0 | AD107: 0 | AE107: 0
A108: =Beach!B18 -> 1 | B108: =Beach!C18 -> Y | C108: =Beach!D18 -> Rich B | D108: =Beach!N18 -> 1.96 | F108: 5 | G108: N | H108: Kam | I108: 1.93 | K108: 7.91 | L108: 2 | N108: 0 | O108: 0 | Q108: =Aspinook!B18 -> 6 | R108: =Aspinook!C18 -> N | S108: =Aspinook!D18 -> Rich B | T108: =Aspinook!N18 -> 0 | V108: 4 | W108: Y | X108: Tom | Y108: 2.73 | AA108: 3.99675 | AB108: 3 | AD108: 0 | AE108: 0
A109: =Beach!B19 -> 10 | B109: =Beach!C19 -> N | C109: =Beach!D19 -> Rich T | D109: =Beach!N19 -> 2.04 | F109: 5 | G109: N | H109: Scott | I109: 5.98 | K109: 0 | N109: 0 | O109: 0 | Q109: =Aspinook!B19 -> 9 | R109: =Aspinook!C19 -> N | S109: =Aspinook!D19 -> Rich T | T109: =Aspinook!N19 -> 0 | V109: 5 | W109: N | X109: Dean | Y109: 0 | AA109: 0 | AD109: 0 | AE109: 0
A110: =Beach!B20 -> 0 | B110: =Beach!C20 -> N | C110: =Beach!D20 -> Ron | D110: =Beach!N20 -> 0 | F110: 6 | G110: N | H110: Joe | I110: 0.73 | K110: 5.76 | L110: 6 | N110: 0 | O110: 0 | Q110: =Aspinook!B20 -> 8 | R110: =Aspinook!C20 -> N | S110: =Aspinook!D20 -> Ron | T110: =Aspinook!N20 -> 4.55 | V110: 5 | W110: N | X110: Jim B | Y110: 0 | AA110: 0 | AD110: 0 | AE110: 0
A111: =Beach!B21 -> 5 | B111: =Beach!C21 -> N | C111: =Beach!D21 -> Scott | D111: =Beach!N21 -> 5.98 | F111: 6 | G111: N | H111: Steve D | I111: 5.03 | K111: 0 | N111: 2 | O111: 0 | Q111: =Aspinook!B21 -> 6 | R111: =Aspinook!C21 -> N | S111: =Aspinook!D21 -> Scott | T111: =Aspinook!N21 -> 2.27 | V111: 6 | W111: N | X111: Rich B | Y111: 0 | AA111: 2.27 | AB111: 5 | AD111: 1 | AE111: 0
A112: =Beach!B22 -> 6 | B112: =Beach!C22 -> N | C112: =Beach!D22 -> Steve D | D112: =Beach!N22 -> 5.03 | F112: 7 | G112: N | H112: Jack | I112: 1.03 | K112: 10.34 | L112: 1 | N112: 3 | O112: 0 | Q112: =Aspinook!B22 -> 10 | R112: =Aspinook!C22 -> Y | S112: =Aspinook!D22 -> Steve D | T112: =Aspinook!N22 -> 0 | V112: 6 | W112: N | X112: Scott | Y112: 2.27 | AA112: 0 | AD112: 2 | AE112: 0
A113: =Beach!B23 -> 4 | B113: =Beach!C23 -> N | C113: =Beach!D23 -> Steve S | D113: =Beach!N23 -> 0 | F113: 7 | G113: N | H113: Jeff | I113: 9.31 | K113: 0 | N113: 4 | O113: 0 | Q113: =Aspinook!B23 -> 2 | R113: =Aspinook!C23 -> N | S113: =Aspinook!D23 -> Steve S | T113: =Aspinook!N23 -> 0 | V113: 7 | W113: N | X113: Mike M | Y113: 0.914 | AA113: 0.914 | AB113: 9 | AD113: 3 | AE113: 0
A114: =Beach!B24 -> 8 | B114: =Beach!C24 -> N | C114: =Beach!D24 -> Tom | D114: =Beach!N24 -> 4.43 | F114: 8 | G114: N | H114: Pete | I114: 2.05 | K114: 6.48 | L114: 4 | N114: 5 | O114: 0 | Q114: =Aspinook!B24 -> 4 | R114: =Aspinook!C24 -> Y | S114: =Aspinook!D24 -> Tom | T114: =Aspinook!N24 -> 2.73 | V114: 7 | W114: N | X114: Morrie | Y114: 0 | AA114: 0 | AD114: 5 | AE114: 0
A115: =Beach!B25 -> 0 | B115: =Beach!C25 -> N | C115: =Beach!D25 -> X | D115: =Beach!N25 -> 0 | F115: 8 | G115: N | H115: Tom | I115: 4.43 | K115: 0 | N115: 6 | O115: 0 | Q115: =Aspinook!B25 -> 0 | R115: =Aspinook!C25 -> N | S115: =Aspinook!D25 -> X | T115: =Aspinook!N25 -> 0 | V115: 8 | W115: N | X115: Pete | Y115: 0 | AA115: 4.55 | AB115: 2 | AD115: 5 | AE115: 0
A116: =Beach!B26 -> 0 | B116: =Beach!C26 -> N | C116: =Beach!D26 -> X | D116: =Beach!N26 -> 0 | F116: 9 | G116: N | H116: Jason | I116: 1.21 | K116: 5.99 | L116: 5 | N116: 7 | O116: 0 | Q116: =Aspinook!B26 -> 0 | R116: =Aspinook!C26 -> N | S116: =Aspinook!D26 -> X | T116: =Aspinook!N26 -> 0 | V116: 8 | W116: N | X116: Ron | Y116: 4.55 | AA116: 0 | AD116: 6 | AE116: 0
A117: =Beach!B27 -> 0 | B117: =Beach!C27 -> N | C117: =Beach!D27 -> X | D117: =Beach!N27 -> 0 | F117: 9 | G117: N | H117: Mike G | I117: 4.78 | K117: 0 | N117: 8 | O117: 0 | Q117: =Aspinook!B27 -> 0 | R117: =Aspinook!C27 -> N | S117: =Aspinook!D27 -> X | T117: =Aspinook!N27 -> 0 | V117: 9 | W117: N | X117: Jason | Y117: 1.94 | AA117: 1.94 | AB117: 7 | AD117: 7 | AE117: 0
A118: =Beach!B28 -> 0 | B118: =Beach!C28 -> N | C118: =Beach!D28 -> X | D118: =Beach!N28 -> 0 | F118: 10 | G118: N | H118: Morrie | I118: 3.5 | K118: 5.54 | L118: 8 | N118: 9 | O118: 0 | Q118: =Aspinook!B28 -> 0 | R118: =Aspinook!C28 -> N | S118: =Aspinook!D28 -> X | T118: =Aspinook!N28 -> 0 | V118: 9 | W118: N | X118: Rich T | Y118: 0 | AA118: 0 | AD118: 8 | AE118: 0
A119: =Beach!B29 -> 0 | B119: =Beach!C29 -> N | C119: =Beach!D29 -> X | D119: =Beach!N29 -> 0 | F119: 10 | G119: N | H119: Rich T | I119: 2.04 | K119: 0 | N119: 10 | O119: 0 | Q119: =Aspinook!B29 -> 0 | R119: =Aspinook!C29 -> N | S119: =Aspinook!D29 -> X | T119: =Aspinook!N29 -> 0 | V119: 10 | W119: Y | X119: Steve D | Y119: 0 | AA119: 1.26675 | AB119: 8 | AD119: 9 | AE119: 0
B120: Macro | C120: CTL+N | D120: Teams | E120: 4 | H120: NB Avg | I120: =Beach!Q31 -> 2.601111111 | R120: Macro | S120: CTL+Q | T120: Teams | U120: 8 | X120: NB Avg | Y120: =Aspinook!Q31 -> 1.26675

Sheet YTD
B1: =P15 -> Armand | C1: =P16 -> Bill | D1: =P17 -> Dean | E1: =P18 -> Jack | F1: =P19 -> Jason | G1: =P20 -> Jeff | H1: =P21 -> Jim B | I1: =P22 -> Joe | J1: =P23 -> Kam | K1: =P24 -> Kevin | L1: =P25 -> Mike M | M1: =P26 -> Mike G | N1: =P27 -> Morrie | O1: =P28 -> Pete | P1: =P29 -> Rich B | Q1: =P30 -> Rich T | R1: =P31 -> Ron | S1: =P32 -> Scott | T1: =P33 -> Steve D | U1: =P34 -> Steve S | V1: =P35 -> Tom | W1: =P36 -> X | X1: =P37 -> X | Y1: =P38 -> X | Z1: =P39 -> X | AA1: =P40 -> X
B2: =Mashapaug!O4 -> 1 | C2: =Bantam!O5 -> 4 | D2: =Mashapaug!O6 -> 4 | E2: =Coventry!O7 -> 5 | F2: =Bantam!O8 -> 1 | G2: =Beach!O9 -> 1 | H2: =Mashapaug!O10 -> 10 | I2: =Candlewood!O11 -> 12 | J2: =Aspinook!O12 -> 2 | K2: =Aspinook!O13 -> 1 | L2: =Mansfield!O14 -> 1 | M2: =Winchester!O15 -> 3 | N2: =Coventry!O16 -> 2 | O2: =Candlewood!O17 -> 1 | P2: =Mansfield!O18 -> 2 | Q2: =Mansfield!O19 -> 4 | R2: =Mansfield!O20 -> 3 | S2: =Winchester!O21 -> 1 | T2: =Coventry!O22 -> 1 | U2: =Candlewood!O23 -> 3 | V2: =Aspinook!O24 -> 4 | W2: =Mashapaug!O25 -> 35 | X2: =Winchester!O26 -> 35 | Y2: =Beach!O27 -> 35 | Z2: =Candlewood!O28 -> 35 | AA2: =Aspinook!O29 -> 35
B3: =Bantam!O4 -> 6 | C3: =Beach!O5 -> 5 | D3: =Winchester!O6 -> 6 | E3: =Mashapaug!O7 -> 14 | F3: =Mashapaug!O8 -> 2 | G3: =Bantam!O9 -> 2 | H3: =Mansfield!O10 -> 13 | I3: =Coventry!O11 -> 13 | J3: =Candlewood!O12 -> 9 | K3: =Coventry!O13 -> 4 | L3: =Beach!O14 -> 3 | M3: =Beach!O15 -> 6 | N3: =Candlewood!O16 -> 2 | O3: =Winchester!O17 -> 5 | P3: =Mashapaug!O18 -> 3 | Q3: =Bantam!O19 -> 5 | R3: =Aspinook!O20 -> 3 | S3: =Beach!O21 -> 2 | T3: =Winchester!O22 -> 2 | U3: =Winchester!O23 -> 4 | V3: =Mansfield!O24 -> 5 | W3: =Coventry!O25 -> 35 | X3: =Mansfield!O26 -> 35 | Y3: =Winchester!O27 -> 35 | Z3: =Coventry!O28 -> 35 | AA3: =Bantam!O29 -> 35
B4: =Aspinook!O4 -> 7 | C4: =Mansfield!O5 -> 10 | D4: =Bantam!O6 -> 7 | E4: =Winchester!O7 -> 14 | F4: =Coventry!O8 -> 3 | G4: =Candlewood!O9 -> 4 | H4: =Bantam!O10 -> 14 | I4: =Mashapaug!O11 -> 17 | J4: =Beach!O12 -> 13 | K4: =Beach!O13 -> 9 | L4: =Aspinook!O14 -> 9 | M4: =Mashapaug!O15 -> 15 | N4: =Beach!O16 -> 8 | O4: =Mashapaug!O17 -> 7 | P4: =Coventry!O18 -> 6 | Q4: =Winchester!O19 -> 8 | R4: =Candlewood!O20 -> 10 | S4: =Candlewood!O21 -> 5 | T4: =Bantam!O22 -> 3 | U4: =Bantam!O23 -> 8 | V4: =Beach!O24 -> 7 | W4: =Beach!O25 -> 35 | X4: =Coventry!O26 -> 35 | Y4: =Mashapaug!O27 -> 35 | Z4: =Aspinook!O28 -> 35 | AA4: =Candlewood!O29 -> 35
B5: =Coventry!O4 -> 9 | C5: =Coventry!O5 -> 11 | D5: =Candlewood!O6 -> 7 | E5: =Bantam!O7 -> 15 | F5: =Mansfield!O8 -> 6 | G5: =Aspinook!O9 -> 5 | H5: =Aspinook!O10 -> 30 | I5: =Beach!O11 -> 17 | J5: =Bantam!O12 -> 30 | K5: =Mashapaug!O13 -> 11 | L5: =Candlewood!O14 -> 14 | M5: =Bantam!O15 -> 16 | N5: =Winchester!O16 -> 10 | O5: =Mansfield!O17 -> 9 | P5: =Candlewood!O18 -> 6 | Q5: =Coventry!O19 -> 10 | R5: =Mashapaug!O20 -> 18 | S5: =Aspinook!O21 -> 6 | T5: =Beach!O22 -> 4 | U5: =Mashapaug!O23 -> 8 | V5: =Mashapaug!O24 -> 9 | W5: =Bantam!O25 -> 35 | X5: =Mashapaug!O26 -> 35 | Y5: =Aspinook!O27 -> 35 | Z5: =Bantam!O28 -> 35 | AA5: =Beach!O29 -> 35
B6: =Winchester!O4 -> 11 | C6: =Winchester!O5 -> 12 | D6: =Mansfield!O6 -> 8 | E6: =Beach!O7 -> 16 | F6: =Aspinook!O8 -> 8 | G6: =Mashapaug!O9 -> 6 | H6: =Candlewood!O10 -> 35 | I6: =Bantam!O11 -> 30 | J6: =Winchester!O12 -> 30 | K6: =Candlewood!O13 -> 13 | L6: =Mashapaug!O14 -> 19 | M6: =Mansfield!O15 -> 30 | N6: =Bantam!O16 -> 13 | O6: =Bantam!O17 -> 10 | P6: =Bantam!O18 -> 12 | Q6: =Beach!O19 -> 11 | R6: =Bantam!O20 -> 30 | S6: =Bantam!O21 -> 9 | T6: =Mashapaug!O22 -> 5 | U6: =Coventry!O23 -> 8 | V6: =Bantam!O24 -> 11 | W6: =Winchester!O25 -> 35 | X6: =Bantam!O26 -> 35 | Y6: =Candlewood!O27 -> 35 | Z6: =Beach!O28 -> 35 | AA6: =Mashapaug!O29 -> 35
B7: =Mansfield!O4 -> 15 | C7: =Mashapaug!O5 -> 13 | D7: =Coventry!O6 -> 12 | E7: =Candlewood!O7 -> 30 | F7: =Winchester!O8 -> 9 | G7: =Coventry!O9 -> 7 | H7: =Beach!O10 -> 35 | I7: =Winchester!O11 -> 30 | J7: =Mansfield!O12 -> 30 | K7: =Mansfield!O13 -> 14 | L7: =Bantam!O14 -> 30 | M7: =Candlewood!O15 -> 35 | N7: =Mansfield!O16 -> 30 | O7: =Beach!O17 -> 10 | P7: =Beach!O18 -> 12 | Q7: =Candlewood!O19 -> 11 | R7: =Winchester!O20 -> 30 | S7: =Mansfield!O21 -> 11 | T7: =Candlewood!O22 -> 8 | U7: =Beach!O23 -> 30 | V7: =Winchester!O24 -> 15 | W7: =Mansfield!O25 -> 35 | X7: =Aspinook!O26 -> 35 | Y7: =Bantam!O27 -> 35 | Z7: =Mashapaug!O28 -> 35 | AA7: =Coventry!O29 -> 35
B8: =Beach!O4 -> 18 | C8: =Candlewood!O5 -> 30 | D8: =Beach!O6 -> 14 | E8: =Mansfield!O7 -> 30 | F8: =Beach!O8 -> 15 | G8: =Winchester!O9 -> 7 | H8: =Winchester!O10 -> 35 | I8: =Mansfield!O11 -> 30 | J8: =Mashapaug!O12 -> 35 | K8: =Bantam!O13 -> 30 | L8: =Winchester!O14 -> 30 | M8: =Coventry!O15 -> 35 | N8: =Aspinook!O16 -> 30 | O8: =Coventry!O17 -> 30 | P8: =Winchester!O18 -> 13 | Q8: =Mashapaug!O19 -> 12 | R8: =Beach!O20 -> 35 | S8: =Mashapaug!O21 -> 16 | T8: =Mansfield!O22 -> 12 | U8: =Mansfield!O23 -> 30 | V8: =Coventry!O24 -> 30 | W8: =Candlewood!O25 -> 35 | X8: =Candlewood!O26 -> 35 | Y8: =Mansfield!O27 -> 35 | Z8: =Winchester!O28 -> 35 | AA8: =Winchester!O29 -> 35
B9: =Candlewood!O4 -> 35 | C9: =Aspinook!O5 -> 35 | D9: =Aspinook!O6 -> 30 | E9: =Aspinook!O7 -> 35 | F9: =Candlewood!O8 -> 30 | G9: =Mansfield!O9 -> 7 | H9: =Coventry!O10 -> 35 | I9: =Aspinook!O11 -> 30 | J9: =Coventry!O12 -> 35 | K9: =Winchester!O13 -> 35 | L9: =Coventry!O14 -> 35 | M9: =Aspinook!O15 -> 35 | N9: =Mashapaug!O16 -> 35 | O9: =Aspinook!O17 -> 30 | P9: =Aspinook!O18 -> 30 | Q9: =Aspinook!O19 -> 30 | R9: =Coventry!O20 -> 35 | S9: =Coventry!O21 -> 30 | T9: =Aspinook!O22 -> 30 | U9: =Aspinook!O23 -> 30 | V9: =Candlewood!O24 -> 35 | W9: =Aspinook!O25 -> 35 | X9: =Beach!O26 -> 35 | Y9: =Coventry!O27 -> 35 | Z9: =Mansfield!O28 -> 35 | AA9: =Mansfield!O29 -> 35
A10: Pts. YTD | B10: =SUM(B2:B7) -> 49 | C10: 55 | D10: 44 | E10: 94 | F10: 29 | G10: 25 | H10: 137 | I10: =SUM(I2:I7) -> 119 | J10: 114 | K10: 52 | L10: 76 | M10: 105 | N10: 65 | O10: 42 | P10: 41 | Q10: 49 | R10: =SUM(R2:R7) -> 94 | S10: 34 | T10: 23 | U10: 61 | V10: 51 | W10: 210 | X10: 210 | Y10: 210 | Z10: 210 | AA10: 210
A11: Position | B11: =RANK(B10,Pts._YTD,1) -> 8 | C11: 12 | D11: 7 | E11: 16 | F11: 3 | G11: 2 | H11: 21 | I11: 20 | J11: =RANK(J10,Pts._YTD,1) -> 19 | K11: 11 | L11: =RANK(L10,Pts._YTD,1) -> 15 | M11: 18 | N11: 14 | O11: 6 | P11: 5 | Q11: 8 | R11: 16 | S11: =RANK(S10,Pts._YTD,1) -> 4 | T11: 1 | U11: 13 | V11: 10 | W11: 22 | X11: 22 | Y11: 22 | Z11: 22 | AA11: 22
W13: Use macro ctl-f
A14: Name | B14: Position | C14: Pts. YTD | E14: Name | F14: Position | G14: Pts. YTD | I14: Total Weight | L14: Lake / River 2016 | P14: Members | S14: Top 3 Finishers for Each Tournament
A15: =B1 -> Armand | B15: =B11 -> 8 | C15: =B10 -> 49 | E15: Steve D | F15: 1 | G15: 23 | I15: =P15 -> Armand | J15: =Aspinook!N4+Bantam!N4+Winchester!N4+Coventry!N4+Mansfield!N4+Mashapaug!N4+Beach!N4+Candlewood!N4 -> 24.26 | L15: Bantam | P15: Armand | S15: =L15 -> Bantam | U15: =L16 -> Mashapaug | W15: =L17 -> Coventry | Y15: =L18 -> Beach | AA15: =L19 -> Candlewood | AC15: =L20 -> Winchester | AE15: =L21 -> Mansfield | AG15: =L22 -> Aspinook
A16: =C1 -> Bill | B16: =C11 -> 12 | C16: =C10 -> 55 | E16: Jeff | F16: 2 | G16: 25 | I16: Bill | J16: =Aspinook!N5+Bantam!N5+Winchester!N5+Coventry!N5+Mansfield!N5+Mashapaug!N5+Beach!N5+Candlewood!N5 -> 24.77 | L16: Mashapaug | P16: Bill | S16: =Bantam!D8 -> Jason | T16: =Bantam!O8 -> 1 | U16: =Mashapaug!D4 -> Armand | V16: =Mashapaug!O4 -> 1 | W16: =Coventry!D22 -> Steve D | X16: =Coventry!O22 -> 1 | Y16: =Beach!D9 -> Jeff | Z16: =Beach!O9 -> 1 | AA16: =Candlewood!D17 -> Pete | AB16: =Candlewood!O17 -> 1 | AC16: =Winchester!D21 -> Scott | AD16: =Winchester!O21 -> 1 | AE16: =Mansfield!D14 -> Mike M | AF16: =Mansfield!O14 -> 1 | AG16: =Aspinook!D13 -> Kevin | AH16: =Aspinook!O13 -> 1
A17: =D1 -> Dean | B17: =D11 -> 7 | C17: =D10 -> 44 | E17: Jason | F17: 3 | G17: 29 | I17: Dean | J17: =Aspinook!N6+Bantam!N6+Winchester!N6+Coventry!N6+Mansfield!N6+Mashapaug!N6+Beach!N6+Candlewood!N6 -> 29.1 | L17: Coventry | P17: Dean | S17: =Bantam!D9 -> Jeff | T17: =Bantam!O9 -> 2 | U17: =Mashapaug!D8 -> Jason | V17: =Mashapaug!O8 -> 2 | W17: =Coventry!D16 -> Morrie | X17: =Coventry!O16 -> 2 | Y17: =Beach!D21 -> Scott | Z17: =Beach!O21 -> 2 | AA17: =Candlewood!D16 -> Morrie | AB17: =Candlewood!O16 -> 2 | AC17: =Winchester!D22 -> Steve D | AD17: =Winchester!O22 -> 2 | AE17: =Mansfield!D18 -> Rich B | AF17: =Mansfield!O18 -> 2 | AG17: =Aspinook!D12 -> Kam | AH17: =Aspinook!O12 -> 2
A18: =E1 -> Jack | B18: =E11 -> 16 | C18: =E10 -> 94 | E18: Scott | F18: 4 | G18: 34 | I18: Jack | J18: =Aspinook!N7+Bantam!N7+Winchester!N7+Coventry!N7+Mansfield!N7+Mashapaug!N7+Beach!N7+Candlewood!N7 -> 12.66 | L18: Beach | P18: Jack | S18: =Bantam!D22 -> Steve D | T18: =Bantam!O22 -> 3 | U18: =Mashapaug!D18 -> Rich B | V18: =Mashapaug!O18 -> 3 | W18: =Coventry!D8 -> Jason | X18: =Coventry!O8 -> 3 | Y18: =Beach!D14 -> Mike M | Z18: =Beach!O14 -> 3 | AA18: =Candlewood!D23 -> Steve S | AB18: =Candlewood!O23 -> 3 | AC18: =Winchester!D15 -> Mike G | AD18: =Winchester!O15 -> 3 | AE18: =Mansfield!D20 -> Ron | AF18: =Mansfield!O20 -> 3 | AG18: =Aspinook!D20 -> Ron | AH18: =Aspinook!O20 -> 3
A19: =F1 -> Jason | B19: =F11 -> 3 | C19: =F10 -> 29 | E19: Rich B | F19: 5 | G19: 41 | I19: Jason | J19: =Aspinook!N8+Bantam!N8+Winchester!N8+Coventry!N8+Mansfield!N8+Mashapaug!N8+Beach!N8+Candlewood!N8 -> 38.15 | L19: Candlewood | P19: Jason | S19: =Bantam!D5 -> Bill | T19: =Bantam!O5 -> 4 | U19: =Mashapaug!D6 -> Dean | V19: =Mashapaug!O6 -> 4 | W19: =Coventry!D13 -> Kevin | X19: =Coventry!O13 -> 4 | Y19: =Beach!D22 -> Steve D | Z19: =Beach!O22 -> 4 | AA19: =Candlewood!D9 -> Jeff | AB19: =Candlewood!O9 -> 4 | AC19: =Winchester!D23 -> Steve S | AD19: =Winchester!O23 -> 4 | AE19: =Mansfield!D19 -> Rich T | AF19: =Mansfield!O19 -> 4 | AG19: =Aspinook!D24 -> Tom | AH19: =Aspinook!O24 -> 4
A20: =G1 -> Jeff | B20: =G11 -> 2 | C20: =G10 -> 25 | E20: Pete | F20: 6 | G20: 42 | I20: Jeff | J20: =Aspinook!N9+Bantam!N9+Winchester!N9+Coventry!N9+Mansfield!N9+Mashapaug!N9+Beach!N9+Candlewood!N9 -> 47.08 | L20: Winchester | P20: Jeff | S20: =Bantam!D19 -> Rich T | T20: =Bantam!O19 -> 5 | U20: =Mashapaug!D22 -> Steve D | V20: =Mashapaug!O22 -> 5 | W20: =Coventry!D7 -> Jack | X20: =Coventry!O7 -> 5 | Y20: =Beach!D5 -> Bill | Z20: =Beach!O5 -> 5 | AA20: =Candlewood!D21 -> Scott | AB20: =Candlewood!O21 -> 5 | AC20: =Winchester!D17 -> Pete | AD20: =Winchester!O17 -> 5 | AE20: =Mansfield!D24 -> Tom | AF20: =Mansfield!O24 -> 5 | AG20: =Aspinook!D9 -> Jeff | AH20: =Aspinook!O9 -> 5
A21: =H1 -> Jim B | B21: =H11 -> 21 | C21: =H10 -> 137 | E21: Dean | F21: 7 | G21: 44 | I21: Jim B | J21: =Aspinook!N10+Bantam!N10+Winchester!N10+Coventry!N10+Mansfield!N10+Mashapaug!N10+Beach!N10+Candlewood!N10 -> 12.84 | L21: Mansfield | P21: Jim B | S21: =Bantam!D4 -> Armand | T21: =Bantam!O4 -> 6 | U21: =Mashapaug!D9 -> Jeff | V21: =Mashapaug!O9 -> 6 | W21: =Coventry!D18 -> Rich B | X21: =Coventry!O18 -> 6 | Y21: =Beach!D15 -> Mike G | Z21: =Beach!O15 -> 6 | AA21: =Candlewood!D18 -> Rich B | AB21: =Candlewood!O18 -> 6 | AC21: =Winchester!D6 -> Dean | AD21: =Winchester!O6 -> 6 | AE21: =Mansfield!D8 -> Jason | AF21: =Mansfield!O8 -> 6 | AG21: =Aspinook!D21 -> Scott | AH21: =Aspinook!O21 -> 6
A22: =I1 -> Joe | B22: =I11 -> 20 | C22: =I10 -> 119 | E22: Armand | F22: 8 | G22: 49 | I22: Joe | J22: =Aspinook!N11+Bantam!N11+Winchester!N11+Coventry!N11+Mansfield!N11+Mashapaug!N11+Beach!N11+Candlewood!N11 -> 7.36 | L22: Aspinook | P22: Joe | S22: =Bantam!D6 -> Dean | T22: =Bantam!O6 -> 7 | U22: =Mashapaug!D17 -> Pete | V22: =Mashapaug!O17 -> 7 | W22: =Coventry!D9 -> Jeff | X22: =Coventry!O9 -> 7 | Y22: =Beach!D24 -> Tom | Z22: =Beach!O24 -> 7 | AA22: =Candlewood!D6 -> Dean | AB22: =Candlewood!O6 -> 7 | AC22: =Winchester!D9 -> Jeff | AD22: =Winchester!O9 -> 7 | AE22: =Mansfield!D9 -> Jeff | AF22: =Mansfield!O9 -> 7 | AG22: =Aspinook!D4 -> Armand | AH22: =Aspinook!O4 -> 7
A23: =J1 -> Kam | B23: =J11 -> 19 | C23: =J10 -> 114 | E23: Rich T | F23: 8 | G23: 49 | I23: Kam | J23: =Aspinook!N12+Bantam!N12+Winchester!N12+Coventry!N12+Mansfield!N12+Mashapaug!N12+Beach!N12+Candlewood!N12 -> 11.3 | P23: Kam | S23: =Bantam!D23 -> Steve S | T23: =Bantam!O23 -> 8 | U23: =Mashapaug!D23 -> Steve S | V23: =Mashapaug!O23 -> 8 | W23: =Coventry!D23 -> Steve S | X23: =Coventry!O23 -> 8 | Y23: =Beach!D16 -> Morrie | Z23: =Beach!O16 -> 8 | AA23: =Candlewood!D22 -> Steve D | AB23: =Candlewood!O22 -> 8 | AC23: =Winchester!D19 -> Rich T | AD23: =Winchester!O19 -> 8 | AE23: =Mansfield!D6 -> Dean | AF23: =Mansfield!O6 -> 8 | AG23: =Aspinook!D8 -> Jason | AH23: =Aspinook!O8 -> 8
A24: =K1 -> Kevin | B24: =K11 -> 11 | C24: =K10 -> 52 | E24: Tom | F24: 10 | G24: 51 | I24: Kevin | J24: =Aspinook!N13+Bantam!N13+Winchester!N13+Coventry!N13+Mansfield!N13+Mashapaug!N13+Beach!N13+Candlewood!N13 -> 33.19 | P24: Kevin | S24: =Bantam!D21 -> Scott | T24: =Bantam!O21 -> 9 | U24: =Mashapaug!D24 -> Tom | V24: =Mashapaug!O24 -> 9 | W24: =Coventry!D4 -> Armand | X24: =Coventry!O4 -> 9 | Y24: =Beach!D13 -> Kevin | Z24: =Beach!O13 -> 9 | AA24: =Candlewood!D12 -> Kam | AB24: =Candlewood!O12 -> 9 | AC24: =Winchester!D8 -> Jason | AD24: =Winchester!O8 -> 9 | AE24: =Mansfield!D17 -> Pete | AF24: =Mansfield!O17 -> 9 | AG24: =Aspinook!D14 -> Mike M | AH24: =Aspinook!O14 -> 9
A25: =L1 -> Mike M | B25: =L11 -> 15 | C25: =L10 -> 76 | E25: Kevin | F25: 11 | G25: 52 | I25: Mike M | J25: =Aspinook!N14+Bantam!N14+Winchester!N14+Coventry!N14+Mansfield!N14+Mashapaug!N14+Beach!N14+Candlewood!N14 -> 19.384 | P25: Mike M | S25: =Bantam!D17 -> Pete | T25: =Bantam!O17 -> 10 | U25: =Mashapaug!D10 -> Jim B | V25: =Mashapaug!O10 -> 10 | W25: =Coventry!D19 -> Rich T | X25: =Coventry!O19 -> 10 | Y25: =Beach!D17 -> Pete | Z25: =Beach!O17 -> 10 | AA25: =Candlewood!D20 -> Ron | AB25: =Candlewood!O20 -> 10 | AC25: =Winchester!D16 -> Morrie | AD25: =Winchester!O16 -> 10 | AE25: =Mansfield!D5 -> Bill | AF25: =Mansfield!O5 -> 10 | AG25: =Aspinook!D23 -> Steve S | AH25: =Aspinook!O23 -> 30
A26: =M1 -> Mike G | B26: =M11 -> 18 | C26: =M10 -> 105 | E26: Bill | F26: 12 | G26: 55 | I26: Mike G | J26: =Aspinook!N15+Bantam!N15+Winchester!N15+Coventry!N15+Mansfield!N15+Mashapaug!N15+Beach!N15+Candlewood!N15 -> 16.87 | L26: Macros | P26: Mike G | S26: =Bantam!D24 -> Tom | T26: =Bantam!O24 -> 11 | U26: =Mashapaug!D13 -> Kevin | V26: =Mashapaug!O13 -> 11 | W26: =Coventry!D5 -> Bill | X26: =Coventry!O5 -> 11 | Y26: =Beach!D19 -> Rich T | Z26: =Beach!O19 -> 11 | AA26: =Candlewood!D19 -> Rich T | AB26: =Candlewood!O19 -> 11 | AC26: =Winchester!D4 -> Armand | AD26: =Winchester!O4 -> 11 | AE26: =Mansfield!D21 -> Scott | AF26: =Mansfield!O21 -> 11 | AG26: =Aspinook!D22 -> Steve D | AH26: =Aspinook!O22 -> 30
A27: =N1 -> Morrie | B27: =N11 -> 14 | C27: =N10 -> 65 | E27: Steve S | F27: 13 | G27: 61 | I27: Morrie | J27: =Aspinook!N16+Bantam!N16+Winchester!N16+Coventry!N16+Mansfield!N16+Mashapaug!N16+Beach!N16+Candlewood!N16 -> 19.62 | L27: ctl-S Sort Upper Section | P27: Morrie | S27: =Bantam!D18 -> Rich B | T27: =Bantam!O18 -> 12 | U27: =Mashapaug!D19 -> Rich T | V27: =Mashapaug!O19 -> 12 | W27: =Coventry!D6 -> Dean | X27: =Coventry!O6 -> 12 | Y27: =Beach!D18 -> Rich B | Z27: =Beach!O18 -> 12 | AA27: =Candlewood!D11 -> Joe | AB27: =Candlewood!O11 -> 12 | AC27: =Winchester!D5 -> Bill | AD27: =Winchester!O5 -> 12 | AE27: =Mansfield!D22 -> Steve D | AF27: =Mansfield!O22 -> 12 | AG27: =Aspinook!D17 -> Pete | AH27: =Aspinook!O17 -> 30
A28: =O1 -> Pete | B28: =O11 -> 6 | C28: =O10 -> 42 | E28: Morrie | F28: 14 | G28: 65 | I28: Pete | J28: =Aspinook!N17+Bantam!N17+Winchester!N17+Coventry!N17+Mansfield!N17+Mashapaug!N17+Beach!N17+Candlewood!N17 -> 32.16 | L28: ctl-K Copy and Paste for Position | P28: Pete | S28: =Bantam!D16 -> Morrie | T28: =Bantam!O16 -> 13 | U28: =Mashapaug!D5 -> Bill | V28: =Mashapaug!O5 -> 13 | W28: =Coventry!D11 -> Joe | X28: =Coventry!O11 -> 13 | Y28: =Beach!D12 -> Kam | Z28: =Beach!O12 -> 13 | AA28: =Candlewood!D13 -> Kevin | AB28: =Candlewood!O13 -> 13 | AC28: =Winchester!D18 -> Rich B | AD28: =Winchester!O18 -> 13 | AE28: =Mansfield!D10 -> Jim B | AF28: =Mansfield!O10 -> 13 | AG28: =Aspinook!D16 -> Morrie | AH28: =Aspinook!O16 -> 30
A29: =P1 -> Rich B | B29: =P11 -> 5 | C29: =P10 -> 41 | E29: Mike M | F29: 15 | G29: 76 | I29: Rich B | J29: =Aspinook!N18+Bantam!N18+Winchester!N18+Coventry!N18+Mansfield!N18+Mashapaug!N18+Beach!N18+Candlewood!N18 -> 31 | L29: ctl-L Sort For Lunker | P29: Rich B | S29: =Bantam!D10 -> Jim B | T29: =Bantam!O10 -> 14 | U29: =Mashapaug!D7 -> Jack | V29: =Mashapaug!O7 -> 14 | W29: =Coventry!D21 -> Scott | X29: =Coventry!O21 -> 30 | Y29: =Beach!D6 -> Dean | Z29: =Beach!O6 -> 14 | AA29: =Candlewood!D14 -> Mike M | AB29: =Candlewood!O14 -> 14 | AC29: =Winchester!D7 -> Jack | AD29: =Winchester!O7 -> 14 | AE29: =Mansfield!D13 -> Kevin | AF29: =Mansfield!O13 -> 14 | AG29: =Aspinook!D18 -> Rich B | AH29: =Aspinook!O18 -> 30
A30: =Q1 -> Rich T | B30: =Q11 -> 8 | C30: =Q10 -> 49 | E30: Jack | F30: 16 | G30: 94 | I30: Rich T | J30: =Aspinook!N19+Bantam!N19+Winchester!N19+Coventry!N19+Mansfield!N19+Mashapaug!N19+Beach!N19+Candlewood!N19 -> 27.94 | L30: ctl-F Sort Top 3 Finishers | P30: Rich T | S30: =Bantam!D7 -> Jack | T30: =Bantam!O7 -> 15 | U30: =Mashapaug!D15 -> Mike G | V30: =Mashapaug!O15 -> 15 | W30: =Coventry!D17 -> Pete | X30: =Coventry!O17 -> 30 | Y30: =Beach!D8 -> Jason | Z30: =Beach!O8 -> 15 | AA30: =Candlewood!D7 -> Jack | AB30: =Candlewood!O7 -> 30 | AC30: =Winchester!D24 -> Tom | AD30: =Winchester!O24 -> 15 | AE30: =Mansfield!D4 -> Armand | AF30: =Mansfield!O4 -> 15 | AG30: =Aspinook!D11 -> Joe | AH30: =Aspinook!O11 -> 30
A31: =R1 -> Ron | B31: =R11 -> 16 | C31: =R10 -> 94 | E31: Ron | F31: 16 | G31: 94 | I31: Ron | J31: =Aspinook!N20+Bantam!N20+Winchester!N20+Coventry!N20+Mansfield!N20+Mashapaug!N20+Beach!N20+Candlewood!N20 -> 16.5 | L31: ctl-W Sort for Total Weight | P31: Ron | S31: =Bantam!D15 -> Mike G | T31: =Bantam!O15 -> 16 | U31: =Mashapaug!D21 -> Scott | V31: =Mashapaug!O21 -> 16 | W31: =Coventry!D24 -> Tom | X31: =Coventry!O24 -> 30 | Y31: =Beach!D7 -> Jack | Z31: =Beach!O7 -> 16 | AA31: =Candlewood!D8 -> Jason | AB31: =Candlewood!O8 -> 30 | AC31: =Winchester!D20 -> Ron | AD31: =Winchester!O20 -> 30 | AE31: =Mansfield!D15 -> Mike G | AF31: =Mansfield!O15 -> 30 | AG31: =Aspinook!D19 -> Rich T | AH31: =Aspinook!O19 -> 30
A32: =S1 -> Scott | B32: =S11 -> 4 | C32: =S10 -> 34 | E32: Mike G | F32: 18 | G32: 105 | I32: Scott | J32: =Aspinook!N21+Bantam!N21+Winchester!N21+Coventry!N21+Mansfield!N21+Mashapaug!N21+Beach!N21+Candlewood!N21 -> 29.98 | P32: Scott | S32: =Bantam!D13 -> Kevin | T32: =Bantam!O13 -> 30 | U32: =Mashapaug!D11 -> Joe | V32: =Mashapaug!O11 -> 17 | W32: =Coventry!D12 -> Kam | X32: =Coventry!O12 -> 35 | Y32: =Beach!D11 -> Joe | Z32: =Beach!O11 -> 17 | AA32: =Candlewood!D5 -> Bill | AB32: =Candlewood!O5 -> 30 | AC32: =Winchester!D14 -> Mike M | AD32: =Winchester!O14 -> 30 | AE32: =Mansfield!D16 -> Morrie | AF32: =Mansfield!O16 -> 30 | AG32: =Aspinook!D6 -> Dean | AH32: =Aspinook!O6 -> 30
A33: =T1 -> Steve D | B33: =T11 -> 1 | C33: =T10 -> 23 | E33: Kam | F33: 19 | G33: 114 | I33: Steve D | J33: =Aspinook!N22+Bantam!N22+Winchester!N22+Coventry!N22+Mansfield!N22+Mashapaug!N22+Beach!N22+Candlewood!N22 -> 46.9 | P33: Steve D | S33: =Bantam!D20 -> Ron | T33: =Bantam!O20 -> 30 | U33: =Mashapaug!D20 -> Ron | V33: =Mashapaug!O20 -> 18 | W33: =Coventry!D14 -> Mike M | X33: =Coventry!O14 -> 35 | Y33: =Beach!D4 -> Armand | Z33: =Beach!O4 -> 18 | AA33: =Candlewood!D15 -> Mike G | AB33: =Candlewood!O15 -> 35 | AC33: =Winchester!D11 -> Joe | AD33: =Winchester!O11 -> 30 | AE33: =Mansfield!D11 -> Joe | AF33: =Mansfield!O11 -> 30 | AG33: =Aspinook!D10 -> Jim B | AH33: =Aspinook!O10 -> 30
A34: =U1 -> Steve S | B34: =U11 -> 13 | C34: =U10 -> 61 | E34: Joe | F34: 20 | G34: 119 | I34: Steve S | J34: =Aspinook!N23+Bantam!N23+Winchester!N23+Coventry!N23+Mansfield!N23+Mashapaug!N23+Beach!N23+Candlewood!N23 -> 24.95 | P34: Steve S | S34: =Bantam!D11 -> Joe | T34: =Bantam!O11 -> 30 | U34: =Mashapaug!D14 -> Mike M | V34: =Mashapaug!O14 -> 19 | W34: =Coventry!D20 -> Ron | X34: =Coventry!O20 -> 35 | Y34: =Beach!D23 -> Steve S | Z34: =Beach!O23 -> 30 | AA34: =Candlewood!D24 -> Tom | AB34: =Candlewood!O24 -> 35 | AC34: =Winchester!D12 -> Kam | AD34: =Winchester!O12 -> 30 | AE34: =Mansfield!D7 -> Jack | AF34: =Mansfield!O7 -> 30 | AG34: =Aspinook!D7 -> Jack | AH34: =Aspinook!O7 -> 35
A35: =V1 -> Tom | B35: =V11 -> 10 | C35: =V10 -> 51 | E35: Jim B | F35: 21 | G35: 137 | I35: Tom | J35: =Aspinook!N24+Bantam!N24+Winchester!N24+Coventry!N24+Mansfield!N24+Mashapaug!N24+Beach!N24+Candlewood!N24 -> 26.01 | P35: Tom | S35: =Bantam!D12 -> Kam | T35: =Bantam!O12 -> 30 | U35: =Mashapaug!D12 -> Kam | V35: =Mashapaug!O12 -> 35 | W35: =Coventry!D15 -> Mike G | X35: =Coventry!O15 -> 35 | Y35: =Beach!D20 -> Ron | Z35: =Beach!O20 -> 35 | AA35: =Candlewood!D10 -> Jim B | AB35: =Candlewood!O10 -> 35 | AC35: =Winchester!D13 -> Kevin | AD35: =Winchester!O13 -> 35 | AE35: =Mansfield!D23 -> Steve S | AF35: =Mansfield!O23 -> 30 | AG35: =Aspinook!D15 -> Mike G | AH35: =Aspinook!O15 -> 35
A36: =W1 -> X | B36: =W11 -> 22 | C36: =W10 -> 210 | E36: X | F36: 22 | G36: 210 | I36: X | J36: =Aspinook!N25+Bantam!N25+Winchester!N25+Coventry!N25+Mansfield!N25+Mashapaug!N25+Beach!N25+Candlewood!N25 -> 0 | P36: X | S36: =Bantam!D14 -> Mike M | T36: =Bantam!O14 -> 30 | U36: =Mashapaug!D16 -> Morrie | V36: =Mashapaug!O16 -> 35 | W36: =Coventry!D10 -> Jim B | X36: =Coventry!O10 -> 35 | Y36: =Beach!D10 -> Jim B | Z36: =Beach!O10 -> 35 | AA36: =Candlewood!D4 -> Armand | AB36: =Candlewood!O4 -> 35 | AC36: =Winchester!D10 -> Jim B | AD36: =Winchester!O10 -> 35 | AE36: =Mansfield!D12 -> Kam | AF36: =Mansfield!O12 -> 30 | AG36: =Aspinook!D5 -> Bill | AH36: =Aspinook!O5 -> 35
A37: =X1 -> X | B37: =X11 -> 22 | C37: =X10 -> 210 | E37: X | F37: 22 | G37: 210 | I37: X | J37: =Aspinook!N26+Bantam!N26+Winchester!N26+Coventry!N26+Mansfield!N26+Mashapaug!N26+Beach!N26+Candlewood!N26 -> 0 | P37: X | S37: =Bantam!D25 -> X | T37: =Bantam!O25 -> 35 | U37: =Mashapaug!D25 -> X | V37: =Mashapaug!O25 -> 35 | W37: =Coventry!D25 -> X | X37: =Coventry!O25 -> 35 | Y37: =Beach!D25 -> X | Z37: =Beach!O25 -> 35 | AA37: =Candlewood!D25 -> X | AB37: =Candlewood!O25 -> 35 | AC37: =Winchester!D25 -> X | AD37: =Winchester!O25 -> 35 | AE37: =Mansfield!D25 -> X | AF37: =Mansfield!O25 -> 35 | AG37: =Aspinook!D25 -> X | AH37: =Aspinook!O25 -> 35
A38: =Y1 -> X | B38: =Y11 -> 22 | C38: =Y10 -> 210 | E38: X | F38: 22 | G38: 210 | I38: X | J38: =Aspinook!N27+Bantam!N27+Winchester!N27+Coventry!N27+Mansfield!N27+Mashapaug!N27+Beach!N27+Candlewood!N27 -> 0 | P38: X | S38: =Bantam!D26 -> X | T38: =Bantam!O26 -> 35 | U38: =Mashapaug!D27 -> X | V38: =Mashapaug!O27 -> 35 | W38: =Coventry!D26 -> X | X38: =Coventry!O26 -> 35 | Y38: =Beach!D26 -> X | Z38: =Beach!O26 -> 35 | AA38: =Candlewood!D26 -> X | AB38: =Candlewood!O26 -> 35 | AC38: =Winchester!D26 -> X | AD38: =Winchester!O26 -> 35 | AE38: =Mansfield!D26 -> X | AF38: =Mansfield!O26 -> 35 | AG38: =Aspinook!D26 -> X | AH38: =Aspinook!O26 -> 35
A39: =Z1 -> X | B39: =Z11 -> 22 | C39: =Z10 -> 210 | E39: X | F39: 22 | G39: 210 | I39: X | J39: =Aspinook!N28+Bantam!N28+Winchester!N28+Coventry!N28+Mansfield!N28+Mashapaug!N28+Beach!N28+Candlewood!N28 -> 0 | P39: X | S39: =Bantam!D27 -> X | T39: =Bantam!O27 -> 35 | U39: =Mashapaug!D26 -> X | V39: =Mashapaug!O26 -> 35 | W39: =Coventry!D27 -> X | X39: =Coventry!O27 -> 35 | Y39: =Beach!D27 -> X | Z39: =Beach!O27 -> 35 | AA39: =Candlewood!D27 -> X | AB39: =Candlewood!O27 -> 35 | AC39: =Winchester!D27 -> X | AD39: =Winchester!O27 -> 35 | AE39: =Mansfield!D27 -> X | AF39: =Mansfield!O27 -> 35 | AG39: =Aspinook!D27 -> X | AH39: =Aspinook!O27 -> 35
A40: =AA1 -> X | B40: =AA11 -> 22 | C40: =AA10 -> 210 | E40: X | F40: 22 | G40: 210 | I40: X | J40: =Aspinook!N29+Bantam!N29+Winchester!N29+Coventry!N29+Mansfield!N29+Mashapaug!N29+Beach!N29+Candlewood!N29 -> 0 | P40: X | S40: =Bantam!D28 -> X | T40: =Bantam!O28 -> 35 | U40: =Mashapaug!D28 -> X | V40: =Mashapaug!O28 -> 35 | W40: =Coventry!D28 -> X | X40: =Coventry!O28 -> 35 | Y40: =Beach!D28 -> X | Z40: =Beach!O28 -> 35 | AA40: =Candlewood!D28 -> X | AB40: =Candlewood!O28 -> 35 | AC40: =Winchester!D28 -> X | AD40: =Winchester!O28 -> 35 | AE40: =Mansfield!D28 -> X | AF40: =Mansfield!O28 -> 35 | AG40: =Aspinook!D28 -> X | AH40: =Aspinook!O28 -> 35
S41: =Bantam!D29 -> X | T41: =Bantam!O29 -> 35 | U41: =Mashapaug!D29 -> X | V41: =Mashapaug!O29 -> 35 | W41: =Coventry!D29 -> X | X41: =Coventry!O29 -> 35 | Y41: =Beach!D29 -> X | Z41: =Beach!O29 -> 35 | AA41: =Candlewood!D29 -> X | AB41: =Candlewood!O29 -> 35 | AC41: =Winchester!D29 -> X | AD41: =Winchester!O29 -> 35 | AE41: =Mansfield!D29 -> X | AF41: =Mansfield!O29 -> 35 | AG41: =Aspinook!D29 -> X | AH41: =Aspinook!O29 -> 35
A44: Total Weight
A45: =L15 -> Bantam | C45: =L16 -> Mashapaug | E45: =L17 -> Coventry | G45: =L18 -> Beach | I45: =L19 -> Candlewood | K45: =L20 -> Winchester | M45: =L21 -> Mansfield | O45: =L22 -> Aspinook | Q45: Lbs | S45: Total Weight YTD
A46: Name | B46: Weight | C46: Name | D46: Weight | E46: Name | F46: Weight | G46: Name | H46: Weight | I46: Name | J46: Weight | K46: Name | L46: Weight | M46: Name | N46: Weight | O46: Name | P46: Weight | Q46: Ytd | S46: Name | T46: Weight
A47: =P15 -> Armand | B47: =Bantam!N4 -> 4.44 | C47: =P15 -> Armand | D47: =Mashapaug!N4 -> 11.39 | E47: =P15 -> Armand | F47: =Coventry!N4 -> 2.29 | G47: =P15 -> Armand | H47: =Beach!N4 -> 0.67 | I47: =P15 -> Armand | J47: =Candlewood!N4 -> 0 | K47: =P15 -> Armand | L47: =Winchester!N4 -> 1.59 | M47: =P15 -> Armand | N47: =Mansfield!N4 -> 1.93 | O47: =P15 -> Armand | P47: =Aspinook!N4 -> 1.95 | Q47: =SUM(A47:P47) -> 24.26 | S47: Armand | T47: =Q47 -> 24.26
A48: Bill | B48: =Bantam!N5 -> 7.77 | C48: Bill | D48: =Mashapaug!N5 -> 5.38 | E48: Bill | F48: =Coventry!N5 -> 1.25 | G48: Bill | H48: =Beach!N5 -> 4.98 | I48: Bill | J48: =Candlewood!N5 -> 0 | K48: Bill | L48: =Winchester!N5 -> 1.58 | M48: Bill | N48: =Mansfield!N5 -> 3.81 | O48: Bill | P48: =Aspinook!N5 -> 0 | Q48: 24.77 | S48: Bill | T48: =Q48 -> 24.77
A49: Dean | B49: =Bantam!N6 -> 4.38 | C49: Dean | D49: =Mashapaug!N6 -> 9.49 | E49: Dean | F49: =Coventry!N6 -> 0.89 | G49: Dean | H49: =Beach!N6 -> 1.33 | I49: Dean | J49: =Candlewood!N6 -> 2.67 | K49: Dean | L49: =Winchester!N6 -> 4.85 | M49: Dean | N49: =Mansfield!N6 -> 5.49 | O49: Dean | P49: =Aspinook!N6 -> 0 | Q49: 29.1 | S49: Dean | T49: 29.1
A50: Jack | B50: =Bantam!N7 -> 1.74 | C50: Jack | D50: =Mashapaug!N7 -> 5.29 | E50: Jack | F50: =Coventry!N7 -> 3.55 | G50: Jack | H50: =Beach!N7 -> 1.03 | I50: Jack | J50: =Candlewood!N7 -> 0 | K50: Jack | L50: =Winchester!N7 -> 1.05 | M50: Jack | N50: =Mansfield!N7 -> 0 | O50: Jack | P50: =Aspinook!N7 -> 0 | Q50: 12.66 | S50: Jack | T50: 12.66
A51: Jason | B51: =Bantam!N8 -> 9.61 | C51: Jason | D51: =Mashapaug!N8 -> 11.17 | E51: Jason | F51: =Coventry!N8 -> 5.07 | G51: Jason | H51: =Beach!N8 -> 1.21 | I51: Jason | J51: =Candlewood!N8 -> 0 | K51: Jason | L51: =Winchester!N8 -> 3.58 | M51: Jason | N51: =Mansfield!N8 -> 5.57 | O51: Jason | P51: =Aspinook!N8 -> 1.94 | Q51: 38.15 | S51: Jason | T51: 38.15
A52: Jeff | B52: =Bantam!N9 -> 8.56 | C52: Jeff | D52: =Mashapaug!N9 -> 9.19 | E52: Jeff | F52: =Coventry!N9 -> 3.07 | G52: Jeff | H52: =Beach!N9 -> 9.31 | I52: Jeff | J52: =Candlewood!N9 -> 4.13 | K52: Jeff | L52: =Winchester!N9 -> 4.64 | M52: Jeff | N52: =Mansfield!N9 -> 5.53 | O52: Jeff | P52: =Aspinook!N9 -> 2.65 | Q52: 47.08 | S52: Jeff | T52: 47.08
A53: Jim B | B53: =Bantam!N10 -> 3.08 | C53: Jim B | D53: =Mashapaug!N10 -> 7.55 | E53: Jim B | F53: =Coventry!N10 -> 0 | G53: Jim B | H53: =Beach!N10 -> 0 | I53: Jim B | J53: =Candlewood!N10 -> 0 | K53: Jim B | L53: =Winchester!N10 -> 0 | M53: Jim B | N53: =Mansfield!N10 -> 2.21 | O53: Jim B | P53: =Aspinook!N10 -> 0 | Q53: 12.84 | S53: Jim B | T53: 12.84
A54: Joe | B54: =Bantam!N11 -> 0 | C54: Joe | D54: =Mashapaug!N11 -> 3.7 | E54: Joe | F54: =Coventry!N11 -> 0.8 | G54: Joe | H54: =Beach!N11 -> 0.73 | I54: Joe | J54: =Candlewood!N11 -> 2.13 | K54: Joe | L54: =Winchester!N11 -> 0 | M54: Joe | N54: =Mansfield!N11 -> 0 | O54: Joe | P54: =Aspinook!N11 -> 0 | Q54: 7.36 | S54: Joe | T54: 7.36
A55: Kam | B55: =Bantam!N12 -> 0 | C55: Kam | D55: =Mashapaug!N12 -> 0 | E55: Kam | F55: =Coventry!N12 -> 0 | G55: Kam | H55: =Beach!N12 -> 1.93 | I55: Kam | J55: =Candlewood!N12 -> 2.42 | K55: Kam | L55: =Winchester!N12 -> 0 | M55: Kam | N55: =Mansfield!N12 -> 0 | O55: Kam | P55: =Aspinook!N12 -> 6.95 | Q55: 11.3 | S55: Kam | T55: 11.3
A56: Kevin | B56: =Bantam!N13 -> 0 | C56: Kevin | D56: =Mashapaug!N13 -> 7.11 | E56: Kevin | F56: =Coventry!N13 -> 4.72 | G56: Kevin | H56: =Beach!N13 -> 2.5 | I56: Kevin | J56: =Candlewood!N13 -> 1.9 | K56: Kevin | L56: =Winchester!N13 -> 0 | M56: Kevin | N56: =Mansfield!N13 -> 2.01 | O56: Kevin | P56: =Aspinook!N13 -> 14.95 | Q56: 33.19 | S56: Kevin | T56: 33.19
A57: Mike M | B57: =Bantam!N14 -> 0 | C57: Mike M | D57: =Mashapaug!N14 -> 1.9 | E57: Mike M | F57: =Coventry!N14 -> 0 | G57: Mike M | H57: =Beach!N14 -> 5.87 | I57: Mike M | J57: =Candlewood!N14 -> 1.72 | K57: Mike M | L57: =Winchester!N14 -> 0 | M57: Mike M | N57: =Mansfield!N14 -> 8.98 | O57: Mike M | P57: =Aspinook!N14 -> 0.914 | Q57: 19.384 | S57: Mike | T57: 19.384
A58: Mike G | B58: =Bantam!N15 -> 1.28 | C58: Mike G | D58: =Mashapaug!N15 -> 5.05 | E58: Mike G | F58: =Coventry!N15 -> 0 | G58: Mike G | H58: =Beach!N15 -> 4.78 | I58: Mike G | J58: =Candlewood!N15 -> 0 | K58: Mike G | L58: =Winchester!N15 -> 5.76 | M58: Mike G | N58: =Mansfield!N15 -> 0 | O58: Mike G | P58: =Aspinook!N15 -> 0 | Q58: 16.87 | S58: Mike G | T58: 16.87
A59: Morrie | B59: =Bantam!N16 -> 3.1 | C59: Morrie | D59: =Mashapaug!N16 -> 0 | E59: Morrie | F59: =Coventry!N16 -> 5.36 | G59: Morrie | H59: =Beach!N16 -> 3.5 | I59: Morrie | J59: =Candlewood!N16 -> 6.02 | K59: Morrie | L59: =Winchester!N16 -> 1.64 | M59: Morrie | N59: =Mansfield!N16 -> 0 | O59: Morrie | P59: =Aspinook!N16 -> 0 | Q59: 19.62 | S59: Morrie | T59: 19.62
A60: Pete | B60: =Bantam!N17 -> 4.23 | C60: Pete | D60: =Mashapaug!N17 -> 8.32 | E60: Pete | F60: =Coventry!N17 -> 0 | G60: Pete | H60: =Beach!N17 -> 2.05 | I60: Pete | J60: =Candlewood!N17 -> 7.95 | K60: Pete | L60: =Winchester!N17 -> 5.03 | M60: Pete | N60: =Mansfield!N17 -> 4.58 | O60: Pete | P60: =Aspinook!N17 -> 0 | Q60: 32.16 | S60: Pete | T60: 32.16
A61: Rich B | B61: =Bantam!N18 -> 3.55 | C61: Rich B | D61: =Mashapaug!N18 -> 10.58 | E61: Rich B | F61: =Coventry!N18 -> 3.48 | G61: Rich B | H61: =Beach!N18 -> 1.96 | I61: Rich B | J61: =Candlewood!N18 -> 2.88 | K61: Rich B | L61: =Winchester!N18 -> 1.19 | M61: Rich B | N61: =Mansfield!N18 -> 7.36 | O61: Rich B | P61: =Aspinook!N18 -> 0 | Q61: 31 | S61: Rich B | T61: 31
A62: Rich T | B62: =Bantam!N19 -> 5.66 | C62: Rich T | D62: =Mashapaug!N19 -> 6.04 | E62: Rich T | F62: =Coventry!N19 -> 1.78 | G62: Rich T | H62: =Beach!N19 -> 2.04 | I62: Rich T | J62: =Candlewood!N19 -> 2.35 | K62: Rich T | L62: =Winchester!N19 -> 3.9 | M62: Rich T | N62: =Mansfield!N19 -> 6.17 | O62: Rich T | P62: =Aspinook!N19 -> 0 | Q62: 27.94 | S62: Rich T | T62: 27.94
A63: Ron | B63: =Bantam!N20 -> 0 | C63: Ron | D63: =Mashapaug!N20 -> 2.94 | E63: Ron | F63: =Coventry!N20 -> 0 | G63: Ron | H63: =Beach!N20 -> 0 | I63: Ron | J63: =Candlewood!N20 -> 2.41 | K63: Ron | L63: =Winchester!N20 -> 0 | M63: Ron | N63: =Mansfield!N20 -> 6.6 | O63: Ron | P63: =Aspinook!N20 -> 4.55 | Q63: 16.5 | S63: Ron | T63: 16.5
A64: Scott | B64: =Bantam!N21 -> 4.24 | C64: Scott | D64: =Mashapaug!N21 -> 5.03 | E64: Scott | F64: =Coventry!N21 -> 0 | G64: Scott | H64: =Beach!N21 -> 5.98 | I64: Scott | J64: =Candlewood!N21 -> 3.42 | K64: Scott | L64: =Winchester!N21 -> 6.49 | M64: Scott | N64: =Mansfield!N21 -> 2.55 | O64: Scott | P64: =Aspinook!N21 -> 2.27 | Q64: 29.98 | S64: Scott | T64: 29.98
A65: Steve D | B65: =Bantam!N22 -> 8.24 | C65: Steve D | D65: =Mashapaug!N22 -> 9.48 | E65: Steve D | F65: =Coventry!N22 -> 13.24 | G65: Steve D | H65: =Beach!N22 -> 5.03 | I65: Steve D | J65: =Candlewood!N22 -> 2.56 | K65: Steve D | L65: =Winchester!N22 -> 5.87 | M65: Steve D | N65: =Mansfield!N22 -> 2.48 | O65: Steve D | P65: =Aspinook!N22 -> 0 | Q65: 46.9 | S65: Steve D | T65: 46.9
A66: Steve S | B66: =Bantam!N23 -> 4.31 | C66: Steve S | D66: =Mashapaug!N23 -> 8.28 | E66: Steve S | F66: =Coventry!N23 -> 2.67 | G66: Steve S | H66: =Beach!N23 -> 0 | I66: Steve S | J66: =Candlewood!N23 -> 4.64 | K66: Steve S | L66: =Winchester!N23 -> 5.05 | M66: Steve S | N66: =Mansfield!N23 -> 0 | O66: Steve S | P66: =Aspinook!N23 -> 0 | Q66: 24.95 | S66: Steve S | T66: 24.95
A67: Tom | B67: =Bantam!N24 -> 4.18 | C67: Tom | D67: =Mashapaug!N24 -> 7.83 | E67: Tom | F67: =Coventry!N24 -> 0 | G67: Tom | H67: =Beach!N24 -> 4.43 | I67: Tom | J67: =Candlewood!N24 -> 0 | K67: Tom | L67: =Winchester!N24 -> 0.74 | M67: Tom | N67: =Mansfield!N24 -> 6.1 | O67: Tom | P67: =Aspinook!N24 -> 2.73 | Q67: 26.01 | S67: Tom | T67: 26.01
A68: X | B68: =Bantam!N25 -> 0 | C68: X | D68: =Mashapaug!N25 -> 0 | E68: X | F68: =Coventry!N25 -> 0 | G68: X | H68: =Beach!N25 -> 0 | I68: X | J68: =Candlewood!N25 -> 0 | K68: X | L68: =Winchester!N25 -> 0 | M68: X | N68: =Mansfield!N25 -> 0 | O68: X | P68: =Aspinook!N25 -> 0 | Q68: 0 | S68: X | T68: 0
A69: X | B69: =Bantam!N26 -> 0 | C69: X | D69: =Mashapaug!N26 -> 0 | E69: X | F69: =Coventry!N26 -> 0 | G69: X | H69: =Beach!N26 -> 0 | I69: X | J69: =Candlewood!N26 -> 0 | K69: X | L69: =Winchester!N26 -> 0 | M69: X | N69: =Mansfield!N26 -> 0 | O69: X | P69: =Aspinook!N26 -> 0 | Q69: 0 | S69: X | T69: 0
A70: X | B70: =Bantam!N27 -> 0 | C70: X | D70: =Mashapaug!N27 -> 0 | E70: X | F70: =Coventry!N27 -> 0 | G70: X | H70: =Beach!N27 -> 0 | I70: X | J70: =Candlewood!N27 -> 0 | K70: X | L70: =Winchester!N27 -> 0 | M70: X | N70: =Mansfield!N27 -> 0 | O70: X | P70: =Aspinook!N27 -> 0 | Q70: 0 | S70: X | T70: 0
A71: X | B71: =Bantam!N28 -> 0 | C71: X | D71: =Mashapaug!N28 -> 0 | E71: X | F71: =Coventry!N28 -> 0 | G71: X | H71: =Beach!N28 -> 0 | I71: X | J71: =Candlewood!N28 -> 0 | K71: X | L71: =Winchester!N28 -> 0 | M71: X | N71: =Mansfield!N28 -> 0 | O71: X | P71: =Aspinook!N28 -> 0 | Q71: 0 | S71: X | T71: 0
A72: X | B72: =Bantam!N29 -> 0 | C72: X | D72: =Mashapaug!N29 -> 0 | E72: X | F72: =Coventry!N29 -> 0 | G72: X | H72: =Beach!N29 -> 0 | I72: X | J72: =Candlewood!N29 -> 0 | K72: X | L72: =Winchester!N29 -> 0 | M72: X | N72: =Mansfield!N29 -> 0 | O72: X | P72: =Aspinook!N29 -> 0 | Q72: 0 | S72: X | T72: 0
A74: Lunkers
A75: =A45 -> Bantam | D75: =C45 -> Mashapaug | G75: =E45 -> Coventry | J75: =G45 -> Beach | M75: =I45 -> Candlewood | P75: =K45 -> Winchester | S75: =M45 -> Mansfield | V75: =O45 -> Aspinook
A76: Name | B76: Weight | C76: L or S | D76: Name | E76: Weight | F76: L or S | G76: Name | H76: Weight | I76: L or S | J76: Name | K76: Weight | L76: L or S | M76: Name | N76: Weight | O76: L or S | P76: Name | Q76: Weight | R76: L or S | S76: Name | T76: Weight | U76: L or S | V76: Name | W76: Weight | X76: L or S
A77: Armand | B77: =Bantam!J4 -> 0 | C77: =Bantam!K4 -> 0 | D77: Armand | E77: =Mashapaug!J4 -> 0 | F77: =Mashapaug!K4 -> 0 | G77: Armand | H77: =Coventry!J4 -> 0 | I77: =Coventry!K4 -> 0 | J77: Armand | K77: =Beach!J4 -> 0 | L77: =Beach!K4 -> 0 | M77: Armand | N77: =Candlewood!J4 -> 0 | O77: =Candlewood!K4 -> 0 | Q77: =Winchester!J29 -> 0 | S77: Armand | T77: =Mansfield!J4 -> 0 | U77: =Mansfield!K4 -> 0 | V77: Armand | W77: =Aspinook!J4 -> 0 | X77: =Aspinook!K4 -> 0
A78: Bill | B78: =Bantam!J5 -> 0 | C78: =Bantam!K5 -> 0 | D78: Bill | E78: =Mashapaug!J5 -> 0 | F78: =Mashapaug!K5 -> 0 | G78: Bill | H78: =Coventry!J5 -> 0 | I78: =Coventry!K5 -> 0 | J78: Bill | K78: =Beach!J5 -> 0 | L78: =Beach!K5 -> 0 | M78: Bill | N78: =Candlewood!J5 -> 0 | O78: =Candlewood!K5 -> 0 | P78: Armand | Q78: =Winchester!J4 -> 0 | R78: =Winchester!K4 -> 0 | S78: Bill | T78: =Mansfield!J5 -> 0 | U78: =Mansfield!K5 -> 0 | V78: Bill | W78: =Aspinook!J5 -> 0 | X78: =Aspinook!K5 -> 0
A79: Dean | B79: =Bantam!J6 -> 0 | C79: =Bantam!K6 -> 0 | D79: Dean | E79: =Mashapaug!J6 -> 0 | F79: =Mashapaug!K6 -> 0 | G79: Dean | H79: =Coventry!J6 -> 0 | I79: =Coventry!K6 -> 0 | J79: Dean | K79: =Beach!J6 -> 0 | L79: =Beach!K6 -> 0 | M79: Dean | N79: =Candlewood!J6 -> 0 | O79: =Candlewood!K6 -> 0 | P79: Bill | Q79: =Winchester!J5 -> 0 | R79: =Winchester!K5 -> 0 | S79: Dean | T79: =Mansfield!J6 -> 0 | U79: =Mansfield!K6 -> 0 | V79: Dean | W79: =Aspinook!J6 -> 0 | X79: =Aspinook!K6 -> 0
A80: Jack | B80: =Bantam!J7 -> 0 | C80: =Bantam!K7 -> 0 | D80: Jack | E80: =Mashapaug!J7 -> 0 | F80: =Mashapaug!K7 -> 0 | G80: Jack | H80: =Coventry!J7 -> 0 | I80: =Coventry!K7 -> 0 | J80: Jack | K80: =Beach!J7 -> 0 | L80: =Beach!K7 -> 0 | M80: Jack | N80: =Candlewood!J7 -> 0 | O80: =Candlewood!K7 -> 0 | P80: Dean | Q80: =Winchester!J6 -> 0 | R80: =Winchester!K6 -> 0 | S80: Jack | T80: =Mansfield!J7 -> 0 | U80: =Mansfield!K7 -> 0 | V80: Jack | W80: =Aspinook!J7 -> 0 | X80: =Aspinook!K7 -> 0
A81: Jeff | B81: =Bantam!J9 -> 0 | C81: =Bantam!K9 -> 0 | D81: Jeff | E81: =Mashapaug!J9 -> 0 | F81: =Mashapaug!K9 -> 0 | G81: Jason | H81: =Coventry!J8 -> 0 | I81: =Coventry!K8 -> 0 | J81: Jason | K81: =Beach!J8 -> 0 | L81: =Beach!K8 -> 0 | M81: Jason | N81: =Candlewood!J8 -> 0 | O81: =Candlewood!K8 -> 0 | P81: Jack | Q81: =Winchester!J7 -> 0 | R81: =Winchester!K7 -> 0 | S81: Jason | T81: =Mansfield!J8 -> 0 | U81: =Mansfield!K8 -> 0 | V81: Jason | W81: =Aspinook!J8 -> 0 | X81: =Aspinook!K8 -> 0
A82: Jim B | B82: =Bantam!J10 -> 0 | C82: =Bantam!K10 -> 0 | D82: Jim B | E82: =Mashapaug!J10 -> 0 | F82: =Mashapaug!K10 -> 0 | G82: Jeff | H82: =Coventry!J9 -> 0 | I82: =Coventry!K9 -> 0 | J82: Jim B | K82: =Beach!J10 -> 0 | L82: =Beach!K10 -> 0 | M82: Jeff | N82: =Candlewood!J9 -> 0 | O82: =Candlewood!K9 -> 0 | P82: Jason | Q82: =Winchester!J8 -> 0 | R82: =Winchester!K8 -> 0 | S82: Jeff | T82: =Mansfield!J9 -> 0 | U82: =Mansfield!K9 -> 0 | V82: Jeff | W82: =Aspinook!J9 -> 0 | X82: =Aspinook!K9 -> 0
A83: Joe | B83: =Bantam!J11 -> 0 | C83: =Bantam!K11 -> 0 | D83: Joe | E83: =Mashapaug!J11 -> 0 | F83: =Mashapaug!K11 -> 0 | G83: Jim B | H83: =Coventry!J10 -> 0 | I83: =Coventry!K10 -> 0 | J83: Joe | K83: =Beach!J11 -> 0 | L83: =Beach!K11 -> 0 | M83: Jim B | N83: =Candlewood!J10 -> 0 | O83: =Candlewood!K10 -> 0 | P83: Jeff | Q83: =Winchester!J9 -> 0 | R83: =Winchester!K9 -> 0 | S83: Jim B | T83: =Mansfield!J10 -> 0 | U83: =Mansfield!K10 -> 0 | V83: Jim B | W83: =Aspinook!J10 -> 0 | X83: =Aspinook!K10 -> 0
A84: Kam | B84: =Bantam!J12 -> 0 | C84: =Bantam!K12 -> 0 | D84: Kam | E84: =Mashapaug!J12 -> 0 | F84: =Mashapaug!K12 -> 0 | G84: Joe | H84: =Coventry!J11 -> 0 | I84: =Coventry!K11 -> 0 | J84: Kam | K84: =Beach!J12 -> 0 | L84: =Beach!K12 -> 0 | M84: Joe | N84: =Candlewood!J11 -> 0 | O84: =Candlewood!K11 -> 0 | P84: Jim B | Q84: =Winchester!J10 -> 0 | R84: =Winchester!K10 -> 0 | S84: Joe | T84: =Mansfield!J11 -> 0 | U84: =Mansfield!K11 -> 0 | V84: Joe | W84: =Aspinook!J11 -> 0 | X84: =Aspinook!K11 -> 0
A85: Kevin | B85: =Bantam!J13 -> 0 | C85: =Bantam!K13 -> 0 | D85: Kevin | E85: =Mashapaug!J13 -> 0 | F85: =Mashapaug!K13 -> 0 | G85: Kam | H85: =Coventry!J12 -> 0 | I85: =Coventry!K12 -> 0 | J85: Kevin | K85: =Beach!J13 -> 0 | L85: =Beach!K13 -> 0 | M85: Kam | N85: =Candlewood!J12 -> 0 | O85: =Candlewood!K12 -> 0 | P85: Joe | Q85: =Winchester!J11 -> 0 | R85: =Winchester!K11 -> 0 | S85: Kam | T85: =Mansfield!J12 -> 0 | U85: =Mansfield!K12 -> 0 | V85: Kam | W85: =Aspinook!J12 -> 0 | X85: =Aspinook!K12 -> 0
A86: Mike | B86: =Bantam!J14 -> 0 | C86: =Bantam!K14 -> 0 | D86: Mike | E86: =Mashapaug!J14 -> 0 | F86: =Mashapaug!K14 -> 0 | G86: Kevin | H86: =Coventry!J13 -> 0 | I86: =Coventry!K13 -> 0 | J86: Mike | K86: =Beach!J14 -> 0 | L86: =Beach!K14 -> 0 | M86: Kevin | N86: =Candlewood!J13 -> 0 | O86: =Candlewood!K13 -> 0 | P86: Kam | Q86: =Winchester!J12 -> 0 | R86: =Winchester!K12 -> 0 | S86: Kevin | T86: =Mansfield!J13 -> 0 | U86: =Mansfield!K13 -> 0 | V86: Mike | W86: =Aspinook!J14 -> 0 | X86: =Aspinook!K14 -> 0
A87: Mike G | B87: =Bantam!J15 -> 0 | C87: =Bantam!K15 -> 0 | D87: Mike G | E87: =Mashapaug!J15 -> 0 | F87: =Mashapaug!K15 -> 0 | G87: Mike | H87: =Coventry!J14 -> 0 | I87: =Coventry!K14 -> 0 | J87: Mike G | K87: =Beach!J15 -> 0 | L87: =Beach!K15 -> 0 | M87: Mike | N87: =Candlewood!J14 -> 0 | O87: =Candlewood!K14 -> 0 | P87: Kevin | Q87: =Winchester!J13 -> 0 | R87: =Winchester!K13 -> 0 | S87: Mike | T87: =Mansfield!J14 -> 0 | U87: =Mansfield!K14 -> 0 | V87: Mike G | W87: =Aspinook!J15 -> 0 | X87: =Aspinook!K15 -> 0
A88: Morrie | B88: =Bantam!J16 -> 0 | C88: =Bantam!K16 -> 0 | D88: Morrie | E88: =Mashapaug!J16 -> 0 | F88: =Mashapaug!K16 -> 0 | G88: Mike G | H88: =Coventry!J15 -> 0 | I88: =Coventry!K15 -> 0 | J88: Morrie | K88: =Beach!J16 -> 0 | L88: =Beach!K16 -> 0 | M88: Mike G | N88: =Candlewood!J15 -> 0 | O88: =Candlewood!K15 -> 0 | P88: Mike | Q88: =Winchester!J14 -> 0 | R88: =Winchester!K14 -> 0 | S88: Mike G | T88: =Mansfield!J15 -> 0 | U88: =Mansfield!K15 -> 0 | V88: Morrie | W88: =Aspinook!J16 -> 0 | X88: =Aspinook!K16 -> 0
A89: Pete | B89: =Bantam!J17 -> 0 | C89: =Bantam!K17 -> 0 | D89: Pete | E89: =Mashapaug!J17 -> 0 | F89: =Mashapaug!K17 -> 0 | G89: Morrie | H89: =Coventry!J16 -> 0 | I89: =Coventry!K16 -> 0 | J89: Pete | K89: =Beach!J17 -> 0 | L89: =Beach!K17 -> 0 | M89: Pete | N89: =Candlewood!J17 -> 0 | O89: =Candlewood!K17 -> 0 | P89: Morrie | Q89: =Winchester!J16 -> 0 | R89: =Winchester!K16 -> 0 | S89: Morrie | T89: =Mansfield!J16 -> 0 | U89: =Mansfield!K16 -> 0 | V89: Pete | W89: =Aspinook!J17 -> 0 | X89: =Aspinook!K17 -> 0
A90: Rich B | B90: =Bantam!J18 -> 0 | C90: =Bantam!K18 -> 0 | D90: Rich B | E90: =Mashapaug!J18 -> 0 | F90: =Mashapaug!K18 -> 0 | G90: Pete | H90: =Coventry!J17 -> 0 | I90: =Coventry!K17 -> 0 | J90: Rich B | K90: =Beach!J18 -> 0 | L90: =Beach!K18 -> 0 | M90: Rich B | N90: =Candlewood!J18 -> 0 | O90: =Candlewood!K18 -> 0 | P90: Pete | Q90: =Winchester!J17 -> 0 | R90: =Winchester!K17 -> 0 | S90: Pete | T90: =Mansfield!J17 -> 0 | U90: =Mansfield!K17 -> 0 | V90: Rich B | W90: =Aspinook!J18 -> 0 | X90: =Aspinook!K18 -> 0
A91: Rich T | B91: =Bantam!J19 -> 0 | C91: =Bantam!K19 -> 0 | D91: Rich T | E91: =Mashapaug!J19 -> 0 | F91: =Mashapaug!K19 -> 0 | G91: Rich B | H91: =Coventry!J18 -> 0 | I91: =Coventry!K18 -> 0 | J91: Rich T | K91: =Beach!J19 -> 0 | L91: =Beach!K19 -> 0 | M91: Rich T | N91: =Candlewood!J19 -> 0 | O91: =Candlewood!K19 -> 0 | P91: Rich B | Q91: =Winchester!J18 -> 0 | R91: =Winchester!K18 -> 0 | S91: Rich B | T91: =Mansfield!J18 -> 0 | U91: =Mansfield!K18 -> 0 | V91: Rich T | W91: =Aspinook!J19 -> 0 | X91: =Aspinook!K19 -> 0
A92: Ron | B92: =Bantam!J20 -> 0 | C92: =Bantam!K20 -> 0 | D92: Ron | E92: =Mashapaug!J20 -> 0 | F92: =Mashapaug!K20 -> 0 | G92: Rich T | H92: =Coventry!J19 -> 0 | I92: =Coventry!K19 -> 0 | J92: Ron | K92: =Beach!J20 -> 0 | L92: =Beach!K20 -> 0 | M92: Ron | N92: =Candlewood!J20 -> 0 | O92: =Candlewood!K20 -> 0 | P92: Rich T | Q92: =Winchester!J19 -> 0 | R92: =Winchester!K19 -> 0 | S92: Rich T | T92: =Mansfield!J19 -> 0 | U92: =Mansfield!K19 -> 0 | V92: Ron | W92: =Aspinook!J20 -> 0 | X92: =Aspinook!K20 -> 0
A93: Scott | B93: =Bantam!J21 -> 0 | C93: =Bantam!K21 -> 0 | D93: Scott | E93: =Mashapaug!J21 -> 0 | F93: =Mashapaug!K21 -> 0 | G93: Ron | H93: =Coventry!J20 -> 0 | I93: =Coventry!K20 -> 0 | J93: Scott | K93: =Beach!J21 -> 0 | L93: =Beach!K21 -> 0 | M93: Scott | N93: =Candlewood!J21 -> 0 | O93: =Candlewood!K21 -> 0 | P93: Ron | Q93: =Winchester!J20 -> 0 | R93: =Winchester!K20 -> 0 | S93: Scott | T93: =Mansfield!J21 -> 0 | U93: =Mansfield!K21 -> 0 | V93: Scott | W93: =Aspinook!J21 -> 0 | X93: =Aspinook!K21 -> 0
A94: Steve D | B94: =Bantam!J22 -> 0 | C94: =Bantam!K22 -> 0 | D94: Steve D | E94: =Mashapaug!J22 -> 0 | F94: =Mashapaug!K22 -> 0 | G94: Scott | H94: =Coventry!J21 -> 0 | I94: =Coventry!K21 -> 0 | J94: Steve D | K94: =Beach!J22 -> 0 | L94: =Beach!K22 -> 0 | M94: Steve D | N94: =Candlewood!J22 -> 0 | O94: =Candlewood!K22 -> 0 | P94: Scott | Q94: =Winchester!J21 -> 0 | R94: =Winchester!K21 -> 0 | S94: Steve D | T94: =Mansfield!J22 -> 0 | U94: =Mansfield!K22 -> 0 | V94: Steve D | W94: =Aspinook!J22 -> 0 | X94: =Aspinook!K22 -> 0
A95: Steve S | B95: =Bantam!J23 -> 0 | C95: =Bantam!K23 -> 0 | D95: Steve S | E95: =Mashapaug!J23 -> 0 | F95: =Mashapaug!K23 -> 0 | G95: Steve S | H95: =Coventry!J23 -> 0 | I95: =Coventry!K23 -> 0 | J95: Steve S | K95: =Beach!J23 -> 0 | L95: =Beach!K23 -> 0 | M95: Steve S | N95: =Candlewood!J23 -> 0 | O95: =Candlewood!K23 -> 0 | P95: Steve D | Q95: =Winchester!J22 -> 0 | R95: =Winchester!K22 -> 0 | S95: Steve S | T95: =Mansfield!J23 -> 0 | U95: =Mansfield!K23 -> 0 | V95: Steve S | W95: =Aspinook!J23 -> 0 | X95: =Aspinook!K23 -> 0
A96: Tom | B96: =Bantam!J24 -> 0 | C96: =Bantam!K24 -> 0 | D96: Tom | E96: =Mashapaug!J24 -> 0 | F96: =Mashapaug!K24 -> 0 | G96: Tom | H96: =Coventry!J24 -> 0 | I96: =Coventry!K24 -> 0 | J96: Tom | K96: =Beach!J24 -> 0 | L96: =Beach!K24 -> 0 | M96: Tom | N96: =Candlewood!J24 -> 0 | O96: =Candlewood!K24 -> 0 | P96: Steve S | Q96: =Winchester!J23 -> 0 | R96: =Winchester!K23 -> 0 | S96: Tom | T96: =Mansfield!J24 -> 0 | U96: =Mansfield!K24 -> 0 | V96: Tom | W96: =Aspinook!J24 -> 0 | X96: =Aspinook!K24 -> 0
A97: X | B97: =Bantam!J25 -> 0 | C97: =Bantam!K25 -> 0 | D97: X | E97: =Mashapaug!J25 -> 0 | F97: =Mashapaug!K25 -> 0 | G97: X | H97: =Coventry!J25 -> 0 | I97: =Coventry!K25 -> 0 | J97: X | K97: =Beach!J25 -> 0 | L97: =Beach!K25 -> 0 | M97: X | N97: =Candlewood!J25 -> 0 | O97: =Candlewood!K25 -> 0 | P97: Tom | Q97: =Winchester!J24 -> 0 | R97: =Winchester!K24 -> 0 | S97: X | T97: =Mansfield!J25 -> 0 | U97: =Mansfield!K25 -> 0 | V97: X | W97: =Aspinook!J25 -> 0 | X97: =Aspinook!K25 -> 0
A98: X | B98: =Bantam!J26 -> 0 | C98: =Bantam!K26 -> 0 | D98: X | E98: =Mashapaug!J26 -> 0 | F98: =Mashapaug!K26 -> 0 | G98: X | H98: =Coventry!J26 -> 0 | I98: =Coventry!K26 -> 0 | J98: X | K98: =Beach!J26 -> 0 | L98: =Beach!K26 -> 0 | M98: X | N98: =Candlewood!J26 -> 0 | O98: =Candlewood!K26 -> 0 | P98: X | Q98: =Winchester!J25 -> 0 | R98: =Winchester!K25 -> 0 | S98: X | T98: =Mansfield!J26 -> 0 | U98: =Mansfield!K26 -> 0 | V98: X | W98: =Aspinook!J26 -> 0 | X98: =Aspinook!K26 -> 0
A99: X | B99: =Bantam!J27 -> 0 | C99: =Bantam!K27 -> 0 | D99: X | E99: =Mashapaug!J27 -> 0 | F99: =Mashapaug!K27 -> 0 | G99: X | H99: =Coventry!J27 -> 0 | I99: =Coventry!K27 -> 0 | J99: X | K99: =Beach!J27 -> 0 | L99: =Beach!K27 -> 0 | M99: X | N99: =Candlewood!J27 -> 0 | O99: =Candlewood!K27 -> 0 | P99: X | Q99: =Winchester!J26 -> 0 | R99: =Winchester!K26 -> 0 | S99: X | T99: =Mansfield!J27 -> 0 | U99: =Mansfield!K27 -> 0 | V99: X | W99: =Aspinook!J27 -> 0 | X99: =Aspinook!K27 -> 0
A100: =P38 -> X | B100: =Bantam!J28 -> 0 | C100: =Bantam!K28 -> 0 | D100: =S38 -> X | E100: =Mashapaug!J28 -> 0 | F100: =Mashapaug!K28 -> 0 | G100: X | H100: =Coventry!J28 -> 0 | I100: =Coventry!K28 -> 0 | J100: =Y38 -> X | K100: =Beach!J28 -> 0 | L100: =Beach!K28 -> 0 | M100: X | N100: =Candlewood!J28 -> 0 | O100: =Candlewood!K28 -> 0 | P100: X | Q100: =Winchester!J27 -> 0 | R100: =Winchester!K27 -> 0 | S100: X | T100: =Mansfield!J28 -> 0 | U100: =Mansfield!K28 -> 0 | V100: X | W100: =Aspinook!J28 -> 0 | X100: =Aspinook!K28 -> 0
A101: Jason | B101: =Bantam!J8 -> 4.2 | C101: =Bantam!K8 -> LMB | D101: Jason | E101: =Mashapaug!J8 -> 4.39 | F101: =Mashapaug!K8 -> LMB | G101: Steve | H101: =Coventry!J22 -> 6.39 | I101: =Coventry!K22 -> LMB | J101: Jeff | K101: =Beach!J9 -> 5.96 | L101: =Beach!K9 -> LMB | M101: Morrie | N101: =Candlewood!J16 -> 3.47 | O101: =Candlewood!K16 -> SMB | P101: =AE39 -> X | Q101: =Winchester!J28 -> 0 | R101: =Winchester!K28 -> 0 | S101: X | T101: =Mansfield!J29 -> 0 | U101: =Mansfield!K29 -> 0 | V101: X | W101: =Aspinook!J29 -> 0 | X101: =Aspinook!K29 -> 0
A102: Jason | B102: =Bantam!J8 -> 4.2 | C102: =Bantam!K8 -> LMB | D102: Jason | E102: =Mashapaug!J8 -> 4.39 | F102: =Mashapaug!K8 -> LMB | G102: Steve D | H102: =Coventry!J22 -> 6.39 | I102: =Coventry!K22 -> LMB | J102: Jeff | K102: =Beach!J9 -> 5.96 | L102: =Beach!K9 -> LMB | M102: Morrie | N102: =Candlewood!J16 -> 3.47 | O102: =Candlewood!K16 -> SMB | P102: Mike G | Q102: =Winchester!J15 -> 3.83 | R102: =Winchester!K15 -> LMB | S102: Ron | T102: =Mansfield!J20 -> 2.91 | U102: =Mansfield!K20 -> LMB | V102: Kevin | W102: =Aspinook!J13 -> 5.4 | X102: =Aspinook!K13 -> LMB
A103: =A102 -> Jason | B103: =B102 -> 4.2 | C103: =C102 -> LMB | D103: =D102 -> Jason | E103: 4.39 | F103: =F102 -> LMB | G103: =G102 -> Steve D | H103: =H102 -> 6.39 | I103: =I102 -> LMB | J103: Jeff | K103: 5.96 | L103: LMB | M103: Morrie | N103: 3.47 | O103: SMB | P103: Mike G | Q103: 3.83 | R103: LMB | S103: Ron | T103: 2.91 | U103: LMB | V103: Kevin | W103: 5.4 | X103: LMB

Sheet Report
A1: MVBC 2016 Year-To-Date Report
A2: =A2:L34 -> 0
A3: Individual Standings | E3: Lunkers | K3: Individual Adj'd Total Weight
A4: Name | B4: Position | C4: Points | E4: Lake / River | F4: Name | G4: Weight | H4: Species | I4: Trophy | K4: Name | L4: Adj'd Weight
A5: =YTD!E15 -> Steve D | B5: =YTD!F15 -> 1 | C5: =YTD!G15 -> 23 | E5: =YTD!L15 -> Bantam | F5: =IF(YTD!A103="X","N/A",YTD!A103) -> Jason | G5: =YTD!B103 -> 4.2 | H5: =IF(YTD!C103=0,"N/A",YTD!C103) -> LMB | I5: =IF((H5="LMB")*AND(G5>=6),"Yes",IF((H5="SMB")*AND(G5>=4),"Yes","No")) -> No | K5: =YTD!S52 -> Jeff | L5: =YTD!T52 -> 47.08
A6: =YTD!E16 -> Jeff | B6: =YTD!F16 -> 2 | C6: =YTD!G16 -> 25 | E6: =YTD!L16 -> Mashapaug | F6: =IF(YTD!D103="X","N/A",YTD!D103) -> Jason | G6: =YTD!E103 -> 4.39 | H6: =IF(YTD!F103=0,"N/A",YTD!F103) -> LMB | I6: =IF((H6="LMB")*AND(G6>=6),"Yes",IF((H6="SMB")*AND(G6>=4),"Yes","No")) -> No | K6: =YTD!S65 -> Steve D | L6: =YTD!T65 -> 46.9
A7: =YTD!E17 -> Jason | B7: =YTD!F17 -> 3 | C7: =YTD!G17 -> 29 | E7: =YTD!L17 -> Coventry | F7: =IF(YTD!G103="X","N/A",YTD!G103) -> Steve D | G7: =YTD!H103 -> 6.39 | H7: =IF(YTD!I103=0,"N/A",YTD!I103) -> LMB | I7: Yes | K7: =YTD!S51 -> Jason | L7: =YTD!T51 -> 38.15
A8: =YTD!E18 -> Scott | B8: =YTD!F18 -> 4 | C8: =YTD!G18 -> 34 | E8: =YTD!L18 -> Beach | F8: =IF(YTD!J103="X","N/A",YTD!J103) -> Jeff | G8: =YTD!K103 -> 5.96 | H8: =IF(YTD!L103=0,"N/A",YTD!L103) -> LMB | I8: No | K8: =YTD!S56 -> Kevin | L8: =YTD!T56 -> 33.19
A9: =YTD!E19 -> Rich B | B9: =YTD!F19 -> 5 | C9: =YTD!G19 -> 41 | E9: =YTD!L19 -> Candlewood | F9: =IF(YTD!M103="X","N/A",YTD!M103) -> Morrie | G9: =YTD!N103 -> 3.47 | H9: =IF(YTD!O103=0,"N/A",YTD!O103) -> SMB | I9: =IF((H9="LMB")*AND(G9>=6),"Yes",IF((H9="SMB")*AND(G9>=4),"Yes","No")) -> No | K9: =YTD!S60 -> Pete | L9: =YTD!T60 -> 32.16
A10: =YTD!E20 -> Pete | B10: =YTD!F20 -> 6 | C10: =YTD!G20 -> 42 | E10: =YTD!L20 -> Winchester | F10: =IF(YTD!P103="X","N/A",YTD!P103) -> Mike G | G10: =YTD!Q103 -> 3.83 | H10: =IF(YTD!R103=0,"N/A",YTD!R103) -> LMB | I10: =IF((H10="LMB")*AND(G10>=6),"Yes",IF((H10="SMB")*AND(G10>=4),"Yes","No")) -> No | K10: =YTD!S61 -> Rich B | L10: =YTD!T61 -> 31
A11: =YTD!E21 -> Dean | B11: =YTD!F21 -> 7 | C11: =YTD!G21 -> 44 | E11: =YTD!L21 -> Mansfield | F11: =IF(YTD!S103="X","N/A",YTD!S103) -> Ron | G11: =YTD!T103 -> 2.91 | H11: =IF(YTD!U103=0,"N/A",YTD!U103) -> LMB | I11: No | K11: =YTD!S64 -> Scott | L11: =YTD!T64 -> 29.98
A12: =YTD!E22 -> Armand | B12: =YTD!F22 -> 8 | C12: =YTD!G22 -> 49 | E12: =YTD!L22 -> Aspinook | F12: =IF(YTD!V103="X","N/A",YTD!V103) -> Kevin | G12: =YTD!W103 -> 5.4 | H12: =IF(YTD!X103=0,"N/A",YTD!X103) -> LMB | I12: =IF((H12="LMB")*AND(G12>=6),"Yes",IF((H12="SMB")*AND(G12>=4),"Yes","No")) -> No | K12: =YTD!S49 -> Dean | L12: =YTD!T49 -> 29.1
A13: =YTD!E23 -> Rich T | B13: =YTD!F23 -> 8 | C13: =YTD!G23 -> 49 | K13: =YTD!S62 -> Rich T | L13: =YTD!T62 -> 27.94
A14: =YTD!E24 -> Tom | B14: =YTD!F24 -> 10 | C14: =YTD!G24 -> 51 | E14: Statistics | K14: =YTD!S67 -> Tom | L14: =YTD!T67 -> 26.01
A15: =YTD!E25 -> Kevin | B15: =YTD!F25 -> 11 | C15: =YTD!G25 -> 52 | E15: Lake / River | F15: Anglers | G15: Fish | H15: Total Wt | I15: Avg Wt | K15: =YTD!S66 -> Steve S | L15: =YTD!T66 -> 24.95
A16: =YTD!E26 -> Bill | B16: =YTD!F26 -> 12 | C16: =YTD!G26 -> 55 | E16: =YTD!L15 -> Bantam | F16: =Bantam!E30 -> 21 | G16: =Bantam!M30 -> 38 | H16: =Bantam!L30 -> 78.37 | I16: =IF(G16=0,0,H16/G16) -> 2.062368421 | K16: =YTD!S48 -> Bill | L16: =YTD!T48 -> 24.77
A17: =YTD!E27 -> Steve S | B17: =YTD!F27 -> 13 | C17: =YTD!G27 -> 61 | E17: =YTD!L16 -> Mashapaug | F17: =Mashapaug!E30 -> 19 | G17: =Mashapaug!M30 -> 82 | H17: =Mashapaug!L30 -> 135.72 | I17: 1.655121951 | K17: =YTD!S47 -> Armand | L17: =YTD!T47 -> 24.26
A18: =YTD!E28 -> Morrie | B18: =YTD!F28 -> 14 | C18: =YTD!G28 -> 65 | E18: =YTD!L17 -> Coventry | F18: =Coventry!E30 -> 16 | G18: =Coventry!M30 -> 35 | H18: =Coventry!L30 -> 48.57 | I18: 1.387714286 | K18: =YTD!S59 -> Morrie | L18: =YTD!T59 -> 19.62
A19: =YTD!E29 -> Mike M | B19: =YTD!F29 -> 15 | C19: =YTD!G29 -> 76 | E19: =YTD!L18 -> Beach | F19: =Beach!E30 -> 19 | G19: =Beach!M30 -> 50 | H19: =Beach!L30 -> 59.93 | I19: 1.1986 | K19: =YTD!S57 -> Mike | L19: =YTD!T57 -> 19.384
A20: =YTD!E30 -> Jack | B20: =YTD!F30 -> 16 | C20: =YTD!G30 -> 94 | E20: =YTD!L19 -> Candlewood | F20: =Candlewood!E30 -> 17 | G20: =Candlewood!M30 -> 23 | H20: =Candlewood!L30 -> 47.8 | I20: 2.07826087 | K20: =YTD!S58 -> Mike G | L20: =YTD!T58 -> 16.87
A21: =YTD!E31 -> Ron | B21: =YTD!F31 -> 16 | C21: =YTD!G31 -> 94 | E21: =YTD!L20 -> Winchester | F21: =Winchester!E30 -> 19 | G21: =Winchester!M30 -> 42 | H21: =Winchester!L30 -> 53.36 | I21: 1.27047619 | K21: =YTD!S63 -> Ron | L21: =YTD!T63 -> 16.5
A22: =YTD!E32 -> Mike G | B22: =YTD!F32 -> 18 | C22: =YTD!G32 -> 105 | E22: =YTD!L21 -> Mansfield | F22: =Mansfield!E30 -> 21 | G22: =Mansfield!M30 -> 47 | H22: =Mansfield!L30 -> 71.57 | I22: 1.522765957 | K22: =YTD!S53 -> Jim B | L22: =YTD!T53 -> 12.84
A23: =YTD!E33 -> Kam | B23: =YTD!F33 -> 19 | C23: =YTD!G33 -> 114 | E23: =YTD!L22 -> Aspinook | F23: =Aspinook!E30 -> 18 | G23: =Aspinook!M30 -> 21 | H23: =Aspinook!L30 -> 38.904 | I23: 1.852571429 | K23: =YTD!S50 -> Jack | L23: =YTD!T50 -> 12.66
A24: =YTD!E34 -> Joe | B24: =YTD!F34 -> 20 | C24: =YTD!G34 -> 119 | K24: =YTD!S55 -> Kam | L24: =YTD!T55 -> 11.3
A25: =YTD!E35 -> Jim B | B25: =YTD!F35 -> 21 | C25: =YTD!G35 -> 137 | E25: Winning Teams | K25: =YTD!S54 -> Joe | L25: =YTD!T54 -> 7.36
A26: =YTD!E36 -> X | B26: =YTD!F36 -> 22 | C26: =YTD!G36 -> 210 | E26: Lake / River | F26: Team Number | H26: Total Weight | K26: =YTD!S68 -> X | L26: =YTD!T68 -> 0
A27: =YTD!E37 -> X | B27: =YTD!F37 -> 22 | C27: =YTD!G37 -> 210 | E27: =YTD!L15 -> Bantam | F27: =IF(Teams!N4=20,"N/A",Teams!N4) -> 8 | H27: =Teams!O4 -> 11.367 | K27: =YTD!S69 -> X | L27: =YTD!T69 -> 0
A28: =YTD!E38 -> X | B28: =YTD!F38 -> 22 | C28: =YTD!G38 -> 210 | E28: =YTD!L16 -> Mashapaug | F28: =IF(Teams!N34=20,"N/A",Teams!N34) -> 6 | H28: =Teams!O34 -> 18.9 | K28: =YTD!S70 -> X | L28: =YTD!T70 -> 0
A29: =YTD!E39 -> X | B29: =YTD!F39 -> 22 | C29: =YTD!G39 -> 210 | E29: =YTD!L17 -> Coventry | F29: =IF(Teams!N64=20,"N/A",Teams!N64) -> 10 | H29: =Teams!O64 -> 15.91 | K29: =YTD!S71 -> X | L29: =YTD!T71 -> 0
A30: =YTD!E40 -> X | B30: =YTD!F40 -> 22 | C30: =YTD!G40 -> 210 | E30: =YTD!L18 -> Beach | F30: =IF(Teams!N94=20,"N/A",Teams!N94) -> 7 | H30: =Teams!O94 -> 10.34 | K30: =YTD!S72 -> X | L30: =YTD!T72 -> 0
E31: =YTD!L19 -> Candlewood | F31: =IF(Teams!AD4=20,"N/A",Teams!AD4) -> 8 | H31: =Teams!AE4 -> 13.97
E32: =YTD!L20 -> Winchester | F32: =IF(Teams!AD34=20,"N/A",Teams!AD34) -> 1 | H32: =Teams!AE34 -> 10.9
E33: =YTD!L21 -> Mansfield | F33: =IF(Teams!AD64=20,"N/A",Teams!AD64) -> 5 | H33: =Teams!AE64 -> 15.08
E34: =YTD!L22 -> Aspinook | F34: =IF(Teams!AD94=20,"N/A",Teams!AD94) -> 1 | H34: =Teams!AE94 -> 21.9

Sheet Sheet1
H6: =P15 -> 0
H7: 0
H8: 0
H9: 0
H10: 0
H11: 0
H12: 0
H13: 0
H14: 0
H15: 0
H16: 0
H17: 0
H18: 0
H19: 0
H20: 0
H21: 0
H22: 0
H23: 0
H24: 0
H25: 0
H26: 0
